Workbook

Sheet 2018 Pre-Draft Rosters
B1: Lightning (Mike Goodman) | F1: Evolution (Bruce) | J1: The Mad Batters (Colin) | N1: Woap (Mike) | R1: The Dominant Brand (Brandon) | V1: Guzzlers (Rhonda) | Z1: Moneyballers (Rob) | AD1: Booya's (Cathy) | AH1: Freebirds (Todd) | AL1: Numbats (Tom) | AP1: Josh Gone-aldson (Dave)
B2: Pos. | C2: Player | D2: $ | E2: years | F2: Pos. | G2: Player | H2: $ | I2: years | J2: Pos. | K2: Player | L2: $ | M2: years | N2: Pos. | O2: Player | P2: $ | Q2: years | R2: Pos. | S2: Player | T2: $ | U2: years | V2: Pos. | W2: Player | X2: $ | Y2: years | Z2: Pos. | AA2: Player | AB2: $ | AC2: years | AD2: Pos. | AE2: Player | AF2: $ | AG2: years | AH2: Pos. | AI2: Player | AJ2: $ | AK2: years | AL2: Pos. | AM2: Player | AN2: $ | AO2: years | AP2: Pos. | AQ2: Player | AR2: $ | AS2: years
A3: =10-COUNT(D3,H3,L3,P3,T3,X3,AB3,AF3,AJ3,AN3,AR3) -> 1 | B3: C | C3: Zack Collins CWS - C | D3: 5 | F3: C | G3: Roberto Pérez Cle - C | H3: 5 | J3: C | K3: Pedro Severino Bal - C | L3: 5 | N3: C | R3: C | S3: Danny Jansen Tor - C | T3: 5 | V3: C | W3: Jose Trevino Tex - C | X3: 5 | Z3: C | AA3: James McCann CWS - C | AB3: 5 | AD3: C | AE3: Mitch Garver Min - C | AF3: 5 | AH3: C | AL3: C | AM3: Christian Vázquez Bos - C | AN3: 5 | AP3: C | AQ3: Tom Murphy Sea - C | AR3: 5
A4: 3 | B4: 1B | C4: Matt Olson Oak - 1B | D4: 15 | E4: 2 | F4: 1B | J4: 1B | K4: José Abreu CWS - 1B | L4: 26 | N4: 1B | R4: 1B | V4: 1B | W4: Yandy Díaz TB - 1B,3B | X4: 5 | Z4: 1B | AA4: Mark Canha Oak - 1B,OF | AB4: 5 | AD4: 1B | AE4: Luke Voit NYY - 1B | AF4: 10 | AG4: 1 | AH4: 1B | AL4: 1B | AM4: Brandon Lowe TB - 1B,2B,OF | AN4: 5 | AP4: 1B | AQ4: Edwin Encarnacion Sea - 1B | AR4: 27
A5: 2 | B5: 2B | C5: Michael Chavis Bos - 1B,2B | D5: 5 | F5: 2B | G5: Cavan Biggio Tor - 2B,OF | H5: 5 | J5: 2B | N5: 2B | O5: Tommy La Stella LAA - 2B,3B | P5: 5 | R5: 2B | S5: Rougned Odor Tex - 2B | T5: 16 | V5: 2B | W5: Shed Long Sea - 2B,OF | X5: 5 | Z5: 2B | AA5: Bo Bichette Tor - SS | AB5: 1 | AD5: 2B | AH5: 2B | AL5: 2B | AM5: Adalberto Mondesi KC - 2B,SS | AN5: 10 | AO5: 1 | AP5: 2B | AQ5: DJ LeMahieu NYY - 1B,2B,3B | AR5: 5
A6: 0 | B6: 3B | C6: Hunter Dozier KC - 1B,3B,OF | D6: 5 | F6: 3B | G6: Miguel Sanó Min - 1B,3B | H6: 2 | J6: 3B | K6: Alex Bregman Hou - 3B,SS | L6: 15 | M6: 1 | N6: 3B | O6: Gio Urshela NYY - 3B | P6: 5 | R6: 3B | S6: Carlos Santana Cle - 1B,3B | T6: 25 | V6: 3B | W6: Danny Santana Tex - 1B,2B,3B,SS,OF | X6: 5 | Z6: 3B | AA6: Vladimir Guerrero Jr. Tor - 3B | AB6: 5 | AD6: 3B | AE6: Matt Chapman Oak - 3B | AF6: 37 | AH6: 3B | AL6: 3B | AM6: Nick Solak Tex - 2B,3B | AN6: 5 | AP6: 3B | AQ6: Rafael Devers Bos - 3B | AR6: 15 | AS6: 2
A7: =10-COUNT(D7,H7,L7,P7,T7,X7,AB7,AF7,AJ7,AN7,AR7) -> 2 | B7: SS | C7: Elvis Andrus Tex - SS | D7: 15 | F7: SS | G7: Jorge Polanco Min - SS | H7: 5 | J7: SS | K7: Xander Bogaerts Bos - SS | L7: 45 | N7: SS | O7: Gleyber Torres NYY - 2B,SS | P7: 15 | Q7: 2 | R7: SS | S7: Marcus Semien Oak - SS | T7: 3 | V7: SS | W7: Tim Anderson CWS - SS | X7: 35 | Z7: SS | AA7: Andrelton Simmons LAA - SS | AB7: 7 | AC7: 1 | AD7: SS | AH7: SS | AL7: SS | AM7: Francisco Lindor Cle - SS | AN7: 51 | AP7: SS
A8: 1 | B8: OF#1 | C8: Oscar Mercado Cle - OF | D8: 5 | F8: OF#1 | G8: Lourdes Gurriel Jr. Tor - 2B,OF | H8: 1 | J8: OF#1 | K8: Mike Trout LAA - OF | L8: 66 | N8: OF#1 | O8: Anthony Santander Bal - OF | P8: 5 | R8: OF#1 | S8: Michael Brantley Hou - OF | T8: 8 | U8: 1 | V8: OF#1 | W8: Eddie Rosario Min - OF | X8: 30 | Z8: OF#1 | AA8: Niko Goodrum Det - 1B,2B,3B,SS,OF | AB8: 10 | AC8: 1 | AD8: OF#1 | AH8: OF#1 | AL8: OF#1 | AM8: Yordan Alvarez Hou - OF | AN8: 5 | AP8: OF#1 | AQ8: Aaron Judge NYY - OF | AR8: 15 | AS8: 1
A9: 0 | B9: OF#2 | C9: Stephen Piscotty Oak - OF | D9: 6 | E9: 1 | F9: OF#2 | G9: Jo Adell LAA - OF | H9: 5 | J9: OF#2 | K9: Trey Mancini Bal - 1B,OF | L9: 5 | N9: OF#2 | O9: Jorge Soler KC - OF | P9: 1 | R9: OF#2 | S9: Yasiel Puig Cle - OF | T9: 5 | V9: OF#2 | W9: Victor Reyes Det - OF | X9: 5 | Z9: OF#2 | AA9: Willie Calhoun Tex - OF | AB9: 5 | AD9: OF#2 | AE9: Cameron Maybin Det - OF | AF9: 5 | AH9: OF#2 | AL9: OF#2 | AM9: Austin Meadows TB - OF | AN9: 5 | AP9: OF#2 | AQ9: Jake Bauers Cle - 1B,OF | AR9: 5
A10: 1 | B10: OF#3 | C10: George Springer Hou - OF | D10: 57 | F10: OF#3 | G10: Bradley Zimmer Cle - OF | H10: 5 | J10: OF#3 | K10: Kyle Tucker Hou - OF | L10: 10 | M10: 1 | N10: OF#3 | O10: Max Kepler Min - OF | P10: 1 | R10: OF#3 | S10: Byron Buxton Min - OF | T10: 11 | V10: OF#3 | W10: Jackie Bradley Jr. Bos - OF | X10: 1 | Z10: OF#3 | AA10: Randal Grichuk Tor - OF | AB10: 6 | AD10: OF#3 | AE10: Mallex Smith Sea - OF | AF10: 37 | AH10: OF#3 | AL10: OF#3 | AP10: OF#3 | AQ10: Eloy Jiménez CWS - OF | AR10: 5
A11: =10-COUNT(D11,H11,L11,P11,T11,X11,AB11,AF11,AJ11,AN11,AR11) -> 2 | B11: DH | F11: DH | G11: Jose Altuve Hou - 2B | H11: 48 | J11: DH | K11: Kevin Kiermaier TB - OF | L11: 5 | N11: DH | O11: Kyle Lewis Sea - OF | P11: 5 | R11: DH | S11: Shohei Ohtani (Batter) LAA - Util | T11: 15 | U11: 2 | V11: DH | W11: Albert Pujols LAA - 1B | X11: 1 | Z11: DH | AA11: Neslon Cruz Min - Util | AB11: 35 | AD11: DH | AH11: DH | AL11: DH | AM11: Jonathan Schoop Min - 2B,SS | AN11: 11 | AP11: DH | AQ11: Miguel Andújar NYY - Util | AR11: 11 | AS11: 2
A12: 2 | B12: SP#1 | C12: Eduardo Rodriguez Bos - SP | D12: 15 | E12: 1 | F12: SP#1 | G12: José Berríos Min - SP | H12: 15 | I12: 1 | J12: SP#1 | K12: Jesus Luzardo Oak - SP | L12: 5 | N12: SP#1 | O12: Spencer Turnbull Det - SP | P12: 5 | R12: SP#1 | S12: Yusei Kikuchi Sea - SP | T12: 26 | V12: SP#1 | Z12: SP#1 | AA12: Matt Shoemaker Tor - SP | AB12: 1 | AD12: SP#1 | AH12: SP#1 | AL12: SP#1 | AM12: Griffin Canning LAA - SP | AN12: 5 | AP12: SP#1 | AQ12: Lance McCullers Jr. Hou - SP | AR12: 5
A13: 3 | B13: SP#2 | C13: Jake Odorizzi Min - SP | D13: 7 | F13: SP#2 | G13: Shane Bieber Cle - SP | H13: 10 | I13: 1 | J13: SP#2 | K13: Masahiro Tanaka NYY - SP | L13: 30 | N13: SP#2 | R13: SP#2 | S13: J.A. Happ NYY - SP | T13: 26 | V13: SP#2 | Z13: SP#2 | AA13: Homer Bailey Min - SP | AB13: 5 | AD13: SP#2 | AH13: SP#2 | AL13: SP#2 | AM13: Jose Urquidy Hou - SP | AN13: 5 | AP13: SP#2 | AQ13: Michael Kopech CWS - SP | AR13: 5
A14: 0 | B14: SP#3 | C14: Sean Manaea Oak - SP | D14: 5 | F14: SP#3 | G14: Reynaldo López CWS - SP | H14: 6 | I14: 1 | J14: SP#3 | K14: Josh James Hou - SP | L14: 5 | N14: SP#3 | O14: Justin Dunn Sea - SP | P14: 5 | R14: SP#3 | S14: Brad Keller KC - SP | T14: 5 | V14: SP#3 | W14: Justin Verlander Hou - SP | X14: 60 | Z14: SP#3 | AA14: Mike Fiers Oak - SP | AB14: 7 | AD14: SP#3 | AE14: Luis Severino NYY - SP | AF14: 26 | AH14: SP#3 | AL14: SP#3 | AM14: Chris Bassitt Oak - SP | AN14: 2 | AP14: SP#3 | AQ14: Dylan Bundy Bal - SP | AR14: 5
A15: =10-COUNT(D15,H15,L15,P15,T15,X15,AB15,AF15,AJ15,AN15,AR15) -> 2 | B15: SP#4 | C15: Brendan McKay (Pitcher) TB - SP | D15: 5 | F15: SP#4 | G15: Lucas Giolito CWS - SP | H15: 1 | J15: SP#4 | N15: SP#4 | O15: John Means Bal - SP | P15: 5 | R15: SP#4 | S15: Wade LeBlanc Sea - SP,RP | T15: 6 | V15: SP#4 | W15: Mike Clevinger Cle - SP | X15: 38 | Z15: SP#4 | AA15: Joe Biagini Tor - SP,RP | AB15: 5 | AD15: SP#4 | AH15: SP#4 | AL15: SP#4 | AM15: Mike Minor Tex - SP | AN15: 2 | AP15: SP#4 | AQ15: Domingo Germán NYY - SP | AR15: 5
A16: =10-COUNT(D16,H16,L16,P16,T16,X16,AB16,AF16,AJ12,AN16,AR16) -> 1 | B16: SP#5 | C16: James Paxton NYY - SP | D16: 40 | F16: SP#5 | G16: Nathan Eovaldi Bos - SP,RP | H16: 10 | J16: SP#5 | N16: SP#5 | O16: Charlie Morton TB - SP | P16: 28 | R16: SP#5 | S16: Marco Estrada Oak - SP | T16: 5 | V16: SP#5 | W16: Frankie Montas Oak - SP | X16: 1 | Z16: SP#5 | AA16: Aaron Sanchez Tor - SP | AB16: 12 | AD16: SP#5 | AE16: Clay Buchholz Tor - SP | AF16: 1 | AH16: SP#5 | AL16: SP#5 | AM16: Aaron Civale Cle - SP | AN16: 5 | AP16: SP#5 | AQ16: Shohei Ohtani LAA - SP | AR16: 8
A17: =10-COUNT(D17,H17,L17,P17,T17,X17,AB17,AF17,AJ17,AN17,AR17) -> 0 | B17: RP#1 | C17: Joe Jiménez Det - RP | D17: 5 | F17: RP#1 | G17: Adam Ottavino NYY - RP | H17: 8 | J17: RP#1 | K17: Hansel Robles LAA - RP | L17: 5 | N17: RP#1 | O17: Liam Hendriks Oak - RP | P17: 5 | R17: RP#1 | S17: Chad Green NYY - SP,RP | T17: 6 | V17: RP#1 | W17: José Leclerc Tex - RP | X17: 15 | Y17: 2 | Z17: RP#1 | AA17: Colin Poche TB - RP | AB17: 5 | AD17: RP#1 | AE17: Anthony Bass Tor - RP | AF17: 5 | AH17: RP#1 | AL17: RP#1 | AM17: Nick Anderson TB - RP | AN17: 5 | AP17: RP#1 | AQ17: Tommy Kahnle NYY - RP | AR17: 5
A18: =10-COUNT(D18,H18,L18,P18,T18,X18,AB18,AF18,AJ18,AN18,AR18) -> 0 | B18: RP#2 | C18: Ian Kennedy KC - RP | D18: 5 | F18: RP#2 | G18: Brad Hand Cle - RP | H18: 5 | J18: RP#2 | K18: Diego Castillo TB - SP,RP | L18: 5 | N18: RP#2 | O18: Ken Giles Tor - RP | P18: 19 | R18: RP#2 | S18: Yusmeiro Petit Oak - RP | T18: 5 | V18: RP#2 | W18: Taylor Rogers Min - RP | X18: 1 | Z18: RP#2 | AA18: Brandon Brennan Sea - RP | AB18: 5 | AD18: RP#2 | AE18: Luis Cessa NYY - RP | AF18: 5 | AH18: RP#2 | AL18: RP#2 | AM18: José Alvarado TB - RP | AN18: 10 | AO18: 1 | AP18: RP#2 | AQ18: Matt Barnes Bos - RP | AR18: 21
A19: =10-COUNT(D19,H19,L19,P19,T19,X19,AB19,AF19,AJ19,AN19,AR19) -> 3 | B19: RP#3 | F19: RP#3 | J19: RP#3 | N19: RP#3 | O19: Nick Wittgren Cle - RP | P19: 5 | R19: RP#3 | S19: Kelvin Herrera CWS - RP | T19: 6 | V19: RP#3 | W19: Brandon Workman Bos - RP | X19: 5 | Z19: RP#3 | AA19: Sam Gaviglio Tor - RP | AB19: 5 | AD19: RP#3 | AE19: Andrew Cashner Bos - SP,RP | AF19: 5 | AH19: RP#3 | AL19: RP#3 | AM19: Emmanuel Clase Cle - RP | AN19: 5 | AP19: RP#3 | AQ19: Jonathan Loaisiga NYY - SP,RP | AR19: 1
A20: =10-COUNT(D20,H20,L20,P20,T20,X20,AB20,AF20,AJ20,AN20,AR20) -> 4 | B20: RP#4 | F20: RP#4 | J20: RP#4 | N20: RP#4 | O20: Ryan Pressly Hou - RP | P20: 6 | R20: RP#4 | V20: RP#4 | W20: Sergio Romo Min - RP | X20: 5 | Z20: RP#4 | AA20: Collin McHugh Hou - SP, RP | AB20: 12 | AD20: RP#4 | AE20: Ross Detwiler CWS - SP,RP | AF20: 5 | AH20: RP#4 | AL20: RP#4 | AM20: Alex Colomé CWS - RP | AN20: 19 | AP20: RP#4 | AQ20: Jalen Beeks TB - SP,RP | AR20: 5
C21: Current Used Points | D21: =SUM(D3:D20) -> 195 | G21: Current Used Points | H21: =SUM(H3:H20) -> 131 | K21: Current Used Points | L21: =SUM(L3:L20) -> 227 | O21: Current Used Points | P21: =SUM(P3:P20) -> 115 | S21: Current Used Points | T21: =SUM(T3:T20) -> 173 | W21: Current Used Points | X21: =SUM(X3:X20) -> 217 | AA21: Current Used Points | AB21: =SUM(AB3:AB20) -> 136 | AE21: Current Used Points | AF21: =SUM(AF3:AF20) -> 141 | AI21: Current Used Points | AJ21: =SUM(AJ3:AJ20) -> 0 | AM21: Current Used Points | AN21: =SUM(AN3:AN20) -> 155 | AQ21: Current Used Points | AR21: =SUM(AR3:AR20) -> 148
C22: Remaining Points | D22: =SUM(260-D21) -> 65 | G22: Remaining Points | H22: =SUM(260-H21) -> 129 | K22: Remaining Points | L22: =SUM(260-L21) -> 33 | O22: Remaining Points | P22: =SUM(260-P21) -> 145 | S22: Remaining Points | T22: =SUM(260-T21) -> 87 | W22: Remaining Points | X22: =SUM(260-X21) -> 43 | AA22: Remaining Points | AB22: =SUM(260-AB21) -> 124 | AE22: Remaining Points | AF22: =SUM(260-AF21) -> 119 | AI22: Remaining Points | AJ22: =SUM(260-AJ21) -> 260 | AM22: Remaining Points | AN22: =SUM(260-AN21) -> 105 | AQ22: Remaining Points | AR22: =SUM(260-AR21) -> 112
B23: Maximum Bidding Points | D23: =(D22-(18-COUNT(D3:D20))+(IF(COUNT(D3:D20)=18,0,1))) -> 63 | F23: Maximum Bidding Points | H23: =(H22-(18-COUNT(H3:H20))+(IF(COUNT(H3:H20)=18,0,1))) -> 127 | J23: Maximum Bidding Points | L23: =(L22-(18-COUNT(L3:L20))+(IF(COUNT(L3:L20)=18,0,1))) -> 29 | N23: Maximum Bidding Points | P23: =(P22-(18-COUNT(P3:P20))+(IF(COUNT(P3:P20)=18,0,1))) -> 143 | R23: Maximum Bidding Points | T23: =(T22-(18-COUNT(T3:T20))+(IF(COUNT(T3:T20)=18,0,1))) -> 86 | V23: Maximum Bidding Points | X23: =(X22-(18-COUNT(X3:X20))+(IF(COUNT(X3:X20)=18,0,1))) -> 42 | Z23: Maximum Bidding Points | AB23: =(AB22-(18-COUNT(AB3:AB20))+(IF(COUNT(AB3:AB20)=18,0,1))) -> 124 | AD23: Maximum Bidding Points | AF23: =(AF22-(18-COUNT(AF3:AF20))+(IF(COUNT(AF3:AF20)=18,0,1))) -> 113 | AH23: Maximum Bidding Points | AJ23: =(AJ22-(18-COUNT(AJ3:AJ20))+(IF(COUNT(AJ3:AJ20)=18,0,1))) -> 243 | AL23: Maximum Bidding Points | AN23: =(AN22-(18-COUNT(AN3:AN20))+(IF(COUNT(AN3:AN20)=18,0,1))) -> 105 | AP23: Maximum Bidding Points | AR23: =(AR22-(18-COUNT(AR3:AR20))+(IF(COUNT(AR3:AR20)=18,0,1))) -> 112
B24: Remaining # of Players to Draft | D24: =18-COUNT(D3:D20) -> 3 | F24: Remaining # of Players to Draft | H24: =18-COUNT(H3:H20) -> 3 | J24: Remaining # of Players to Draft | L24: =18-COUNT(L3:L20) -> 5 | N24: Remaining # of Players to Draft | P24: =18-COUNT(P3:P20) -> 3 | R24: Remaining # of Players to Draft | T24: =18-COUNT(T3:T20) -> 2 | V24: Remaining # of Players to Draft | X24: =18-COUNT(X3:X20) -> 2 | Z24: Remaining # of Players to Draft | AB24: =18-COUNT(AB3:AB20) -> 0 | AD24: Remaining # of Players to Draft | AF24: =18-COUNT(AF3:AF20) -> 7 | AH24: Remaining # of Players to Draft | AJ24: =18-COUNT(AJ3:AJ20) -> 18 | AL24: Remaining # of Players to Draft | AN24: =18-COUNT(AN3:AN20) -> 1 | AP24: Remaining # of Players to Draft | AR24: =18-COUNT(AR3:AR20) -> 1
C27: Luis Arraez Min - 2B,3B,OF | D27: 5 | G27: Nate Pearson Tor - SP | H27: 5 | I27: r2020 | K27: A.J. Puk Oak - RP | L27: 5 | M27: r2020 | O27: Salvador Perez KC - C | P27: 5 | Q27: r2020 | S27: Josh Reddick Hou - OF | T27: 5 | W27: Seth Brown Oak - OF | X27: 5 | AA27: Zack Greinke Hou - SP | AB27: 5 | AC27: r2020 | AE27: Robinson Chirinos Hou - C | AF27: 12 | AM27: Leury García CWS - SS,OF | AN27: 5 | AQ27: Ariel Jurado Tex - SP,RP | AR27: 5
C28: Clint Frazier NYY - OF | D28: 5 | G28: Nolan Jones Cle - 3B | H28: 5 | I28: r2020 | K28: Danny Duffy KC - SP | L28: 5 | O28: Nick Madrigal CWS - 2B,SS | P28: 5 | Q28: r2020 | S28: Robbie Grossman Oak - OF | T28: 5 | W28: Zack Britton NYY - RP | X28: 5 | AA28: Mike Brosseau TB - 2B,3B,OF | AB28: 5 | AE28: Alex Gordon KC - OF | AF28: 5 | AM28: Wander Franco TB - SS | AN28: 5 | AO28: r2020 | AQ28: Franmil Reyes Cle - OF | AR28: 5
C29: Vidal Bruján TB - 2B | D29: 5 | E29: r2020 | G29: Casey Mize Det - SP | H29: 5 | I29: r2020 | K29: Brett Gardner NYY - OF | L29: 1 | O29: Sean Murphy Oak - C | P29: 5 | Q29: r2020 | S29: Dustin Pedroia Bos - 2B | T29: 5 | W29: Felix Peña LAA - SP | X29: 5 | AA29: Daniel Palka CWS - OF | AB29: 1 | AE29: Dwight Smith Jr. Bal - OF | AF29: 5 | AM29: Jarred Kelenic Sea - OF | AN29: 5 | AO29: r2020 | AQ29: Daniel Vogelbach Sea - 1B | AR29: 5
C30: Ryan Mountcastle Bal - SS | D30: 5 | E30: r2020 | G30: Matt Manning Det - SP | H30: 5 | I30: r2020 | O30: Austin Hays Bal - OF | P30: 5 | Q30: r2020 | S30: Jordan Zimmermann Det - SP | T30: 5 | W30: Randy Dobnak Min - SP | X30: 5 | AA30: Rowdy Tellez Tor - 1B | AB30: 5 | AE30: Mike Ford NYY - 1B | AF30: 5 | AI30: Matt Manning Det - SP | AJ30: 5 | AK30: r2020 | AM30: Luis Robert CWS - OF | AN30: 5 | AO30: r2020 | AQ30: Delino DeShields Cle - OF | AR30: 5
C31: Alex Kirilloff Min - OF | D31: 5 | E31: r2020 | G31: Deivi García NYY - SP | H31: 5 | I31: r2020 | W31: Danny Salazar Cle - SP | X31: 5 | AA31: Brandon Dixon Det - 1B,OF | AB31: 5 | AE31: Brandon Drury Tor - 1B,2B,3B,OF | AF31: 5 | AI31: Deivi García NYY - SP | AJ31: 5 | AK31: r2020 | AQ31: Jordy Mercer Det - 1B,2B,SS | AR31: 5
C32: Julio Rodriguez Sea - OF | D32: 5 | E32: r2020 | G32: Tyler Glasnow TB - SP,RP | H32: 5 | W32: Matt Magill Sea - RP | X32: 5 | AA32: Mark Trumbo Bal - OF | AB32: 5 | AE32: David Hess Bal - SP,RP | AF32: 5 | AM32: David Fletcher LAA - 2B,3B,SS,OF | AN32: 5 | AQ32: Billy McKinney Tor - OF | AR32: 5
C33: Jorge Mateo Oak - SS | D33: 5 | E33: r2020 | G33: Ty Buttrey LAA - RP | H33: 5 | AA33: Teoscar Hernández Tor - OF | AB33: 5 | AM33: Tyler Duffey Min - RP | AN33: 5 | AQ33: Sam Travis Tex - 1B,OF | AR33: 5
C34: ="Draft Order = "&VLOOKUP("Lightning (Mike Goodman)",draft_order,2,FALSE) -> Draft Order = 10 | G34: ="Draft Order = "&VLOOKUP("Evolution (Bruce)",draft_order,2,FALSE) -> Draft Order = 8 | K34: ="Draft Order = "&VLOOKUP("The Mad Batters (Colin)",draft_order,2,FALSE) -> Draft Order = 9 | O34: ="Draft Order = "&VLOOKUP("Woap (Mike)",draft_order,2,FALSE) -> Draft Order = 6 | S34: ="Draft Order = "&VLOOKUP("The Dominant Brand (Brandon)",draft_order,2,FALSE) -> Draft Order = 2 | W34: ="Draft Order = "&VLOOKUP("Guzzlers (Rhonda)",draft_order,2,FALSE) -> Draft Order = 11 | AA34: ="Draft Order = "&VLOOKUP("Moneyballers (Rob)",draft_order,2,FALSE) -> Draft Order = 3 | AE34: ="Draft Order = "&VLOOKUP("Booya's (Cathy)",draft_order,2,FALSE) -> Draft Order = 4 | AI34: ="Draft Order = "&VLOOKUP("Freebirds (Todd)",draft_order,2,FALSE) -> Draft Order = 1 | AM34: ="Draft Order = "&VLOOKUP("Numbats (Tom)",draft_order,2,FALSE) -> Draft Order = 7 | AQ34: ="Draft Order = "&VLOOKUP("Josh Gone-aldson (Dave)",draft_order,2,FALSE) -> Draft Order = 5
C36: Ryan Borucki Tor - SP | D36: 5 | G36: Hanser Alberto Bal - 2B,3B | H36: 5 | AA36: Trent Thornton Tor - SP | AB36: 5 | AQ36: Renato Núñez Bal - 1B,3B | AR36: 5
C37: Dylan Cease CWS - SP | D37: 5 | AQ37: Sean Reid-Foley Tor - SP | AR37: 5
C38: Justus Sheffield Sea - SP | D38: 5
C39: Zach Plesac Cle - SP | D39: 5
C40: Kolby Allard Tex - SP | D40: 5

Sheet Draft List
A1: 1 | B1: Owner | C1: Player | D1: Bid | E1: Team/Position | F1: Rank | G1: AB/Innings | H1: R/Wins | I1: HR/Saves | J1: RBI/SO | K1: SB/ERA | L1: Avg./WHIP

Sheet Summary
A1: Owners | B1: Current Used Points | C1: Remaining Points | D1: Max Bidding Points | E1: Players Left to Draft | F1: C | G1: 1B | H1: 2B | I1: 3B | J1: SS | K1: OF | L1: DH | M1: SP | N1: RP | O1: Reserve
A2: Lightning (Mike Goodman) | B2: =used1 -> 195 | C2: ='2018 Pre-Draft Rosters'!D22 -> 65 | D2: ='2018 Pre-Draft Rosters'!D23 -> 63 | E2: ='2018 Pre-Draft Rosters'!D24 -> 3 | F2: =1-COUNT('2018 Pre-Draft Rosters'!D3) -> 0 | G2: =1-COUNT('2018 Pre-Draft Rosters'!D4) -> 0 | H2: =1-COUNT('2018 Pre-Draft Rosters'!D5) -> 0 | I2: =1-COUNT('2018 Pre-Draft Rosters'!D6) -> 0 | J2: =1-COUNT('2018 Pre-Draft Rosters'!D7) -> 0 | K2: =3-COUNT('2018 Pre-Draft Rosters'!D8:D10) -> 0 | L2: =1-COUNT('2018 Pre-Draft Rosters'!D11) -> 1 | M2: =5-COUNT('2018 Pre-Draft Rosters'!D12:D16) -> 0 | N2: =4-COUNT('2018 Pre-Draft Rosters'!D17:D20) -> 2 | O2: =7-COUNT('2018 Pre-Draft Rosters'!D27:D33) -> 0
A3: Evolution (Bruce) | B3: =used2 -> 131 | C3: ='2018 Pre-Draft Rosters'!H22 -> 129 | D3: ='2018 Pre-Draft Rosters'!H23 -> 127 | E3: ='2018 Pre-Draft Rosters'!H24 -> 3 | F3: =1-COUNT('2018 Pre-Draft Rosters'!H3) -> 0 | G3: =1-COUNT('2018 Pre-Draft Rosters'!H4) -> 1 | H3: =1-COUNT('2018 Pre-Draft Rosters'!H5) -> 0 | I3: =1-COUNT('2018 Pre-Draft Rosters'!H6) -> 0 | J3: =1-COUNT('2018 Pre-Draft Rosters'!H7) -> 0 | K3: =3-COUNT('2018 Pre-Draft Rosters'!H8:H10) -> 0 | L3: =1-COUNT('2018 Pre-Draft Rosters'!H11) -> 0 | M3: =5-COUNT('2018 Pre-Draft Rosters'!H12:H16) -> 0 | N3: =4-COUNT('2018 Pre-Draft Rosters'!H17:H20) -> 2 | O3: =7-COUNT('2018 Pre-Draft Rosters'!H27:H33) -> 0
A4: The Mad Batters (Colin) | B4: =used3 -> 227 | C4: ='2018 Pre-Draft Rosters'!L22 -> 33 | D4: ='2018 Pre-Draft Rosters'!L23 -> 29 | E4: ='2018 Pre-Draft Rosters'!L24 -> 5 | F4: =1-COUNT('2018 Pre-Draft Rosters'!L3) -> 0 | G4: =1-COUNT('2018 Pre-Draft Rosters'!L4) -> 0 | H4: =1-COUNT('2018 Pre-Draft Rosters'!L5) -> 1 | I4: =1-COUNT('2018 Pre-Draft Rosters'!L6) -> 0 | J4: =1-COUNT('2018 Pre-Draft Rosters'!L7) -> 0 | K4: =3-COUNT('2018 Pre-Draft Rosters'!L8:L10) -> 0 | L4: =1-COUNT('2018 Pre-Draft Rosters'!L11) -> 0 | M4: =5-COUNT('2018 Pre-Draft Rosters'!L12:L16) -> 2 | N4: =4-COUNT('2018 Pre-Draft Rosters'!L17:L20) -> 2 | O4: =7-COUNT('2018 Pre-Draft Rosters'!L27:L33) -> 4
A5: Woap (Mike) | B5: =used4 -> 115 | C5: ='2018 Pre-Draft Rosters'!P22 -> 145 | D5: ='2018 Pre-Draft Rosters'!P23 -> 143 | E5: ='2018 Pre-Draft Rosters'!P24 -> 3 | F5: =1-COUNT('2018 Pre-Draft Rosters'!P3) -> 1 | G5: =1-COUNT('2018 Pre-Draft Rosters'!P4) -> 1 | H5: =1-COUNT('2018 Pre-Draft Rosters'!P5) -> 0 | I5: =1-COUNT('2018 Pre-Draft Rosters'!P6) -> 0 | J5: =1-COUNT('2018 Pre-Draft Rosters'!P7) -> 0 | K5: =3-COUNT('2018 Pre-Draft Rosters'!P8:P10) -> 0 | L5: =1-COUNT('2018 Pre-Draft Rosters'!P11) -> 0 | M5: =5-COUNT('2018 Pre-Draft Rosters'!P12:P16) -> 1 | N5: =4-COUNT('2018 Pre-Draft Rosters'!P17:P20) -> 0 | O5: =7-COUNT('2018 Pre-Draft Rosters'!P27:P33) -> 3
A6: The Dominant Brand (Brandon) | B6: =used5 -> 173 | C6: ='2018 Pre-Draft Rosters'!T22 -> 87 | D6: ='2018 Pre-Draft Rosters'!T23 -> 86 | E6: ='2018 Pre-Draft Rosters'!T24 -> 2 | F6: =1-COUNT('2018 Pre-Draft Rosters'!T3) -> 0 | G6: =1-COUNT('2018 Pre-Draft Rosters'!T4) -> 1 | H6: =1-COUNT('2018 Pre-Draft Rosters'!T5) -> 0 | I6: =1-COUNT('2018 Pre-Draft Rosters'!T6) -> 0 | J6: =1-COUNT('2018 Pre-Draft Rosters'!T7) -> 0 | K6: =3-COUNT('2018 Pre-Draft Rosters'!T8:T10) -> 0 | L6: =1-COUNT('2018 Pre-Draft Rosters'!T11) -> 0 | M6: =5-COUNT('2018 Pre-Draft Rosters'!T12:T16) -> 0 | N6: =4-COUNT('2018 Pre-Draft Rosters'!T17:T20) -> 1 | O6: =7-COUNT('2018 Pre-Draft Rosters'!T27:T33) -> 3
A7: Guzzlers (Rhonda) | B7: =used6 -> 217 | C7: ='2018 Pre-Draft Rosters'!X22 -> 43 | D7: ='2018 Pre-Draft Rosters'!X23 -> 42 | E7: ='2018 Pre-Draft Rosters'!X24 -> 2 | F7: =1-COUNT('2018 Pre-Draft Rosters'!X3) -> 0 | G7: =1-COUNT('2018 Pre-Draft Rosters'!X4) -> 0 | H7: =1-COUNT('2018 Pre-Draft Rosters'!X5) -> 0 | I7: =1-COUNT('2018 Pre-Draft Rosters'!X6) -> 0 | J7: =1-COUNT('2018 Pre-Draft Rosters'!X7) -> 0 | K7: =3-COUNT('2018 Pre-Draft Rosters'!X8:X10) -> 0 | L7: =1-COUNT('2018 Pre-Draft Rosters'!X11) -> 0 | M7: =5-COUNT('2018 Pre-Draft Rosters'!X12:X16) -> 2 | N7: =4-COUNT('2018 Pre-Draft Rosters'!X17:X20) -> 0 | O7: =7-COUNT('2018 Pre-Draft Rosters'!X27:X33) -> 1
A8: Moneyballers (Rob) | B8: =used7 -> 136 | C8: ='2018 Pre-Draft Rosters'!AB22 -> 124 | D8: ='2018 Pre-Draft Rosters'!AB23 -> 124 | E8: ='2018 Pre-Draft Rosters'!AB24 -> 0 | F8: =1-COUNT('2018 Pre-Draft Rosters'!AB3) -> 0 | G8: =1-COUNT('2018 Pre-Draft Rosters'!AB4) -> 0 | H8: =1-COUNT('2018 Pre-Draft Rosters'!AB5) -> 0 | I8: =1-COUNT('2018 Pre-Draft Rosters'!AB6) -> 0 | J8: =1-COUNT('2018 Pre-Draft Rosters'!AB7) -> 0 | K8: =3-COUNT('2018 Pre-Draft Rosters'!AB8:AB10) -> 0 | L8: =1-COUNT('2018 Pre-Draft Rosters'!AB11) -> 0 | M8: =5-COUNT('2018 Pre-Draft Rosters'!AB12:AB16) -> 0 | N8: =4-COUNT('2018 Pre-Draft Rosters'!AB17:AB20) -> 0 | O8: =7-COUNT('2018 Pre-Draft Rosters'!AB27:AB33) -> 0
A9: Booya's (Cathy) | B9: =used8 -> 141 | C9: ='2018 Pre-Draft Rosters'!AF22 -> 119 | D9: ='2018 Pre-Draft Rosters'!AF23 -> 113 | E9: ='2018 Pre-Draft Rosters'!AF24 -> 7 | F9: =1-COUNT('2018 Pre-Draft Rosters'!AF3) -> 0 | G9: =1-COUNT('2018 Pre-Draft Rosters'!AF4) -> 0 | H9: =1-COUNT('2018 Pre-Draft Rosters'!AF5) -> 1 | I9: =1-COUNT('2018 Pre-Draft Rosters'!AF6) -> 0 | J9: =1-COUNT('2018 Pre-Draft Rosters'!AF7) -> 1 | K9: =3-COUNT('2018 Pre-Draft Rosters'!AF8:AF10) -> 1 | L9: =1-COUNT('2018 Pre-Draft Rosters'!AF11) -> 1 | M9: =5-COUNT('2018 Pre-Draft Rosters'!AF12:AF16) -> 3 | N9: =4-COUNT('2018 Pre-Draft Rosters'!AF17:AF20) -> 0 | O9: =7-COUNT('2018 Pre-Draft Rosters'!AF27:AF33) -> 1
A10: Freebirds (Todd) | B10: =used9 -> 0 | C10: ='2018 Pre-Draft Rosters'!AJ22 -> 260 | D10: ='2018 Pre-Draft Rosters'!AJ23 -> 243 | E10: ='2018 Pre-Draft Rosters'!AJ24 -> 18 | F10: =1-COUNT('2018 Pre-Draft Rosters'!AJ3) -> 1 | G10: =1-COUNT('2018 Pre-Draft Rosters'!AJ4) -> 1 | H10: =1-COUNT('2018 Pre-Draft Rosters'!AJ5) -> 1 | I10: =1-COUNT('2018 Pre-Draft Rosters'!AJ6) -> 1 | J10: =1-COUNT('2018 Pre-Draft Rosters'!AJ7) -> 1 | K10: =3-COUNT('2018 Pre-Draft Rosters'!AJ8:AJ10) -> 3 | L10: =1-COUNT('2018 Pre-Draft Rosters'!AJ11) -> 1 | M10: =5-COUNT('2018 Pre-Draft Rosters'!AJ12:AJ16) -> 5 | N10: =4-COUNT('2018 Pre-Draft Rosters'!AJ17:AJ20) -> 4 | O10: =7-COUNT('2018 Pre-Draft Rosters'!AJ27:AJ33) -> 5
A11: Numbats (Tom) | B11: =used10 -> 155 | C11: ='2018 Pre-Draft Rosters'!AN22 -> 105 | D11: ='2018 Pre-Draft Rosters'!AN23 -> 105 | E11: ='2018 Pre-Draft Rosters'!AN24 -> 1 | F11: =1-COUNT('2018 Pre-Draft Rosters'!AN3) -> 0 | G11: =1-COUNT('2018 Pre-Draft Rosters'!AN4) -> 0 | H11: =1-COUNT('2018 Pre-Draft Rosters'!AN5) -> 0 | I11: =1-COUNT('2018 Pre-Draft Rosters'!AN6) -> 0 | J11: =1-COUNT('2018 Pre-Draft Rosters'!AN7) -> 0 | K11: =3-COUNT('2018 Pre-Draft Rosters'!AN8:AN10) -> 1 | L11: =1-COUNT('2018 Pre-Draft Rosters'!AN11) -> 0 | M11: =5-COUNT('2018 Pre-Draft Rosters'!AN12:AN16) -> 0 | N11: =4-COUNT('2018 Pre-Draft Rosters'!AN17:AN20) -> 0 | O11: =7-COUNT('2018 Pre-Draft Rosters'!AN27:AN33) -> 1
A12: Josh Gone-aldson (Dave) | B12: =used11 -> 148 | C12: ='2018 Pre-Draft Rosters'!AR22 -> 112 | D12: ='2018 Pre-Draft Rosters'!AR23 -> 112 | E12: ='2018 Pre-Draft Rosters'!AR24 -> 1 | F12: =1-COUNT('2018 Pre-Draft Rosters'!AR3) -> 0 | G12: =1-COUNT('2018 Pre-Draft Rosters'!AR4) -> 0 | H12: =1-COUNT('2018 Pre-Draft Rosters'!AR5) -> 0 | I12: =1-COUNT('2018 Pre-Draft Rosters'!AR6) -> 0 | J12: =1-COUNT('2018 Pre-Draft Rosters'!AR7) -> 1 | K12: =3-COUNT('2018 Pre-Draft Rosters'!AR8:AR10) -> 0 | L12: =1-COUNT('2018 Pre-Draft Rosters'!AR11) -> 0 | M12: =5-COUNT('2018 Pre-Draft Rosters'!AR12:AR16) -> 0 | N12: =4-COUNT('2018 Pre-Draft Rosters'!AR17:AR20) -> 0 | O12: =7-COUNT('2018 Pre-Draft Rosters'!AR27:AR33) -> 0
E13: =SUM(E2:E12) -> 45 | F13: =SUM(F2:F12)-1 -> 1 | G13: =SUM(G2:G12)-1 -> 3 | H13: =SUM(H2:H12)-1 -> 2 | I13: =SUM(I2:I12)-1 -> 0 | J13: =SUM(J2:J12)-1 -> 2 | K13: =SUM(K2:K12)-3 -> 2 | L13: =SUM(L2:L12)-1 -> 2 | M13: =SUM(M2:M12)-5 -> 8 | N13: =SUM(N2:N12)-4 -> 7 | O13: =SUM(O2:O12)-7 -> 11

Sheet Catchers
A1: Player | B1: Team | C1: Rank | D1: H/AB | E1: R | F1: HR | G1: RBI | H1: SB | I1: Avg.
A2: Gary Sánchez | B2: NYY - C | C2: 90 | D2: 92/396 | E2: 62 | F2: 34 | G2: 77 | H2: 0 | I2: 0.232
A3: Yasmani Grandal | B3: CWS - C,1B | C3: 99 | D3: 126/513 | E3: 79 | F3: 28 | G3: 77 | H3: 5 | I3: 0.246
A4: Mitch Garver | B4: Min - C | C4: 143 | D4: 85/311 | E4: 70 | F4: 31 | G4: 67 | H4: 0 | I4: 0.273
A5: Salvador Perez | B5: KC - C | C5: 159 | D5: -/- | E5: - | F5: - | G5: - | H5: - | I5: -
A6: Christian Vázquez | B6: Bos - C,1B | C6: 256 | D6: 133/482 | E6: 66 | F6: 23 | G6: 72 | H6: 4 | I6: 0.276
A7: Tom Murphy | B7: Sea - C | C7: 287 | D7: 71/260 | E7: 32 | F7: 18 | G7: 40 | H7: 2 | I7: 0.273
A8: Sean Murphy | B8: Oak - C | C8: 318 | D8: 13/53 | E8: 14 | F8: 4 | G8: 8 | H8: 0 | I8: 0.245
A9: Mike Zunino | B9: TB - C | C9: 329 | D9: 44/266 | E9: 30 | F9: 9 | G9: 32 | H9: 0 | I9: 0.165
A10: Danny Jansen | B10: Tor - C | C10: 331 | D10: 72/347 | E10: 41 | F10: 13 | G10: 43 | H10: 0 | I10: 0.207
A11: Roberto Pérez | B11: Cle - C | C11: 343 | D11: 93/389 | E11: 46 | F11: 24 | G11: 63 | H11: 0 | I11: 0.239
A12: Robinson Chirinos | B12: Tex - C | C12: 364 | D12: 87/366 | E12: 57 | F12: 17 | G12: 58 | H12: 1 | I12: 0.238
A13: Jason Castro | B13: LAA - C | C13: 371 | D13: 55/237 | E13: 39 | F13: 13 | G13: 30 | H13: 0 | I13: 0.232
A14: James McCann | B14: CWS - C | C14: 512 | D14: 120/439 | E14: 62 | F14: 18 | G14: 60 | H14: 4 | I14: 0.273
A15: Austin Romine | B15: Det - C | C15: 1679 | D15: 64/228 | E15: 29 | F15: 8 | G15: 35 | H15: 1 | I15: 0.281
A16: Pedro Severino | B16: Bal - C | C16: 1699 | D16: 76/305 | E16: 37 | F16: 13 | G16: 44 | H16: 3 | I16: 0.249
A17: Jonathan Lucroy | B17: Bos - C | C17: 1753 | D17: 68/293 | E17: 30 | F17: 8 | G17: 36 | H17: 0 | I17: 0.232
A18: Martín Maldonado | B18: Hou - C | C18: 1756 | D18: 71/333 | E18: 46 | F18: 12 | G18: 27 | H18: 0 | I18: 0.213
A19: Willians Astudillo | B19: Min - C,1B,3B | C19: 1775 | D19: 51/190 | E19: 28 | F19: 4 | G19: 21 | H19: 0 | I19: 0.268
A20: Isiah Kiner-Falefa | B20: Tex - C,3B | C20: 1785 | D20: 48/202 | E20: 23 | F20: 1 | G20: 21 | H20: 3 | I20: 0.238
A21: Kevan Smith | B21: TB - C | C21: 1790 | D21: 48/191 | E21: 21 | F21: 5 | G21: 20 | H21: 2 | I21: 0.251
A22: Chris Iannetta | B22: NYY - C | C22: 1797 | D22: 32/144 | E22: 20 | F22: 6 | G22: 21 | H22: 0 | I22: 0.222
A23: Alex Avila | B23: Min - C | C23: 1821 | D23: 34/164 | E23: 22 | F23: 9 | G23: 24 | H23: 1 | I23: 0.207
A24: Chance Sisco | B24: Bal - C | C24: 1824 | D24: 35/167 | E24: 29 | F24: 8 | G24: 20 | H24: 0 | I24: 0.21
A25: Reese McGuire | B25: Tor - C | C25: 1826 | D25: 29/97 | E25: 14 | F25: 5 | G25: 11 | H25: 0 | I25: 0.299
A26: Bryan Holaday | B26: Bal - C | C26: 1857 | D26: 32/115 | E26: 12 | F26: 4 | G26: 12 | H26: 0 | I26: 0.278
A27: Kevin Plawecki | B27: Bos - C | C27: 1861 | D27: 35/158 | E27: 13 | F27: 3 | G27: 17 | H27: 0 | I27: 0.222
A28: Jose Trevino | B28: Tex - C | C28: 1864 | D28: 31/120 | E28: 18 | F28: 2 | G28: 13 | H28: 0 | I28: 0.258
A29: Dustin Garneau | B29: Hou - C | C29: 1871 | D29: 21/86 | E29: 14 | F29: 3 | G29: 14 | H29: 0 | I29: 0.244
A30: Blake Swihart | B30: Tex - C,OF | C30: 1879 | D30: 15/92 | E30: 13 | F30: 4 | G30: 13 | H30: 0 | I30: 0.163
A31: Cam Gallagher | B31: KC - C | C31: 1888 | D31: 30/126 | E31: 14 | F31: 3 | G31: 12 | H31: 0 | I31: 0.238
A32: Sandy León | B32: Cle - C | C32: 1899 | D32: 33/172 | E32: 14 | F32: 5 | G32: 19 | H32: 0 | I32: 0.192
A33: Grayson Greiner | B33: Det - C | C33: 1900 | D33: 42/208 | E33: 18 | F33: 5 | G33: 19 | H33: 0 | I33: 0.202
A34: Kyle Higashioka | B34: NYY - C | C34: 1904 | D34: 12/56 | E34: 8 | F34: 3 | G34: 11 | H34: 0 | I34: 0.214
A35: Austin Wynns | B35: Bal - C | C35: 1919 | D35: 15/70 | E35: 8 | F35: 1 | G35: 5 | H35: 0 | I35: 0.214
A36: Zack Collins | B36: CWS - C | C36: 1930 | D36: 16/86 | E36: 10 | F36: 3 | G36: 12 | H36: 0 | I36: 0.186
A37: Nick Dini | B37: KC - C | C37: 1932 | D37: 11/56 | E37: 11 | F37: 2 | G37: 6 | H37: 0 | I37: 0.196
A38: Chris Herrmann | B38: TB - C | C38: 1944 | D38: 17/84 | E38: 9 | F38: 1 | G38: 8 | H38: 0 | I38: 0.202
A39: Michael Pérez | B39: TB - C | C39: 1953 | D39: 10/46 | E39: 6 | F39: 0 | G39: 2 | H39: 0 | I39: 0.217
A40: Tim Federowicz | B40: Tex - C | C40: 1957 | D40: 12/75 | E40: 6 | F40: 4 | G40: 7 | H40: 1 | I40: 0.16
A41: Meibrys Viloria | B41: KC - C | C41: 1959 | D41: 28/133 | E41: 7 | F41: 1 | G41: 15 | H41: 0 | I41: 0.211
A42: Garrett Stubbs | B42: Hou - C | C42: 1966 | D42: 7/35 | E42: 8 | F42: 0 | G42: 2 | H42: 1 | I42: 0.2
A43: José Briceño | B43: LAA - C | C43: 1969 | D43: -/- | E43: - | F43: - | G43: - | H43: - | I43: -
A44: Taylor Davis | B44: Bal - C | C44: 1985 | D44: 3/18 | E44: 2 | F44: 1 | G44: 4 | H44: 0 | I44: 0.167
A45: Beau Taylor | B45: Cle - C | C45: 2006 | D45: 4/25 | E45: 3 | F45: 2 | G45: 2 | H45: 0 | I45: 0.16
A46: Adam Moore | B46: Tex - C | C46: 2025 | D46: -/- | E46: - | F46: - | G46: - | H46: - | I46: -
A47: Erik Kratz | B47: NYY - C | C47: 2035 | D47: 5/49 | E47: 1 | F47: 1 | G47: 3 | H47: 0 | I47: 0.102
A48: Juan Graterol | B48: Min - C | C48: 2039 | D48: 4/18 | E48: 1 | F48: 0 | G48: 1 | H48: 0 | I48: 0.222
A49: Jesús Sucre | B49: Bal - C | C49: 2041 | D49: 13/62 | E49: 3 | F49: 0 | G49: 3 | H49: 0 | I49: 0.21
A50: Juan Centeno | B50: Bos - C | C50: 2044 | D50: 2/15 | E50: 0 | F50: 0 | G50: 2 | H50: 1 | I50: 0.133
A51: Carson Blair | B51: CWS - C | C51: 2079 | D51: -/- | E51: - | F51: - | G51: - | H51: - | I51: -
A52: Josh Breaux | B52: NYY - C | C52: 2089 | D52: -/- | E52: - | F52: - | G52: - | H52: - | I52: -
A53: Cameron Rupp | B53: Cle - C | C53: 2097 | D53: -/- | E53: - | F53: - | G53: - | H53: - | I53: -
A54: Cal Raleigh | B54: Sea - C | C54: 2117 | D54: -/- | E54: - | F54: - | G54: - | H54: - | I54: -
A55: Josh Thole | B55: NYY - C | C55: 2122 | D55: -/- | E55: - | F55: - | G55: - | H55: - | I55: -
A56: Jonah Heim | B56: Oak - C | C56: 2135 | D56: -/- | E56: - | F56: - | G56: - | H56: - | I56: -
A57: Ryan Jeffers | B57: Min - C | C57: 2137 | D57: -/- | E57: - | F57: - | G57: - | H57: - | I57: -
A58: Korey Lee | B58: Hou - C | C58: 2145 | D58: -/- | E58: - | F58: - | G58: - | H58: - | I58: -
A59: Joey Morgan | B59: Det - C | C59: 2147 | D59: -/- | E59: - | F59: - | G59: - | H59: - | I59: -
A60: MJ Melendez | B60: KC - C | C60: 2151 | D60: -/- | E60: - | F60: - | G60: - | H60: - | I60: -
A61: Derek Norris | B61: Det - C | C61: 2159 | D61: -/- | E61: - | F61: - | G61: - | H61: - | I61: -
A62: Wilin Rosario | B62: Min - C,1B | C62: 2231 | D62: -/- | E62: - | F62: - | G62: - | H62: - | I62: -
A63: Adley Rutschman | B63: Bal - C | C63: 2240 | D63: -/- | E63: - | F63: - | G63: - | H63: - | I63: -
A64: Gabriel Moreno | B64: Tor - C | C64: 2250 | D64: -/- | E64: - | F64: - | G64: - | H64: - | I64: -
A65: Ronaldo Hernández | B65: TB - C | C65: 2251 | D65: -/- | E65: - | F65: - | G65: - | H65: - | I65: -
A66: Anthony Seigler | B66: NYY - C | C66: 2254 | D66: -/- | E66: - | F66: - | G66: - | H66: - | I66: -
A67: Steve Clevenger | B67: Sea - C | C67: 2273 | D67: -/- | E67: - | F67: - | G67: - | H67: - | I67: -
A68: Bo Naylor | B68: Cle - C | C68: 2285 | D68: -/- | E68: - | F68: - | G68: - | H68: - | I68: -
A69: Yermín Mercedes | B69: CWS - C | C69: 2333 | D69: -/- | E69: - | F69: - | G69: - | H69: - | I69: -
A70: Tony Sanchez | B70: Tex - C | C70: 2352 | D70: -/- | E70: - | F70: - | G70: - | H70: - | I70: -
A71: Ben Rortvedt | B71: Min - C | C71: 2379 | D71: -/- | E71: - | F71: - | G71: - | H71: - | I71: -
A72: Dioner Navarro | B72: Cle - C | C72: 2383 | D72: -/- | E72: - | F72: - | G72: - | H72: - | I72: -
A73: Kade Scivicque | B73: Det - C | C73: 2396 | D73: -/- | E73: - | F73: - | G73: - | H73: - | I73: -
A74: Connor Wong | B74: Bos - C | C74: 2434 | D74: -/- | E74: - | F74: - | G74: - | H74: - | I74: -
A75: Chase Vallot | B75: KC - C | C75: 2479 | D75: -/- | E75: - | F75: - | G75: - | H75: - | I75: -
A76: Alejandro Kirk | B76: Tor - C | C76: 2493 | D76: -/- | E76: - | F76: - | G76: - | H76: - | I76: -
A77: Hector Sanchez | B77: Det - C | C77: 2533 | D77: -/- | E77: - | F77: - | G77: - | H77: - | I77: -
A78: Sam Huff | B78: Tex - C | C78: 2542 | D78: -/- | E78: - | F78: - | G78: - | H78: - | I78: -
A79: Audry Pérez | B79: Bal - C | C79: 2564 | D79: -/- | E79: - | F79: - | G79: - | H79: - | I79: -
A80: Nick Ciuffo | B80: Tex - C | C80: 2590 | D80: 1/6 | E80: 0 | F80: 0 | G80: 0 | H80: 0 | I80: 0.167
A81: Tomás Telis | B81: Min - C | C81: 2591 | D81: -/- | E81: - | F81: - | G81: - | H81: - | I81: -
A82: Jett Bandy | B82: Bos - C | C82: 2605 | D82: -/- | E82: - | F82: - | G82: - | H82: - | I82: -
A83: Alfredo González | B83: CWS - C | C83: 2609 | D83: -/- | E83: - | F83: - | G83: - | H83: - | I83: -
A84: Joe Hudson | B84: Sea - C | C84: 2615 | D84: 0/1 | E84: 0 | F84: 0 | G84: 0 | H84: 0 | I84: 0
A85: Austin Allen | B85: Oak - C | C85: 2616 | D85: 14/65 | E85: 4 | F85: 0 | G85: 3 | H85: 0 | I85: 0.215
A86: Eric Haase | B86: Det - C | C86: 2626 | D86: 1/16 | E86: 1 | F86: 1 | G86: 3 | H86: 0 | I86: 0.063
A87: Carlos Perez | B87: Oak - C | C87: 2632 | D87: -/- | E87: - | F87: - | G87: - | H87: - | I87: -
A88: Seby Zavala | B88: CWS - C | C88: 2638 | D88: 1/12 | E88: 1 | F88: 0 | G88: 0 | H88: 0 | I88: 0.083
A89: Jake Rogers | B89: Det - C | C89: 2648 | D89: 14/112 | E89: 11 | F89: 4 | G89: 8 | H89: 0 | I89: 0.125
A90: Anthony Bemboom | B90: LAA - C | C90: 2652 | D90: 7/54 | E90: 2 | F90: 1 | G90: 4 | H90: 0 | I90: 0.13
A91: Max Stassi | B91: LAA - C | C91: 2654 | D91: 18/132 | E91: 7 | F91: 1 | G91: 5 | H91: 0 | I91: 0.136
A92: Jeff Mathis | B92: Tex - C | C92: 2660 | D92: 36/228 | E92: 17 | F92: 2 | G92: 12 | H92: 1 | I92: 0.158

Sheet 1st Base
A1: Player | B1: Team | C1: Rank | D1: H/AB | E1: R | F1: HR | G1: RBI | H1: SB | I1: Avg.
A2: Matt Olson | B2: Oak - 1B | C2: 63 | D2: 129/483 | E2: 73 | F2: 36 | G2: 91 | H2: 0 | I2: 0.267
A3: José Abreu | B3: CWS - 1B | C3: 71 | D3: 180/634 | E3: 85 | F3: 33 | G3: 123 | H3: 2 | I3: 0.284
A4: DJ LeMahieu | B4: NYY - 1B,2B,3B | C4: 72 | D4: 197/602 | E4: 109 | F4: 26 | G4: 102 | H4: 5 | I4: 0.327
A5: Yasmani Grandal | B5: CWS - C,1B | C5: 99 | D5: 126/513 | E5: 79 | F5: 28 | G5: 77 | H5: 5 | I5: 0.246
A6: Miguel Sanó | B6: Min - 1B,3B | C6: 138 | D6: 94/380 | E6: 76 | F6: 34 | G6: 79 | H6: 0 | I6: 0.247
A7: Trey Mancini | B7: Bal - 1B,OF | C7: 141 | D7: 175/602 | E7: 106 | F7: 35 | G7: 97 | H7: 1 | I7: 0.291
A8: Carlos Santana | B8: Cle - 1B | C8: 150 | D8: 161/573 | E8: 110 | F8: 34 | G8: 93 | H8: 4 | I8: 0.281
A9: Danny Santana | B9: Tex - 1B,2B,3B,SS,OF | C9: 172 | D9: 134/474 | E9: 81 | F9: 28 | G9: 81 | H9: 21 | I9: 0.283
A10: Luke Voit | B10: NYY - 1B | C10: 199 | D10: 113/429 | E10: 72 | F10: 21 | G10: 62 | H10: 0 | I10: 0.263
A11: Yuli Gurriel | B11: Hou - 1B,3B | C11: 214 | D11: 168/564 | E11: 85 | F11: 31 | G11: 104 | H11: 5 | I11: 0.298
A12: Brandon Lowe | B12: TB - 1B,2B,OF | C12: 217 | D12: 80/296 | E12: 42 | F12: 17 | G12: 51 | H12: 5 | I12: 0.27
A13: Edwin Encarnación | B13: CWS - 1B | C13: 221 | D13: 102/418 | E13: 81 | F13: 34 | G13: 86 | H13: 0 | I13: 0.244
A14: Hunter Dozier | B14: KC - 1B,3B,OF | C14: 238 | D14: 146/523 | E14: 75 | F14: 26 | G14: 84 | H14: 2 | I14: 0.279
A15: Michael Chavis | B15: Bos - 1B,2B | C15: 246 | D15: 88/347 | E15: 46 | F15: 18 | G15: 58 | H15: 2 | I15: 0.254
A16: C.J. Cron | B16: Det - 1B | C16: 247 | D16: 116/458 | E16: 51 | F16: 25 | G16: 78 | H16: 0 | I16: 0.253
A17: Mark Canha | B17: Oak - 1B,OF | C17: 254 | D17: 112/410 | E17: 80 | F17: 26 | G17: 58 | H17: 3 | I17: 0.273
A18: Christian Vázquez | B18: Bos - C,1B | C18: 256 | D18: 133/482 | E18: 66 | F18: 23 | G18: 72 | H18: 4 | I18: 0.276
A19: Yandy Díaz | B19: TB - 1B,3B | C19: 268 | D19: 82/307 | E19: 53 | F19: 14 | G19: 38 | H19: 2 | I19: 0.267
A20: Nate Lowe | B20: TB - 1B | C20: 310 | D20: 40/152 | E20: 24 | F20: 7 | G20: 19 | H20: 0 | I20: 0.263
A21: Miguel Cabrera | B21: Det - 1B | C21: 332 | D21: 139/493 | E21: 41 | F21: 12 | G21: 59 | H21: 0 | I21: 0.282
A22: Niko Goodrum | B22: Det - 1B,2B,SS,OF | C22: 339 | D22: 105/423 | E22: 61 | F22: 12 | G22: 45 | H22: 12 | I22: 0.248
A23: Renato Núñez | B23: Bal - 1B,3B | C23: 342 | D23: 132/541 | E23: 72 | F23: 31 | G23: 90 | H23: 1 | I23: 0.244
A24: Evan White | B24: Sea - 1B | C24: 372 | D24: -/- | E24: - | F24: - | G24: - | H24: - | I24: -
A25: Albert Pujols | B25: LAA - 1B | C25: 428 | D25: 120/491 | E25: 55 | F25: 23 | G25: 93 | H25: 3 | I25: 0.244
A26: Mitch Moreland | B26: Bos - 1B | C26: 545 | D26: 75/298 | E26: 48 | F26: 19 | G26: 58 | H26: 1 | I26: 0.252
A27: Ji-Man Choi | B27: TB - 1B | C27: 557 | D27: 107/410 | E27: 54 | F27: 19 | G27: 63 | H27: 2 | I27: 0.261
A28: Marwin Gonzalez | B28: Min - 1B,3B,OF | C28: 561 | D28: 112/425 | E28: 52 | F28: 15 | G28: 55 | H28: 1 | I28: 0.264
A29: Daniel Vogelbach | B29: Sea - 1B | C29: 1280 | D29: 96/462 | E29: 73 | F29: 30 | G29: 76 | H29: 0 | I29: 0.208
A30: Aledmys Díaz | B30: Hou - 1B,2B,3B | C30: 1531 | D30: 57/210 | E30: 36 | F30: 9 | G30: 40 | H30: 2 | I30: 0.271
A31: Rowdy Tellez | B31: Tor - 1B | C31: 1627 | D31: 84/370 | E31: 49 | F31: 21 | G31: 54 | H31: 1 | I31: 0.227
A32: Brandon Dixon | B32: Det - 1B,OF | C32: 1652 | D32: 97/391 | E32: 41 | F32: 15 | G32: 52 | H32: 5 | I32: 0.248
A33: Jake Bauers | B33: Cle - 1B,OF | C33: 1680 | D33: 84/372 | E33: 46 | F33: 12 | G33: 43 | H33: 3 | I33: 0.226
A34: Ronald Guzmán | B34: Tex - 1B | C34: 1713 | D34: 56/256 | E34: 34 | F34: 10 | G34: 36 | H34: 1 | I34: 0.219
A35: Ehire Adrianza | B35: Min - 1B,2B,3B,SS,OF | C35: 1728 | D35: 55/202 | E35: 34 | F35: 5 | G35: 22 | H35: 0 | I35: 0.272
A36: Austin Nola | B36: Sea - 1B,2B | C36: 1733 | D36: 64/238 | E36: 37 | F36: 10 | G36: 31 | H36: 1 | I36: 0.269
A37: Jordy Mercer | B37: Det - 1B,2B,SS | C37: 1743 | D37: 69/256 | E37: 24 | F37: 9 | G37: 22 | H37: 0 | I37: 0.27
A38: Jeimer Candelario | B38: Det - 1B,3B | C38: 1759 | D38: 68/335 | E38: 33 | F38: 8 | G38: 32 | H38: 3 | I38: 0.203
A39: Mike Ford | B39: NYY - 1B | C39: 1761 | D39: 37/143 | E39: 30 | F39: 12 | G39: 25 | H39: 0 | I39: 0.259
A40: Rio Ruiz | B40: Bal - 1B,3B | C40: 1768 | D40: 86/370 | E40: 35 | F40: 12 | G40: 46 | H40: 0 | I40: 0.232
A41: Cheslor Cuthbert | B41: CWS - 1B,3B | C41: 1777 | D41: 76/309 | E41: 24 | F41: 9 | G41: 40 | H41: 1 | I41: 0.246
A42: Willians Astudillo | B42: Min - C,1B,3B | C42: 1779 | D42: 51/190 | E42: 28 | F42: 4 | G42: 21 | H42: 0 | I42: 0.268
A43: Brandon Drury | B43: Tor - 1B,2B,3B,OF | C43: 1780 | D43: 91/418 | E43: 43 | F43: 15 | G43: 41 | H43: 0 | I43: 0.218
A44: Ryan O'Hearn | B44: KC - 1B | C44: 1782 | D44: 64/328 | E44: 32 | F44: 14 | G44: 38 | H44: 0 | I44: 0.195
A45: Kendrys Morales | B45: NYY - 1B | C45: 1842 | D45: 33/170 | E45: 16 | F45: 2 | G45: 12 | H45: 0 | I45: 0.194
A46: Chris Davis | B46: Bal - 1B | C46: 1847 | D46: 55/307 | E46: 26 | F46: 12 | G46: 36 | H46: 0 | I46: 0.179
A47: Matt Thaiss | B47: LAA - 1B,3B | C47: 1850 | D47: 31/147 | E47: 17 | F47: 8 | G47: 23 | H47: 0 | I47: 0.211
A48: Sam Travis | B48: Tex - 1B,OF | C48: 1858 | D48: 31/144 | E48: 17 | F48: 6 | G48: 16 | H48: 2 | I48: 0.215
A49: Danny Valencia | B49: Bal - 1B,3B | C49: 1905 | D49: -/- | E49: - | F49: - | G49: - | H49: - | I49: -
A50: Ryan McBroom | B50: KC - 1B,OF | C50: 1919 | D50: 22/75 | E50: 8 | F50: 0 | G50: 6 | H50: 0 | I50: 0.293
A51: Greg Bird | B51: Tex - 1B | C51: 1925 | D51: 6/35 | E51: 6 | F51: 1 | G51: 1 | H51: 0 | I51: 0.171
A52: Ryan Rua | B52: Tex - 1B,OF | C52: 1963 | D52: -/- | E52: - | F52: - | G52: - | H52: - | I52: -
A53: Ryan Court | B53: Oak - 1B | C53: 1989 | D53: 5/24 | E53: 1 | F53: 1 | G53: 5 | H53: 0 | I53: 0.208
A54: Matt Skole | B54: CWS - 1B | C54: 1990 | D54: 15/72 | E54: 7 | F54: 0 | G54: 6 | H54: 0 | I54: 0.208
A55: Brendan McKay (Batter) | B55: TB - 1B | C55: 2005 | D55: 2/10 | E55: 2 | F55: 1 | G55: 1 | H55: 0 | I55: 0.2
A56: Jared Walsh | B56: LAA - 1B | C56: 2019 | D56: 16/79 | E56: 6 | F56: 1 | G56: 5 | H56: 0 | I56: 0.203
A57: Bobby Bradley | B57: Cle - 1B | C57: 2024 | D57: 8/45 | E57: 4 | F57: 1 | G57: 4 | H57: 0 | I57: 0.178
A58: Patrick Kivlehan | B58: Tor - 1B,OF | C58: 2037 | D58: -/- | E58: - | F58: - | G58: - | H58: - | I58: -
A59: Matt Domínguez | B59: Bos - 1B,3B | C59: 2087 | D59: -/- | E59: - | F59: - | G59: - | H59: - | I59: -
A60: Eric Campbell | B60: Oak - 1B,3B | C60: 2141 | D60: -/- | E60: - | F60: - | G60: - | H60: - | I60: -
A61: Garin Cecchini | B61: KC - 1B,OF | C61: 2201 | D61: -/- | E61: - | F61: - | G61: - | H61: - | I61: -
A62: Wilin Rosario | B62: Min - C,1B | C62: 2231 | D62: -/- | E62: - | F62: - | G62: - | H62: - | I62: -
A63: Casey McGehee | B63: Det - 1B,3B | C63: 2260 | D63: -/- | E63: - | F63: - | G63: - | H63: - | I63: -
A64: Kennys Vargas | B64: Det - 1B | C64: 2278 | D64: -/- | E64: - | F64: - | G64: - | H64: - | I64: -
A65: Matt Hague | B65: Sea - 1B | C65: 2279 | D65: -/- | E65: - | F65: - | G65: - | H65: - | I65: -
A66: Chris Johnson | B66: CWS - 1B,3B | C66: 2292 | D66: -/- | E66: - | F66: - | G66: - | H66: - | I66: -
A67: Adam Lind | B67: NYY - 1B | C67: 2332 | D67: -/- | E67: - | F67: - | G67: - | H67: - | I67: -
A68: Joey Curletta | B68: LAA - 1B | C68: 2370 | D68: -/- | E68: - | F68: - | G68: - | H68: - | I68: -
A69: Juan Francisco | B69: TB - 1B,3B | C69: 2372 | D69: -/- | E69: - | F69: - | G69: - | H69: - | I69: -
A70: Gavin Sheets | B70: CWS - 1B | C70: 2384 | D70: -/- | E70: - | F70: - | G70: - | H70: - | I70: -
A71: Andrew Vaughn | B71: CWS - 1B | C71: 2388 | D71: -/- | E71: - | F71: - | G71: - | H71: - | I71: -
A72: Jose Marmolejos | B72: Sea - 1B | C72: 2418 | D72: -/- | E72: - | F72: - | G72: - | H72: - | I72: -
A73: Chris Marrero | B73: Bos - 1B,OF | C73: 2437 | D73: -/- | E73: - | F73: - | G73: - | H73: - | I73: -
A74: Reynaldo Rivera | B74: Det - 1B | C74: 2453 | D74: -/- | E74: - | F74: - | G74: - | H74: - | I74: -
A75: Jon Singleton | B75: Hou - 1B | C75: 2455 | D75: -/- | E75: - | F75: - | G75: - | H75: - | I75: -
A76: Joey Meneses | B76: Bos - 1B | C76: 2476 | D76: -/- | E76: - | F76: - | G76: - | H76: - | I76: -
A77: Tommy Joseph | B77: Bos - 1B | C77: 2480 | D77: -/- | E77: - | F77: - | G77: - | H77: - | I77: -
A78: Taylor Jones | B78: Hou - 1B | C78: 2497 | D78: -/- | E78: - | F78: - | G78: - | H78: - | I78: -
A79: Nick Pratto | B79: KC - 1B | C79: 2499 | D79: -/- | E79: - | F79: - | G79: - | H79: - | I79: -
A80: Josh Ockimey | B80: Bos - 1B | C80: 2554 | D80: -/- | E80: - | F80: - | G80: - | H80: - | I80: -
A81: Jesús Montero | B81: Tor - 1B | C81: 2557 | D81: -/- | E81: - | F81: - | G81: - | H81: - | I81: -
A82: Frank Schwindel | B82: Det - 1B | C82: 2649 | D82: 1/15 | E82: 0 | F82: 0 | G82: 0 | H82: 0 | I82: 0.067

Sheet 2nd Base
A1: Player | B1: Team | C1: Rank | D1: H/AB | E1: R | F1: HR | G1: RBI | H1: SB | I1: Avg.
A2: Gleyber Torres | B2: NYY - 2B,SS | C2: 29 | D2: 152/546 | E2: 96 | F2: 38 | G2: 90 | H2: 5 | I2: 0.278
A3: Jose Altuve | B3: Hou - 2B | C3: 33 | D3: 149/500 | E3: 89 | F3: 31 | G3: 74 | H3: 6 | I3: 0.298
A4: Whit Merrifield | B4: KC - 2B,OF | C4: 45 | D4: 206/681 | E4: 105 | F4: 16 | G4: 74 | H4: 20 | I4: 0.302
A5: DJ LeMahieu | B5: NYY - 1B,2B,3B | C5: 72 | D5: 197/602 | E5: 109 | F5: 26 | G5: 102 | H5: 5 | I5: 0.327
A6: Danny Santana | B6: Tex - 1B,2B,3B,SS,OF | C6: 172 | D6: 134/474 | E6: 81 | F6: 28 | G6: 81 | H6: 21 | I6: 0.283
A7: Cavan Biggio | B7: Tor - 2B,OF | C7: 181 | D7: 83/354 | E7: 66 | F7: 16 | G7: 48 | H7: 14 | I7: 0.234
A8: Brandon Lowe | B8: TB - 1B,2B,OF | C8: 217 | D8: 80/296 | E8: 42 | F8: 17 | G8: 51 | H8: 5 | I8: 0.27
A9: Rougned Odor | B9: Tex - 2B | C9: 223 | D9: 107/522 | E9: 77 | F9: 30 | G9: 93 | H9: 11 | I9: 0.205
A10: Lourdes Gurriel Jr. | B10: Tor - 2B,OF | C10: 231 | D10: 87/314 | E10: 52 | F10: 20 | G10: 50 | H10: 6 | I10: 0.277
A11: Michael Chavis | B11: Bos - 1B,2B | C11: 246 | D11: 88/347 | E11: 46 | F11: 18 | G11: 58 | H11: 2 | I11: 0.254
A12: César Hernández | B12: Cle - 2B | C12: 258 | D12: 171/612 | E12: 77 | F12: 14 | G12: 71 | H12: 9 | I12: 0.279
A13: Nick Solak | B13: Tex - 2B,3B | C13: 272 | D13: 34/116 | E13: 19 | F13: 5 | G13: 17 | H13: 2 | I13: 0.293
A14: Dee Gordon | B14: Sea - 2B | C14: 290 | D14: 108/393 | E14: 36 | F14: 3 | G14: 34 | H14: 22 | I14: 0.275
A15: Nick Madrigal | B15: CWS - 2B,SS | C15: 298 | D15: -/- | E15: - | F15: - | G15: - | H15: - | I15: -
A16: Luis Arraez | B16: Min - 2B,3B,OF | C16: 305 | D16: 109/326 | E16: 54 | F16: 4 | G16: 28 | H16: 2 | I16: 0.334
A17: Tommy La Stella | B17: LAA - 2B,3B | C17: 334 | D17: 86/292 | E17: 49 | F17: 16 | G17: 44 | H17: 0 | I17: 0.295
A18: Niko Goodrum | B18: Det - 1B,2B,SS,OF | C18: 339 | D18: 105/423 | E18: 61 | F18: 12 | G18: 45 | H18: 12 | I18: 0.248
A19: José Peraza | B19: Bos - 2B,SS,OF | C19: 350 | D19: 90/376 | E19: 37 | F19: 6 | G19: 33 | H19: 7 | I19: 0.239
A20: Hanser Alberto | B20: Bal - 2B,3B | C20: 355 | D20: 160/524 | E20: 62 | F20: 12 | G20: 51 | H20: 4 | I20: 0.305
A21: Jonathan Schoop | B21: Det - 2B | C21: 356 | D21: 111/433 | E21: 61 | F21: 23 | G21: 59 | H21: 1 | I21: 0.256
A22: David Fletcher | B22: LAA - 2B,3B,SS,OF | C22: 451 | D22: 173/596 | E22: 83 | F22: 6 | G22: 49 | H22: 8 | I22: 0.29
A23: Aledmys Díaz | B23: Hou - 1B,2B,3B | C23: 1527 | D23: 57/210 | E23: 36 | F23: 9 | G23: 40 | H23: 2 | I23: 0.271
A24: Chad Pinder | B24: Oak - 2B,3B,OF | C24: 1644 | D24: 82/341 | E24: 45 | F24: 13 | G24: 47 | H24: 0 | I24: 0.24
A25: Tim Beckham | B25: Sea - 2B,3B,SS,OF | C25: 1650 | D25: 72/304 | E25: 39 | F25: 15 | G25: 47 | H25: 1 | I25: 0.237
A26: Joey Wendle | B26: TB - 2B,3B,SS | C26: 1677 | D26: 55/238 | E26: 32 | F26: 3 | G26: 19 | H26: 8 | I26: 0.231
A27: Joe Panik | B27: Tor - 2B | C27: 1697 | D27: 107/438 | E27: 50 | F27: 5 | G27: 39 | H27: 4 | I27: 0.244
A28: Harold Castro | B28: Det - 2B,3B,OF | C28: 1698 | D28: 103/354 | E28: 30 | F28: 5 | G28: 38 | H28: 4 | I28: 0.291
A29: Ehire Adrianza | B29: Min - 1B,2B,3B,SS,OF | C29: 1724 | D29: 55/202 | E29: 34 | F29: 5 | G29: 22 | H29: 0 | I29: 0.272
A30: Austin Nola | B30: Sea - 1B,2B | C30: 1729 | D30: 64/238 | E30: 37 | F30: 10 | G30: 31 | H30: 1 | I30: 0.269
A31: Jordy Mercer | B31: Det - 1B,2B,SS | C31: 1739 | D31: 69/256 | E31: 24 | F31: 9 | G31: 22 | H31: 0 | I31: 0.27
A32: Tony Kemp | B32: Oak - 2B,OF | C32: 1745 | D32: 52/245 | E32: 31 | F32: 8 | G32: 29 | H32: 4 | I32: 0.212
A33: Stevie Wilkerson | B33: Bal - 2B,OF | C33: 1767 | D33: 74/329 | E33: 41 | F33: 10 | G33: 35 | H33: 3 | I33: 0.225
A34: Dylan Moore | B34: Sea - 2B,3B,SS,OF | C34: 1770 | D34: 51/247 | E34: 31 | F34: 9 | G34: 28 | H34: 11 | I34: 0.206
A35: Luís Rengifo | B35: LAA - 2B,SS | C35: 1771 | D35: 85/357 | E35: 44 | F35: 7 | G35: 33 | H35: 2 | I35: 0.238
A36: Brandon Drury | B36: Tor - 1B,2B,3B,OF | C36: 1776 | D36: 91/418 | E36: 43 | F36: 15 | G36: 41 | H36: 0 | I36: 0.218
A37: Mike Freeman | B37: Cle - 2B,3B,SS | C37: 1788 | D37: 49/177 | E37: 27 | F37: 4 | G37: 24 | H37: 1 | I37: 0.277
A38: Nicky Lopez | B38: KC - 2B,SS | C38: 1806 | D38: 91/379 | E38: 44 | F38: 2 | G38: 30 | H38: 1 | I38: 0.24
A39: Daniel Robertson | B39: TB - 2B,3B,SS | C39: 1810 | D39: 44/207 | E39: 23 | F39: 2 | G39: 19 | H39: 2 | I39: 0.213
A40: Shed Long | B40: Sea - 2B,OF | C40: 1818 | D40: 40/152 | E40: 21 | F40: 5 | G40: 15 | H40: 3 | I40: 0.263
A41: Mike Brosseau | B41: TB - 2B,3B,OF | C41: 1823 | D41: 36/132 | E41: 17 | F41: 6 | G41: 16 | H41: 1 | I41: 0.273
A42: Tyler Wade | B42: NYY - 2B,OF | C42: 1828 | D42: 23/94 | E42: 16 | F42: 2 | G42: 11 | H42: 7 | I42: 0.245
A43: Thairo Estrada | B43: NYY - 2B | C43: 1850 | D43: 16/64 | E43: 12 | F43: 3 | G43: 12 | H43: 4 | I43: 0.25
A44: Marco Hernández | B44: Bos - 2B | C44: 1877 | D44: 37/148 | E44: 18 | F44: 2 | G44: 11 | H44: 1 | I44: 0.25
A45: Alen Hanson | B45: Sea - 2B | C45: 1878 | D45: 7/43 | E45: 5 | F45: 0 | G45: 4 | H45: 1 | I45: 0.163
A46: Devon Travis | B46: Tor - 2B | C46: 1889 | D46: -/- | E46: - | F46: - | G46: - | H46: - | I46: -
A47: José Rondón | B47: Bal - 2B,3B,SS | C47: 1929 | D47: 28/143 | E47: 10 | F47: 3 | G47: 9 | H47: 0 | I47: 0.196
A48: Richard Ureña | B48: Bal - 2B,SS | C48: 1945 | D48: 18/74 | E48: 4 | F48: 0 | G48: 4 | H48: 0 | I48: 0.243
A49: Franklin Barreto | B49: Oak - 2B | C49: 1955 | D49: 7/57 | E49: 6 | F49: 2 | G49: 5 | H49: 1 | I49: 0.123
A50: Sheldon Neuse | B50: Oak - 2B | C50: 1970 | D50: 14/56 | E50: 3 | F50: 0 | G50: 7 | H50: 0 | I50: 0.25
A51: Chase d'Arnaud | B51: Tex - 2B,SS | C51: 1980 | D51: -/- | E51: - | F51: - | G51: - | H51: - | I51: -
A52: Dilson Herrera | B52: Bal - 2B,SS | C52: 1981 | D52: -/- | E52: - | F52: - | G52: - | H52: - | I52: -
A53: Andrew Romine | B53: CWS - 2B,OF | C53: 2015 | D53: -/- | E53: - | F53: - | G53: - | H53: - | I53: -
A54: Pat Valaika | B54: Bal - 2B | C54: 2016 | D54: 15/79 | E54: 11 | F54: 1 | G54: 4 | H54: 0 | I54: 0.19
A55: Rob Refsnyder | B55: Tex - 2B,OF | C55: 2028 | D55: -/- | E55: - | F55: - | G55: - | H55: - | I55: -
A56: Nate Orf | B56: Oak - 2B,OF | C56: 2033 | D56: -/- | E56: - | F56: - | G56: - | H56: - | I56: -
A57: Brandon Phillips | B57: Bos - 2B,3B | C57: 2036 | D57: -/- | E57: - | F57: - | G57: - | H57: - | I57: -
A58: Nolan Fontana | B58: Tex - 2B,SS | C58: 2051 | D58: -/- | E58: - | F58: - | G58: - | H58: - | I58: -
A59: Ramón Torres | B59: CWS - 2B,3B | C59: 2052 | D59: -/- | E59: - | F59: - | G59: - | H59: - | I59: -
A60: Travis Blankenhorn | B60: Min - 2B | C60: 2076 | D60: -/- | E60: - | F60: - | G60: - | H60: - | I60: -
A61: Ivan De Jesus Jr. | B61: Bos - 2B,SS | C61: 2090 | D61: -/- | E61: - | F61: - | G61: - | H61: - | I61: -
A62: Tony Renda | B62: Bos - 2B,OF | C62: 2091 | D62: -/- | E62: - | F62: - | G62: - | H62: - | I62: -
A63: Mike Miller | B63: Bos - 2B,SS | C63: 2129 | D63: -/- | E63: - | F63: - | G63: - | H63: - | I63: -
A64: Brett Lawrie | B64: CWS - 2B | C64: 2171 | D64: -/- | E64: - | F64: - | G64: - | H64: - | I64: -
A65: Andy Ibáñez | B65: Tex - 2B | C65: 2268 | D65: -/- | E65: - | F65: - | G65: - | H65: - | I65: -
A66: Nick Noonan | B66: Oak - 2B,SS | C66: 2283 | D66: -/- | E66: - | F66: - | G66: - | H66: - | I66: -
A67: Arismendy Alcantara | B67: LAA - 2B,SS | C67: 2296 | D67: -/- | E67: - | F67: - | G67: - | H67: - | I67: -
A68: Pedro Ciriaco | B68: Tex - 2B,3B | C68: 2315 | D68: -/- | E68: - | F68: - | G68: - | H68: - | I68: -
A69: Kody Clemens | B69: Det - 2B | C69: 2324 | D69: -/- | E69: - | F69: - | G69: - | H69: - | I69: -
A70: Taylor Featherston | B70: KC - 2B | C70: 2339 | D70: -/- | E70: - | F70: - | G70: - | H70: - | I70: -
A71: Jordany Valdespin | B71: Min - 2B,OF | C71: 2346 | D71: -/- | E71: - | F71: - | G71: - | H71: - | I71: -
A72: Leonardo Jimenez | B72: Tor - 2B | C72: 2349 | D72: -/- | E72: - | F72: - | G72: - | H72: - | I72: -
A73: Forrest Wall | B73: Tor - 2B | C73: 2359 | D73: -/- | E73: - | F73: - | G73: - | H73: - | I73: -
A74: Eli White | B74: Tex - 2B | C74: 2386 | D74: -/- | E74: - | F74: - | G74: - | H74: - | I74: -
A75: Marcos Brito | B75: Oak - 2B | C75: 2414 | D75: -/- | E75: - | F75: - | G75: - | H75: - | I75: -
A76: Alexi Casilla | B76: Tor - 2B,SS | C76: 2424 | D76: -/- | E76: - | F76: - | G76: - | H76: - | I76: -
A77: Vidal Bruján | B77: TB - 2B | C77: 2426 | D77: -/- | E77: - | F77: - | G77: - | H77: - | I77: -
A78: Michael Martínez | B78: Cle - 2B,OF | C78: 2452 | D78: -/- | E78: - | F78: - | G78: - | H78: - | I78: -
A79: Jordan Pacheco | B79: Min - 2B,3B | C79: 2472 | D79: -/- | E79: - | F79: - | G79: - | H79: - | I79: -
A80: Steve Lombardozzi | B80: Oak - 2B,OF | C80: 2517 | D80: -/- | E80: - | F80: - | G80: - | H80: - | I80: -
A81: Jonathan Arauz | B81: Bos - 2B,SS | C81: 2549 | D81: -/- | E81: - | F81: - | G81: - | H81: - | I81: -
A82: Yunior Severino | B82: Min - 2B | C82: 2551 | D82: -/- | E82: - | F82: - | G82: - | H82: - | I82: -
A83: Sam Haggerty | B83: Sea - 2B,OF | C83: 2592 | D83: 0/4 | E83: 2 | F83: 0 | G83: 0 | H83: 0 | I83: 0
A84: Christopher Bostick | B84: Bal - 2B | C84: 2594 | D84: -/- | E84: - | F84: - | G84: - | H84: - | I84: -
A85: Éngelb Vielma | B85: Bal - 2B,SS | C85: 2596 | D85: -/- | E85: - | F85: - | G85: - | H85: - | I85: -
A86: Matt Reynolds | B86: KC - 2B,3B | C86: 2599 | D86: -/- | E86: - | F86: - | G86: - | H86: - | I86: -
A87: Darnell Sweeney | B87: Tor - 2B,OF | C87: 2600 | D87: -/- | E87: - | F87: - | G87: - | H87: - | I87: -
A88: Dustin Pedroia | B88: Bos - 2B | C88: 2646 | D88: 2/20 | E88: 1 | F88: 0 | G88: 1 | H88: 0 | I88: 0.1

Sheet 3rd Base
A1: Player | B1: Team | C1: Rank | D1: H/AB | E1: R | F1: HR | G1: RBI | H1: SB | I1: Avg.
A2: Alex Bregman | B2: Hou - 3B,SS | C2: 17 | D2: 164/554 | E2: 122 | F2: 41 | G2: 112 | H2: 5 | I2: 0.296
A3: José Ramírez | B3: Cle - 3B | C3: 18 | D3: 123/482 | E3: 68 | F3: 23 | G3: 83 | H3: 24 | I3: 0.255
A4: Anthony Rendon | B4: LAA - 3B | C4: 22 | D4: 174/545 | E4: 117 | F4: 34 | G4: 126 | H4: 5 | I4: 0.319
A5: Rafael Devers | B5: Bos - 3B | C5: 24 | D5: 201/647 | E5: 129 | F5: 32 | G5: 115 | H5: 8 | I5: 0.311
A6: Vladimir Guerrero Jr. | B6: Tor - 3B | C6: 46 | D6: 126/464 | E6: 52 | F6: 15 | G6: 69 | H6: 0 | I6: 0.272
A7: Yoán Moncada | B7: CWS - 3B | C7: 57 | D7: 161/511 | E7: 83 | F7: 25 | G7: 79 | H7: 10 | I7: 0.315
A8: DJ LeMahieu | B8: NYY - 1B,2B,3B | C8: 72 | D8: 197/602 | E8: 109 | F8: 26 | G8: 102 | H8: 5 | I8: 0.327
A9: Matt Chapman | B9: Oak - 3B | C9: 86 | D9: 145/583 | E9: 102 | F9: 36 | G9: 91 | H9: 1 | I9: 0.249
A10: Josh Donaldson | B10: Min - 3B | C10: 87 | D10: 142/549 | E10: 96 | F10: 37 | G10: 94 | H10: 4 | I10: 0.259
A11: Miguel Sanó | B11: Min - 1B,3B | C11: 138 | D11: 94/380 | E11: 76 | F11: 34 | G11: 79 | H11: 0 | I11: 0.247
A12: Danny Santana | B12: Tex - 1B,2B,3B,SS,OF | C12: 172 | D12: 134/474 | E12: 81 | F12: 28 | G12: 81 | H12: 21 | I12: 0.283
A13: Yuli Gurriel | B13: Hou - 1B,3B | C13: 214 | D13: 168/564 | E13: 85 | F13: 31 | G13: 104 | H13: 5 | I13: 0.298
A14: Hunter Dozier | B14: KC - 1B,3B,OF | C14: 238 | D14: 146/523 | E14: 75 | F14: 26 | G14: 84 | H14: 2 | I14: 0.279
A15: Gio Urshela | B15: NYY - 3B | C15: 253 | D15: 139/442 | E15: 73 | F15: 21 | G15: 74 | H15: 1 | I15: 0.314
A16: Yandy Díaz | B16: TB - 1B,3B | C16: 268 | D16: 82/307 | E16: 53 | F16: 14 | G16: 38 | H16: 2 | I16: 0.267
A17: Nick Solak | B17: Tex - 2B,3B | C17: 272 | D17: 34/116 | E17: 19 | F17: 5 | G17: 17 | H17: 2 | I17: 0.293
A18: Luis Arraez | B18: Min - 2B,3B,OF | C18: 305 | D18: 109/326 | E18: 54 | F18: 4 | G18: 28 | H18: 2 | I18: 0.334
A19: Tommy La Stella | B19: LAA - 2B,3B | C19: 334 | D19: 86/292 | E19: 49 | F19: 16 | G19: 44 | H19: 0 | I19: 0.295
A20: Renato Núñez | B20: Bal - 1B,3B | C20: 342 | D20: 132/541 | E20: 72 | F20: 31 | G20: 90 | H20: 1 | I20: 0.244
A21: Hanser Alberto | B21: Bal - 2B,3B | C21: 355 | D21: 160/524 | E21: 62 | F21: 12 | G21: 51 | H21: 4 | I21: 0.305
A22: Travis Shaw | B22: Tor - 3B | C22: 365 | D22: 36/230 | E22: 22 | F22: 7 | G22: 16 | H22: 0 | I22: 0.157
A23: Kyle Seager | B23: Sea - 3B | C23: 368 | D23: 94/393 | E23: 55 | F23: 23 | G23: 63 | H23: 2 | I23: 0.239
A24: David Fletcher | B24: LAA - 2B,3B,SS,OF | C24: 451 | D24: 173/596 | E24: 83 | F24: 6 | G24: 49 | H24: 8 | I24: 0.29
A25: Todd Frazier | B25: Tex - 3B | C25: 486 | D25: 112/447 | E25: 63 | F25: 21 | G25: 67 | H25: 1 | I25: 0.251
A26: Marwin Gonzalez | B26: Min - 1B,3B,OF | C26: 561 | D26: 112/425 | E26: 52 | F26: 15 | G26: 55 | H26: 1 | I26: 0.264
A27: Maikel Franco | B27: KC - 3B | C27: 1350 | D27: 91/389 | E27: 48 | F27: 17 | G27: 56 | H27: 0 | I27: 0.234
A28: Aledmys Díaz | B28: Hou - 1B,2B,3B | C28: 1527 | D28: 57/210 | E28: 36 | F28: 9 | G28: 40 | H28: 2 | I28: 0.271
A29: Chad Pinder | B29: Oak - 2B,3B,OF | C29: 1644 | D29: 82/341 | E29: 45 | F29: 13 | G29: 47 | H29: 0 | I29: 0.24
A30: Tim Beckham | B30: Sea - 2B,3B,SS,OF | C30: 1650 | D30: 72/304 | E30: 39 | F30: 15 | G30: 47 | H30: 1 | I30: 0.237
A31: Joey Wendle | B31: TB - 2B,3B,SS | C31: 1677 | D31: 55/238 | E31: 32 | F31: 3 | G31: 19 | H31: 8 | I31: 0.231
A32: Harold Castro | B32: Det - 2B,3B,OF | C32: 1698 | D32: 103/354 | E32: 30 | F32: 5 | G32: 38 | H32: 4 | I32: 0.291
A33: Ehire Adrianza | B33: Min - 1B,2B,3B,SS,OF | C33: 1724 | D33: 55/202 | E33: 34 | F33: 5 | G33: 22 | H33: 0 | I33: 0.272
A34: Jeimer Candelario | B34: Det - 1B,3B | C34: 1755 | D34: 68/335 | E34: 33 | F34: 8 | G34: 32 | H34: 3 | I34: 0.203
A35: Rio Ruiz | B35: Bal - 1B,3B | C35: 1764 | D35: 86/370 | E35: 35 | F35: 12 | G35: 46 | H35: 0 | I35: 0.232
A36: Dylan Moore | B36: Sea - 2B,3B,SS,OF | C36: 1770 | D36: 51/247 | E36: 31 | F36: 9 | G36: 28 | H36: 11 | I36: 0.206
A37: Cheslor Cuthbert | B37: CWS - 1B,3B | C37: 1773 | D37: 76/309 | E37: 24 | F37: 9 | G37: 40 | H37: 1 | I37: 0.246
A38: Willians Astudillo | B38: Min - C,1B,3B | C38: 1775 | D38: 51/190 | E38: 28 | F38: 4 | G38: 21 | H38: 0 | I38: 0.268
A39: Brandon Drury | B39: Tor - 1B,2B,3B,OF | C39: 1776 | D39: 91/418 | E39: 43 | F39: 15 | G39: 41 | H39: 0 | I39: 0.218
A40: Isiah Kiner-Falefa | B40: Tex - C,3B | C40: 1785 | D40: 48/202 | E40: 23 | F40: 1 | G40: 21 | H40: 3 | I40: 0.238
A41: Mike Freeman | B41: Cle - 2B,3B,SS | C41: 1788 | D41: 49/177 | E41: 27 | F41: 4 | G41: 24 | H41: 1 | I41: 0.277
A42: Matt Duffy | B42: Tex - 3B | C42: 1792 | D42: 37/147 | E42: 12 | F42: 1 | G42: 12 | H42: 0 | I42: 0.252
A43: Dawel Lugo | B43: Det - 3B | C43: 1808 | D43: 67/273 | E43: 28 | F43: 6 | G43: 26 | H43: 0 | I43: 0.245
A44: Daniel Robertson | B44: TB - 2B,3B,SS | C44: 1810 | D44: 44/207 | E44: 23 | F44: 2 | G44: 19 | H44: 2 | I44: 0.213
A45: Mike Brosseau | B45: TB - 2B,3B,OF | C45: 1823 | D45: 36/132 | E45: 17 | F45: 6 | G45: 16 | H45: 1 | I45: 0.273
A46: Matt Thaiss | B46: LAA - 1B,3B | C46: 1846 | D46: 31/147 | E46: 17 | F46: 8 | G46: 23 | H46: 0 | I46: 0.211
A47: Ryan Goins | B47: Oak - 3B,SS | C47: 1896 | D47: 36/144 | E47: 13 | F47: 2 | G47: 10 | H47: 0 | I47: 0.25
A48: Danny Valencia | B48: Bal - 1B,3B | C48: 1901 | D48: -/- | E48: - | F48: - | G48: - | H48: - | I48: -
A49: Abraham Toro | B49: Hou - 3B | C49: 1902 | D49: 17/78 | E49: 13 | F49: 2 | G49: 9 | H49: 1 | I49: 0.218
A50: Christian Arroyo | B50: Cle - 3B | C50: 1911 | D50: 11/50 | E50: 8 | F50: 2 | G50: 7 | H50: 0 | I50: 0.22
A51: Kelvin Gutierrez | B51: KC - 3B | C51: 1913 | D51: 19/73 | E51: 4 | F51: 1 | G51: 11 | H51: 1 | I51: 0.26
A52: José Rondón | B52: Bal - 2B,3B,SS | C52: 1929 | D52: 28/143 | E52: 10 | F52: 3 | G52: 9 | H52: 0 | I52: 0.196
A53: Yadiel Rivera | B53: Tex - 3B | C53: 1974 | D53: 11/60 | E53: 8 | F53: 0 | G53: 3 | H53: 2 | I53: 0.183
A54: Ryder Jones | B54: Bos - 3B | C54: 2007 | D54: -/- | E54: - | F54: - | G54: - | H54: - | I54: -
A55: Yu Chang | B55: Cle - 3B | C55: 2014 | D55: 13/73 | E55: 8 | F55: 1 | G55: 6 | H55: 0 | I55: 0.178
A56: Brandon Phillips | B56: Bos - 2B,3B | C56: 2036 | D56: -/- | E56: - | F56: - | G56: - | H56: - | I56: -
A57: Jack Reinheimer | B57: Min - 3B,SS | C57: 2049 | D57: -/- | E57: - | F57: - | G57: - | H57: - | I57: -
A58: Ramón Torres | B58: CWS - 2B,3B | C58: 2052 | D58: -/- | E58: - | F58: - | G58: - | H58: - | I58: -
A59: Jose Miranda | B59: Min - 3B | C59: 2068 | D59: -/- | E59: - | F59: - | G59: - | H59: - | I59: -
A60: Jomar Reyes | B60: Bal - 3B | C60: 2080 | D60: -/- | E60: - | F60: - | G60: - | H60: - | I60: -
A61: Matt Domínguez | B61: Bos - 1B,3B | C61: 2087 | D61: -/- | E61: - | F61: - | G61: - | H61: - | I61: -
A62: Josh Jung | B62: Tex - 3B | C62: 2103 | D62: -/- | E62: - | F62: - | G62: - | H62: - | I62: -
A63: Triston Casas | B63: Bos - 3B | C63: 2123 | D63: -/- | E63: - | F63: - | G63: - | H63: - | I63: -
A64: Eric Campbell | B64: Oak - 1B,3B | C64: 2141 | D64: -/- | E64: - | F64: - | G64: - | H64: - | I64: -
A65: Chris Coghlan | B65: Tor - 3B,OF | C65: 2152 | D65: -/- | E65: - | F65: - | G65: - | H65: - | I65: -
A66: Rylan Bannon | B66: Bal - 3B | C66: 2220 | D66: -/- | E66: - | F66: - | G66: - | H66: - | I66: -
A67: Luis Jiménez | B67: Bos - 3B | C67: 2224 | D67: -/- | E67: - | F67: - | G67: - | H67: - | I67: -
A68: Nick Quintana | B68: Det - 3B | C68: 2243 | D68: -/- | E68: - | F68: - | G68: - | H68: - | I68: -
A69: Casey McGehee | B69: Det - 1B,3B | C69: 2260 | D69: -/- | E69: - | F69: - | G69: - | H69: - | I69: -
A70: Sherten Apostel | B70: Tex - 3B | C70: 2269 | D70: -/- | E70: - | F70: - | G70: - | H70: - | I70: -
A71: Bobby Dalbec | B71: Bos - 3B | C71: 2272 | D71: -/- | E71: - | F71: - | G71: - | H71: - | I71: -
A72: Chris Johnson | B72: CWS - 1B,3B | C72: 2292 | D72: -/- | E72: - | F72: - | G72: - | H72: - | I72: -
A73: Davis Wendzel | B73: Tex - 3B | C73: 2313 | D73: -/- | E73: - | F73: - | G73: - | H73: - | I73: -
A74: Pedro Ciriaco | B74: Tex - 2B,3B | C74: 2315 | D74: -/- | E74: - | F74: - | G74: - | H74: - | I74: -
A75: Josh Lowe | B75: TB - 3B | C75: 2319 | D75: -/- | E75: - | F75: - | G75: - | H75: - | I75: -
A76: Emmanuel Rivera | B76: KC - 3B | C76: 2326 | D76: -/- | E76: - | F76: - | G76: - | H76: - | I76: -
A77: Danny Díaz | B77: Bos - 3B | C77: 2364 | D77: -/- | E77: - | F77: - | G77: - | H77: - | I77: -
A78: Kevin Padlo | B78: TB - 3B | C78: 2368 | D78: -/- | E78: - | F78: - | G78: - | H78: - | I78: -
A79: Juan Francisco | B79: TB - 1B,3B | C79: 2372 | D79: -/- | E79: - | F79: - | G79: - | H79: - | I79: -
A80: Cody Asche | B80: Min - 3B,OF | C80: 2381 | D80: -/- | E80: - | F80: - | G80: - | H80: - | I80: -
A81: Nolan Jones | B81: Cle - 3B | C81: 2382 | D81: -/- | E81: - | F81: - | G81: - | H81: - | I81: -
A82: Steve Selsky | B82: Bos - 3B,OF | C82: 2411 | D82: -/- | E82: - | F82: - | G82: - | H82: - | I82: -
A83: JC Encarnación | B83: Bal - 3B | C83: 2432 | D83: -/- | E83: - | F83: - | G83: - | H83: - | I83: -
A84: Jonathan Ornelas | B84: Tex - 3B | C84: 2456 | D84: -/- | E84: - | F84: - | G84: - | H84: - | I84: -
A85: Brandon Howlett | B85: Bos - 3B | C85: 2458 | D85: -/- | E85: - | F85: - | G85: - | H85: - | I85: -
A86: Joe Rizzo | B86: Sea - 3B | C86: 2459 | D86: -/- | E86: - | F86: - | G86: - | H86: - | I86: -
A87: Andrew Bechtold | B87: Min - 3B | C87: 2466 | D87: -/- | E87: - | F87: - | G87: - | H87: - | I87: -
A88: Jordan Pacheco | B88: Min - 2B,3B | C88: 2472 | D88: -/- | E88: - | F88: - | G88: - | H88: - | I88: -
A89: Jordan Groshans | B89: Tor - 3B | C89: 2500 | D89: -/- | E89: - | F89: - | G89: - | H89: - | I89: -
A90: Miguel Hiraldo | B90: Tor - 3B | C90: 2524 | D90: -/- | E90: - | F90: - | G90: - | H90: - | I90: -
A91: Yoshi Tsutsugo | B91: TB - 3B,OF | C91: 2566 | D91: -/- | E91: - | F91: - | G91: - | H91: - | I91: -
A92: Jake Burger | B92: CWS - 3B | C92: 2571 | D92: -/- | E92: - | F92: - | G92: - | H92: - | I92: -
A93: Nick Northcut | B93: Bos - 3B | C93: 2577 | D93: -/- | E93: - | F93: - | G93: - | H93: - | I93: -
A94: Matt Reynolds | B94: KC - 2B,3B | C94: 2599 | D94: -/- | E94: - | F94: - | G94: - | H94: - | I94: -

Sheet Short Stop
A1: Player | B1: Team | C1: Rank | D1: H/AB | E1: R | F1: HR | G1: RBI | H1: SB | I1: Avg.
A2: Francisco Lindor | B2: Cle - SS | C2: 6 | D2: 170/598 | E2: 101 | F2: 32 | G2: 74 | H2: 22 | I2: 0.284
A3: Alex Bregman | B3: Hou - 3B,SS | C3: 17 | D3: 164/554 | E3: 122 | F3: 41 | G3: 112 | H3: 5 | I3: 0.296
A4: Gleyber Torres | B4: NYY - 2B,SS | C4: 29 | D4: 152/546 | E4: 96 | F4: 38 | G4: 90 | H4: 5 | I4: 0.278
A5: Xander Bogaerts | B5: Bos - SS | C5: 31 | D5: 190/614 | E5: 110 | F5: 33 | G5: 117 | H5: 4 | I5: 0.309
A6: Adalberto Mondesi | B6: KC - SS | C6: 38 | D6: 109/415 | E6: 58 | F6: 9 | G6: 62 | H6: 43 | I6: 0.263
A7: Bo Bichette | B7: Tor - SS | C7: 61 | D7: 61/196 | E7: 32 | F7: 11 | G7: 21 | H7: 4 | I7: 0.311
A8: Marcus Semien | B8: Oak - SS | C8: 64 | D8: 187/657 | E8: 123 | F8: 33 | G8: 92 | H8: 10 | I8: 0.285
A9: Tim Anderson | B9: CWS - SS | C9: 76 | D9: 167/498 | E9: 81 | F9: 18 | G9: 56 | H9: 17 | I9: 0.335
A10: Carlos Correa | B10: Hou - SS | C10: 91 | D10: 78/280 | E10: 42 | F10: 21 | G10: 59 | H10: 1 | I10: 0.279
A11: Jorge Polanco | B11: Min - SS | C11: 118 | D11: 186/631 | E11: 107 | F11: 22 | G11: 79 | H11: 4 | I11: 0.295
A12: Elvis Andrus | B12: Tex - SS | C12: 134 | D12: 165/600 | E12: 81 | F12: 12 | G12: 72 | H12: 31 | I12: 0.275
A13: Danny Santana | B13: Tex - 1B,2B,3B,SS,OF | C13: 172 | D13: 134/474 | E13: 81 | F13: 28 | G13: 81 | H13: 21 | I13: 0.283
A14: Nick Madrigal | B14: CWS - 2B,SS | C14: 298 | D14: -/- | E14: - | F14: - | G14: - | H14: - | I14: -
A15: Willy Adames | B15: TB - SS | C15: 311 | D15: 135/531 | E15: 69 | F15: 20 | G15: 52 | H15: 4 | I15: 0.254
A16: Niko Goodrum | B16: Det - 1B,2B,SS,OF | C16: 339 | D16: 105/423 | E16: 61 | F16: 12 | G16: 45 | H16: 12 | I16: 0.248
A17: Andrelton Simmons | B17: LAA - SS | C17: 349 | D17: 105/398 | E17: 47 | F17: 7 | G17: 40 | H17: 10 | I17: 0.264
A18: José Peraza | B18: Bos - 2B,SS,OF | C18: 350 | D18: 90/376 | E18: 37 | F18: 6 | G18: 33 | H18: 7 | I18: 0.239
A19: Wander Franco | B19: TB - SS | C19: 379 | D19: -/- | E19: - | F19: - | G19: - | H19: - | I19: -
A20: Leury García | B20: CWS - SS,OF | C20: 419 | D20: 161/577 | E20: 93 | F20: 8 | G20: 40 | H20: 15 | I20: 0.279
A21: José Iglesias | B21: Bal - SS | C21: 431 | D21: 145/504 | E21: 62 | F21: 11 | G21: 59 | H21: 6 | I21: 0.288
A22: David Fletcher | B22: LAA - 2B,3B,SS,OF | C22: 451 | D22: 173/596 | E22: 83 | F22: 6 | G22: 49 | H22: 8 | I22: 0.29
A23: Tim Beckham | B23: Sea - 2B,3B,SS,OF | C23: 1650 | D23: 72/304 | E23: 39 | F23: 15 | G23: 47 | H23: 1 | I23: 0.237
A24: Joey Wendle | B24: TB - 2B,3B,SS | C24: 1677 | D24: 55/238 | E24: 32 | F24: 3 | G24: 19 | H24: 8 | I24: 0.231
A25: Ehire Adrianza | B25: Min - 1B,2B,3B,SS,OF | C25: 1724 | D25: 55/202 | E25: 34 | F25: 5 | G25: 22 | H25: 0 | I25: 0.272
A26: J.P. Crawford | B26: Sea - SS | C26: 1727 | D26: 78/345 | E26: 43 | F26: 7 | G26: 46 | H26: 5 | I26: 0.226
A27: Jordy Mercer | B27: Det - 1B,2B,SS | C27: 1739 | D27: 69/256 | E27: 24 | F27: 9 | G27: 22 | H27: 0 | I27: 0.27
A28: Dylan Moore | B28: Sea - 2B,3B,SS,OF | C28: 1770 | D28: 51/247 | E28: 31 | F28: 9 | G28: 28 | H28: 11 | I28: 0.206
A29: Luís Rengifo | B29: LAA - 2B,SS | C29: 1771 | D29: 85/357 | E29: 44 | F29: 7 | G29: 33 | H29: 2 | I29: 0.238
A30: Mike Freeman | B30: Cle - 2B,3B,SS | C30: 1788 | D30: 49/177 | E30: 27 | F30: 4 | G30: 24 | H30: 1 | I30: 0.277
A31: Myles Straw | B31: Hou - SS,OF | C31: 1800 | D31: 29/108 | E31: 27 | F31: 0 | G31: 7 | H31: 8 | I31: 0.269
A32: Nicky Lopez | B32: KC - 2B,SS | C32: 1806 | D32: 91/379 | E32: 44 | F32: 2 | G32: 30 | H32: 1 | I32: 0.24
A33: Daniel Robertson | B33: TB - 2B,3B,SS | C33: 1810 | D33: 44/207 | E33: 23 | F33: 2 | G33: 19 | H33: 2 | I33: 0.213
A34: Richie Martin | B34: Bal - SS | C34: 1814 | D34: 59/283 | E34: 29 | F34: 6 | G34: 23 | H34: 10 | I34: 0.208
A35: Ryan Goins | B35: Oak - 3B,SS | C35: 1896 | D35: 36/144 | E35: 13 | F35: 2 | G35: 10 | H35: 0 | I35: 0.25
A36: José Rondón | B36: Bal - 2B,3B,SS | C36: 1929 | D36: 28/143 | E36: 10 | F36: 3 | G36: 9 | H36: 0 | I36: 0.196
A37: Willi Castro | B37: Det - SS | C37: 1939 | D37: 23/100 | E37: 10 | F37: 1 | G37: 8 | H37: 0 | I37: 0.23
A38: Richard Ureña | B38: Bal - 2B,SS | C38: 1945 | D38: 18/74 | E38: 4 | F38: 0 | G38: 4 | H38: 0 | I38: 0.243
A39: Chase d'Arnaud | B39: Tex - 2B,SS | C39: 1980 | D39: -/- | E39: - | F39: - | G39: - | H39: - | I39: -
A40: Dilson Herrera | B40: Bal - 2B,SS | C40: 1981 | D40: -/- | E40: - | F40: - | G40: - | H40: - | I40: -
A41: Jack Mayfield | B41: Hou - SS | C41: 2013 | D41: 10/64 | E41: 8 | F41: 2 | G41: 5 | H41: 0 | I41: 0.156
A42: Zach Vincej | B42: Bal - SS | C42: 2034 | D42: -/- | E42: - | F42: - | G42: - | H42: - | I42: -
A43: Jack Reinheimer | B43: Min - 3B,SS | C43: 2049 | D43: -/- | E43: - | F43: - | G43: - | H43: - | I43: -
A44: Nolan Fontana | B44: Tex - 2B,SS | C44: 2051 | D44: -/- | E44: - | F44: - | G44: - | H44: - | I44: -
A45: Cameron Cannon | B45: Bos - SS | C45: 2059 | D45: -/- | E45: - | F45: - | G45: - | H45: - | I45: -
A46: C.J. Chatham | B46: Bos - SS | C46: 2061 | D46: -/- | E46: - | F46: - | G46: - | H46: - | I46: -
A47: Royce Lewis | B47: Min - SS | C47: 2064 | D47: -/- | E47: - | F47: - | G47: - | H47: - | I47: -
A48: Luis Curbelo | B48: CWS - SS | C48: 2069 | D48: -/- | E48: - | F48: - | G48: - | H48: - | I48: -
A49: Laz Rivera | B49: CWS - SS | C49: 2074 | D49: -/- | E49: - | F49: - | G49: - | H49: - | I49: -
A50: Xavier Edwards | B50: TB - SS | C50: 2075 | D50: -/- | E50: - | F50: - | G50: - | H50: - | I50: -
A51: Ivan De Jesus Jr. | B51: Bos - 2B,SS | C51: 2090 | D51: -/- | E51: - | F51: - | G51: - | H51: - | I51: -
A52: Bobby Witt Jr. | B52: KC - SS | C52: 2095 | D52: -/- | E52: - | F52: - | G52: - | H52: - | I52: -
A53: Tyler Freeman | B53: Cle - SS | C53: 2096 | D53: -/- | E53: - | F53: - | G53: - | H53: - | I53: -
A54: Kyren Paris | B54: LAA - SS | C54: 2113 | D54: -/- | E54: - | F54: - | G54: - | H54: - | I54: -
A55: Leonardo Rivas | B55: LAA - SS | C55: 2114 | D55: -/- | E55: - | F55: - | G55: - | H55: - | I55: -
A56: Adam Hall | B56: Bal - SS | C56: 2121 | D56: -/- | E56: - | F56: - | G56: - | H56: - | I56: -
A57: Mike Miller | B57: Bos - 2B,SS | C57: 2129 | D57: -/- | E57: - | F57: - | G57: - | H57: - | I57: -
A58: Juan Querecuto | B58: Sea - SS | C58: 2149 | D58: -/- | E58: - | F58: - | G58: - | H58: - | I58: -
A59: Yerdel Vargas | B59: Oak - SS | C59: 2154 | D59: -/- | E59: - | F59: - | G59: - | H59: - | I59: -
A60: Luis Santana | B60: Hou - SS | C60: 2165 | D60: -/- | E60: - | F60: - | G60: - | H60: - | I60: -
A61: Roberto Baldoquín | B61: LAA - SS | C61: 2167 | D61: -/- | E61: - | F61: - | G61: - | H61: - | I61: -
A62: Maximo Acosta | B62: Tex - SS | C62: 2176 | D62: -/- | E62: - | F62: - | G62: - | H62: - | I62: -
A63: Orelvis Martinez | B63: Tor - SS | C63: 2177 | D63: -/- | E63: - | F63: - | G63: - | H63: - | I63: -
A64: Ronny Brito | B64: Tor - SS | C64: 2184 | D64: -/- | E64: - | F64: - | G64: - | H64: - | I64: -
A65: Noelvi Marte | B65: Sea - SS | C65: 2185 | D65: -/- | E65: - | F65: - | G65: - | H65: - | I65: -
A66: Isaac Paredes | B66: Det - SS | C66: 2211 | D66: -/- | E66: - | F66: - | G66: - | H66: - | I66: -
A67: Livan Soto | B67: LAA - SS | C67: 2212 | D67: -/- | E67: - | F67: - | G67: - | H67: - | I67: -
A68: Alexander Campos | B68: Oak - SS | C68: 2214 | D68: -/- | E68: - | F68: - | G68: - | H68: - | I68: -
A69: Robert Puason | B69: Oak - SS | C69: 2217 | D69: -/- | E69: - | F69: - | G69: - | H69: - | I69: -
A70: Kevin Merrell | B70: KC - SS | C70: 2228 | D70: -/- | E70: - | F70: - | G70: - | H70: - | I70: -
A71: Andy Burns | B71: Tor - SS | C71: 2232 | D71: -/- | E71: - | F71: - | G71: - | H71: - | I71: -
A72: Chris Seise | B72: Tex - SS | C72: 2238 | D72: -/- | E72: - | F72: - | G72: - | H72: - | I72: -
A73: Wander Javier | B73: Min - SS | C73: 2242 | D73: -/- | E73: - | F73: - | G73: - | H73: - | I73: -
A74: Grae Kessinger | B74: Hou - SS | C74: 2255 | D74: -/- | E74: - | F74: - | G74: - | H74: - | I74: -
A75: Kevin Maitan | B75: LAA - SS | C75: 2256 | D75: -/- | E75: - | F75: - | G75: - | H75: - | I75: -
A76: Gunnar Henderson | B76: Bal - SS | C76: 2270 | D76: -/- | E76: - | F76: - | G76: - | H76: - | I76: -
A77: Nick Noonan | B77: Oak - 2B,SS | C77: 2283 | D77: -/- | E77: - | F77: - | G77: - | H77: - | I77: -
A78: Jean Carmona | B78: Bal - SS | C78: 2286 | D78: -/- | E78: - | F78: - | G78: - | H78: - | I78: -
A79: Anderson Tejeda | B79: Tex - SS | C79: 2291 | D79: -/- | E79: - | F79: - | G79: - | H79: - | I79: -
A80: Raynel Delgado | B80: Cle - SS | C80: 2294 | D80: -/- | E80: - | F80: - | G80: - | H80: - | I80: -
A81: Arismendy Alcantara | B81: LAA - 2B,SS | C81: 2296 | D81: -/- | E81: - | F81: - | G81: - | H81: - | I81: -
A82: Jonathan Diaz | B82: Tor - SS | C82: 2321 | D82: -/- | E82: - | F82: - | G82: - | H82: - | I82: -
A83: Lucius Fox | B83: TB - SS | C83: 2327 | D83: -/- | E83: - | F83: - | G83: - | H83: - | I83: -
A84: Freudis Nova | B84: Hou - SS | C84: 2344 | D84: -/- | E84: - | F84: - | G84: - | H84: - | I84: -
A85: Wenceel Perez | B85: Det - SS | C85: 2360 | D85: -/- | E85: - | F85: - | G85: - | H85: - | I85: -
A86: Jeremy Peña | B86: Hou - SS | C86: 2367 | D86: -/- | E86: - | F86: - | G86: - | H86: - | I86: -
A87: Vimael Machin | B87: Oak - SS | C87: 2374 | D87: -/- | E87: - | F87: - | G87: - | H87: - | I87: -
A88: Nick Allen | B88: Oak - SS | C88: 2376 | D88: -/- | E88: - | F88: - | G88: - | H88: - | I88: -
A89: Miguelangel Sierra | B89: Hou - SS | C89: 2398 | D89: -/- | E89: - | F89: - | G89: - | H89: - | I89: -
A90: Jeison Guzman | B90: KC - SS | C90: 2400 | D90: -/- | E90: - | F90: - | G90: - | H90: - | I90: -
A91: Kevin Smith | B91: Tor - SS | C91: 2421 | D91: -/- | E91: - | F91: - | G91: - | H91: - | I91: -
A92: Alexi Casilla | B92: Tor - 2B,SS | C92: 2424 | D92: -/- | E92: - | F92: - | G92: - | H92: - | I92: -
A93: Logan Warmoth | B93: Tor - SS | C93: 2429 | D93: -/- | E93: - | F93: - | G93: - | H93: - | I93: -
A94: Will Holland | B94: Min - SS | C94: 2430 | D94: -/- | E94: - | F94: - | G94: - | H94: - | I94: -
A95: Antoni Flores | B95: Bos - SS | C95: 2433 | D95: -/- | E95: - | F95: - | G95: - | H95: - | I95: -
A96: Everth Cabrera | B96: CWS - SS | C96: 2436 | D96: -/- | E96: - | F96: - | G96: - | H96: - | I96: -
A97: Nonie Williams | B97: LAA - SS | C97: 2445 | D97: -/- | E97: - | F97: - | G97: - | H97: - | I97: -
A98: Ryan Mountcastle | B98: Bal - SS | C98: 2449 | D98: -/- | E98: - | F98: - | G98: - | H98: - | I98: -
A99: Aaron Bracho | B99: Cle - SS | C99: 2450 | D99: -/- | E99: - | F99: - | G99: - | H99: - | I99: -
A100: Jeremiah Jackson | B100: LAA - SS | C100: 2464 | D100: -/- | E100: - | F100: - | G100: - | H100: - | I100: -
A101: Greg Jones | B101: TB - SS | C101: 2482 | D101: -/- | E101: - | F101: - | G101: - | H101: - | I101: -
A102: Santiago Espinal | B102: Tor - SS | C102: 2483 | D102: -/- | E102: - | F102: - | G102: - | H102: - | I102: -
A103: Nick Gordon | B103: Min - SS | C103: 2490 | D103: -/- | E103: - | F103: - | G103: - | H103: - | I103: -
A104: Ramón Urías | B104: Bal - SS | C104: 2492 | D104: -/- | E104: - | F104: - | G104: - | H104: - | I104: -
A105: Brady McConnell | B105: KC - SS | C105: 2505 | D105: -/- | E105: - | F105: - | G105: - | H105: - | I105: -
A106: Gabriel Rodriguez | B106: Cle - SS | C106: 2508 | D106: -/- | E106: - | F106: - | G106: - | H106: - | I106: -
A107: Yordys Valdes | B107: Cle - SS | C107: 2509 | D107: -/- | E107: - | F107: - | G107: - | H107: - | I107: -
A108: Jeter Downs | B108: Bos - SS | C108: 2526 | D108: -/- | E108: - | F108: - | G108: - | H108: - | I108: -
A109: Anthony Volpe | B109: NYY - SS | C109: 2527 | D109: -/- | E109: - | F109: - | G109: - | H109: - | I109: -
A110: Brayan Rocchio | B110: Cle - SS | C110: 2540 | D110: -/- | E110: - | F110: - | G110: - | H110: - | I110: -
A111: Matthew Lugo | B111: Bos - SS | C111: 2541 | D111: -/- | E111: - | F111: - | G111: - | H111: - | I111: -
A112: Carlos Vargas | B112: TB - SS | C112: 2545 | D112: -/- | E112: - | F112: - | G112: - | H112: - | I112: -
A113: Jonathan Arauz | B113: Bos - 2B,SS | C113: 2549 | D113: -/- | E113: - | F113: - | G113: - | H113: - | I113: -
A114: Logan Davidson | B114: Oak - SS | C114: 2550 | D114: -/- | E114: - | F114: - | G114: - | H114: - | I114: -
A115: Jeremy Eierman | B115: Oak - SS | C115: 2552 | D115: -/- | E115: - | F115: - | G115: - | H115: - | I115: -
A116: Yolbert Sanchez | B116: CWS - SS | C116: 2560 | D116: -/- | E116: - | F116: - | G116: - | H116: - | I116: -
A117: Jorge Mateo | B117: Oak - SS | C117: 2562 | D117: -/- | E117: - | F117: - | G117: - | H117: - | I117: -
A118: Keoni Cavaco | B118: Min - SS | C118: 2573 | D118: -/- | E118: - | F118: - | G118: - | H118: - | I118: -
A119: Cadyn Grenier | B119: Bal - SS | C119: 2586 | D119: -/- | E119: - | F119: - | G119: - | H119: - | I119: -
A120: Sergio Alcántara | B120: Det - SS | C120: 2587 | D120: -/- | E120: - | F120: - | G120: - | H120: - | I120: -
A121: Éngelb Vielma | B121: Bal - 2B,SS | C121: 2596 | D121: -/- | E121: - | F121: - | G121: - | H121: - | I121: -
A122: Humberto Arteaga | B122: KC - SS | C122: 2627 | D122: 24/122 | E122: 11 | F122: 0 | G122: 4 | H122: 1 | I122: 0.197
A123: Wilfredo Tovar | B123: Min - SS | C123: 2640 | D123: 16/83 | E123: 5 | F123: 0 | G123: 5 | H123: 0 | I123: 0.193

Sheet Outfield
A1: Player | B1: Team | C1: Rank | D1: H/AB | E1: R | F1: HR | G1: RBI | H1: SB | I1: Avg.
A2: Mike Trout | B2: LAA - OF | C2: 2 | D2: 137/470 | E2: 110 | F2: 45 | G2: 104 | H2: 11 | I2: 0.291
A3: J.D. Martinez | B3: Bos - OF | C3: 19 | D3: 175/575 | E3: 98 | F3: 36 | G3: 105 | H3: 2 | I3: 0.304
A4: Yordan Alvarez | B4: Hou - OF | C4: 35 | D4: 98/313 | E4: 58 | F4: 27 | G4: 78 | H4: 0 | I4: 0.313
A5: Austin Meadows | B5: TB - OF | C5: 36 | D5: 154/530 | E5: 83 | F5: 33 | G5: 89 | H5: 12 | I5: 0.291
A6: Aaron Judge | B6: NYY - OF | C6: 39 | D6: 103/378 | E6: 75 | F6: 27 | G6: 55 | H6: 3 | I6: 0.272
A7: George Springer | B7: Hou - OF | C7: 42 | D7: 140/479 | E7: 96 | F7: 39 | G7: 96 | H7: 6 | I7: 0.292
A8: Giancarlo Stanton | B8: NYY - OF | C8: 43 | D8: 17/59 | E8: 8 | F8: 3 | G8: 13 | H8: 0 | I8: 0.288
A9: Whit Merrifield | B9: KC - 2B,OF | C9: 45 | D9: 206/681 | E9: 105 | F9: 16 | G9: 74 | H9: 20 | I9: 0.302
A10: Eloy Jiménez | B10: CWS - OF | C10: 65 | D10: 125/468 | E10: 69 | F10: 31 | G10: 79 | H10: 0 | I10: 0.267
A11: Eddie Rosario | B11: Min - OF | C11: 67 | D11: 155/562 | E11: 91 | F11: 32 | G11: 109 | H11: 3 | I11: 0.276
A12: Joey Gallo | B12: Tex - OF | C12: 80 | D12: 61/241 | E12: 54 | F12: 22 | G12: 49 | H12: 4 | I12: 0.253
A13: Jorge Soler | B13: KC - OF | C13: 83 | D13: 156/589 | E13: 95 | F13: 48 | G13: 117 | H13: 3 | I13: 0.265
A14: Ramón Laureano | B14: Oak - OF | C14: 89 | D14: 125/434 | E14: 79 | F14: 24 | G14: 67 | H14: 13 | I14: 0.288
A15: Andrew Benintendi | B15: Bos - OF | C15: 94 | D15: 144/541 | E15: 72 | F15: 13 | G15: 68 | H15: 10 | I15: 0.266
A16: Luis Robert | B16: CWS - OF | C16: 96 | D16: -/- | E16: - | F16: - | G16: - | H16: - | I16: -
A17: Oscar Mercado | B17: Cle - OF | C17: 105 | D17: 118/438 | E17: 70 | F17: 15 | G17: 54 | H17: 15 | I17: 0.269
A18: Franmil Reyes | B18: Cle - OF | C18: 106 | D18: 123/494 | E18: 69 | F18: 37 | G18: 81 | H18: 0 | I18: 0.249
A19: Michael Brantley | B19: Hou - OF | C19: 115 | D19: 179/575 | E19: 88 | F19: 22 | G19: 90 | H19: 3 | I19: 0.311
A20: Max Kepler | B20: Min - OF | C20: 119 | D20: 132/524 | E20: 98 | F20: 36 | G20: 90 | H20: 1 | I20: 0.252
A21: Byron Buxton | B21: Min - OF | C21: 130 | D21: 71/271 | E21: 48 | F21: 10 | G21: 46 | H21: 14 | I21: 0.262
A22: Yasiel Puig | B22: Cle - OF | C22: 132 | D22: 148/555 | E22: 76 | F22: 24 | G22: 84 | H22: 19 | I22: 0.267
A23: Trey Mancini | B23: Bal - 1B,OF | C23: 141 | D23: 175/602 | E23: 106 | F23: 35 | G23: 97 | H23: 1 | I23: 0.291
A24: Willie Calhoun | B24: Tex - OF | C24: 142 | D24: 83/309 | E24: 51 | F24: 21 | G24: 48 | H24: 0 | I24: 0.269
A25: Kyle Tucker | B25: Hou - OF | C25: 146 | D25: 18/67 | E25: 15 | F25: 4 | G25: 11 | H25: 5 | I25: 0.269
A26: Mallex Smith | B26: Sea - OF | C26: 153 | D26: 116/510 | E26: 70 | F26: 6 | G26: 37 | H26: 46 | I26: 0.227
A27: Justin Upton | B27: LAA - OF | C27: 164 | D27: 47/219 | E27: 34 | F27: 12 | G27: 40 | H27: 1 | I27: 0.215
A28: Danny Santana | B28: Tex - 1B,2B,3B,SS,OF | C28: 172 | D28: 134/474 | E28: 81 | F28: 28 | G28: 81 | H28: 21 | I28: 0.283
A29: Cavan Biggio | B29: Tor - 2B,OF | C29: 181 | D29: 83/354 | E29: 66 | F29: 16 | G29: 48 | H29: 14 | I29: 0.234
A30: Alex Verdugo | B30: Bos - OF | C30: 194 | D30: 101/343 | E30: 43 | F30: 12 | G30: 44 | H30: 4 | I30: 0.294
A31: Shin-soo Choo | B31: Tex - OF | C31: 208 | D31: 149/563 | E31: 93 | F31: 24 | G31: 61 | H31: 15 | I31: 0.265
A32: Brandon Lowe | B32: TB - 1B,2B,OF | C32: 217 | D32: 80/296 | E32: 42 | F32: 17 | G32: 51 | H32: 5 | I32: 0.27
A33: Nomar Mazara | B33: CWS - OF | C33: 225 | D33: 115/429 | E33: 69 | F33: 19 | G33: 66 | H33: 4 | I33: 0.268
A34: Hunter Renfroe | B34: TB - OF | C34: 226 | D34: 95/440 | E34: 64 | F34: 33 | G34: 64 | H34: 5 | I34: 0.216
A35: Lourdes Gurriel Jr. | B35: Tor - 2B,OF | C35: 231 | D35: 87/314 | E35: 52 | F35: 20 | G35: 50 | H35: 6 | I35: 0.277
A36: Hunter Dozier | B36: KC - 1B,3B,OF | C36: 238 | D36: 146/523 | E36: 75 | F36: 26 | G36: 84 | H36: 2 | I36: 0.279
A37: Mitch Haniger | B37: Sea - OF | C37: 240 | D37: 54/246 | E37: 46 | F37: 15 | G37: 32 | H37: 4 | I37: 0.22
A38: Brett Gardner | B38: NYY - OF | C38: 249 | D38: 123/491 | E38: 86 | F38: 28 | G38: 74 | H38: 10 | I38: 0.251
A39: Mark Canha | B39: Oak - 1B,OF | C39: 254 | D39: 112/410 | E39: 80 | F39: 26 | G39: 58 | H39: 3 | I39: 0.273
A40: Randal Grichuk | B40: Tor - OF | C40: 273 | D40: 136/586 | E40: 75 | F40: 31 | G40: 80 | H40: 2 | I40: 0.232
A41: Kevin Pillar | B41: Bos - OF | C41: 286 | D41: 158/611 | E41: 83 | F41: 21 | G41: 88 | H41: 14 | I41: 0.259
A42: Jo Adell | B42: LAA - OF | C42: 299 | D42: -/- | E42: - | F42: - | G42: - | H42: - | I42: -
A43: Luis Arraez | B43: Min - 2B,3B,OF | C43: 305 | D43: 109/326 | E43: 54 | F43: 4 | G43: 28 | H43: 2 | I43: 0.334
A44: Austin Hays | B44: Bal - OF | C44: 306 | D44: 21/68 | E44: 12 | F44: 4 | G44: 13 | H44: 2 | I44: 0.309
A45: Kevin Kiermaier | B45: TB - OF | C45: 326 | D45: 102/447 | E45: 60 | F45: 14 | G45: 55 | H45: 19 | I45: 0.228
A46: Stephen Piscotty | B46: Oak - OF | C46: 330 | D46: 89/357 | E46: 46 | F46: 13 | G46: 44 | H46: 2 | I46: 0.249
A47: Domingo Santana | B47: Cle - OF | C47: 335 | D47: 114/451 | E47: 63 | F47: 21 | G47: 69 | H47: 8 | I47: 0.253
A48: Niko Goodrum | B48: Det - 1B,2B,SS,OF | C48: 339 | D48: 105/423 | E48: 61 | F48: 12 | G48: 45 | H48: 12 | I48: 0.248
A49: José Peraza | B49: Bos - 2B,SS,OF | C49: 350 | D49: 90/376 | E49: 37 | F49: 6 | G49: 33 | H49: 7 | I49: 0.239
A50: Derek Fisher | B50: Tor - OF | C50: 353 | D50: 27/146 | E50: 23 | F50: 7 | G50: 17 | H50: 5 | I50: 0.185
A51: José Martínez | B51: TB - OF | C51: 357 | D51: 90/334 | E51: 45 | F51: 10 | G51: 42 | H51: 3 | I51: 0.269
A52: Mike Tauchman | B52: NYY - OF | C52: 369 | D52: 72/260 | E52: 46 | F52: 13 | G52: 47 | H52: 6 | I52: 0.277
A53: Teoscar Hernández | B53: Tor - OF | C53: 370 | D53: 96/417 | E53: 58 | F53: 26 | G53: 65 | H53: 6 | I53: 0.23
A54: Victor Reyes | B54: Det - OF | C54: 388 | D54: 84/276 | E54: 29 | F54: 3 | G54: 25 | H54: 9 | I54: 0.304
A55: Manuel Margot | B55: TB - OF | C55: 389 | D55: 93/398 | E55: 59 | F55: 12 | G55: 37 | H55: 20 | I55: 0.234
A56: Alex Gordon | B56: KC - OF | C56: 414 | D56: 148/556 | E56: 77 | F56: 13 | G56: 76 | H56: 5 | I56: 0.266
A57: Leury García | B57: CWS - SS,OF | C57: 419 | D57: 161/577 | E57: 93 | F57: 8 | G57: 40 | H57: 15 | I57: 0.279
A58: David Fletcher | B58: LAA - 2B,3B,SS,OF | C58: 451 | D58: 173/596 | E58: 83 | F58: 6 | G58: 49 | H58: 8 | I58: 0.29
A59: Josh Reddick | B59: Hou - OF | C59: 472 | D59: 138/501 | E59: 57 | F59: 14 | G59: 56 | H59: 5 | I59: 0.275
A60: Jackie Bradley Jr. | B60: Bos - OF | C60: 475 | D60: 111/494 | E60: 69 | F60: 21 | G60: 62 | H60: 8 | I60: 0.225
A61: Marwin Gonzalez | B61: Min - 1B,3B,OF | C61: 561 | D61: 112/425 | E61: 52 | F61: 15 | G61: 55 | H61: 1 | I61: 0.264
A62: Brian Goodwin | B62: LAA - OF | C62: 570 | D62: 108/413 | E62: 65 | F62: 17 | G62: 47 | H62: 7 | I62: 0.262
A63: Cameron Maybin | B63: Det - OF | C63: 1372 | D63: 68/239 | E63: 48 | F63: 11 | G63: 32 | H63: 9 | I63: 0.285
A64: Aaron Hicks | B64: NYY - OF | C64: 1386 | D64: 52/221 | E64: 41 | F64: 12 | G64: 36 | H64: 1 | I64: 0.235
A65: Delino DeShields | B65: Cle - OF | C65: 1446 | D65: 89/357 | E65: 42 | F65: 4 | G65: 32 | H65: 24 | I65: 0.249
A66: Anthony Santander | B66: Bal - OF | C66: 1519 | D66: 99/380 | E66: 46 | F66: 20 | G66: 59 | H66: 1 | I66: 0.261
A67: Robbie Grossman | B67: Oak - OF | C67: 1591 | D67: 101/420 | E67: 57 | F67: 6 | G67: 38 | H67: 9 | I67: 0.24
A68: Jordan Luplow | B68: Cle - OF | C68: 1619 | D68: 62/225 | E68: 42 | F68: 15 | G68: 38 | H68: 3 | I68: 0.276
A69: Chad Pinder | B69: Oak - 2B,3B,OF | C69: 1644 | D69: 82/341 | E69: 45 | F69: 13 | G69: 47 | H69: 0 | I69: 0.24
A70: Dwight Smith Jr. | B70: Bal - OF | C70: 1646 | D70: 86/357 | E70: 46 | F70: 13 | G70: 53 | H70: 5 | I70: 0.241
A71: Tyler Naquin | B71: Cle - OF | C71: 1647 | D71: 79/274 | E71: 34 | F71: 10 | G71: 34 | H71: 4 | I71: 0.288
A72: Brandon Dixon | B72: Det - 1B,OF | C72: 1648 | D72: 97/391 | E72: 41 | F72: 15 | G72: 52 | H72: 5 | I72: 0.248
A73: Tim Beckham | B73: Sea - 2B,3B,SS,OF | C73: 1650 | D73: 72/304 | E73: 39 | F73: 15 | G73: 47 | H73: 1 | I73: 0.237
A74: Jake Bauers | B74: Cle - 1B,OF | C74: 1676 | D74: 84/372 | E74: 46 | F74: 12 | G74: 43 | H74: 3 | I74: 0.226
A75: JaCoby Jones | B75: Det - OF | C75: 1687 | D75: 70/298 | E75: 39 | F75: 11 | G75: 26 | H75: 7 | I75: 0.235
A76: Harold Castro | B76: Det - 2B,3B,OF | C76: 1698 | D76: 103/354 | E76: 30 | F76: 5 | G76: 38 | H76: 4 | I76: 0.291
A77: Jake Cave | B77: Min - OF | C77: 1704 | D77: 51/198 | E77: 28 | F77: 8 | G77: 25 | H77: 0 | I77: 0.258
A78: Clint Frazier | B78: NYY - OF | C78: 1711 | D78: 60/225 | E78: 31 | F78: 12 | G78: 38 | H78: 1 | I78: 0.267
A79: Ehire Adrianza | B79: Min - 1B,2B,3B,SS,OF | C79: 1724 | D79: 55/202 | E79: 34 | F79: 5 | G79: 22 | H79: 0 | I79: 0.272
A80: Greg Allen | B80: Cle - OF | C80: 1725 | D80: 53/231 | E80: 30 | F80: 4 | G80: 27 | H80: 8 | I80: 0.229
A81: Adam Engel | B81: CWS - OF | C81: 1741 | D81: 55/227 | E81: 26 | F81: 6 | G81: 26 | H81: 3 | I81: 0.242
A82: Tony Kemp | B82: Oak - 2B,OF | C82: 1745 | D82: 52/245 | E82: 31 | F82: 8 | G82: 29 | H82: 4 | I82: 0.212
A83: Stevie Wilkerson | B83: Bal - 2B,OF | C83: 1767 | D83: 74/329 | E83: 41 | F83: 10 | G83: 35 | H83: 3 | I83: 0.225
A84: Billy McKinney | B84: Tor - OF | C84: 1769 | D84: 54/251 | E84: 37 | F84: 12 | G84: 28 | H84: 0 | I84: 0.215
A85: Dylan Moore | B85: Sea - 2B,3B,SS,OF | C85: 1770 | D85: 51/247 | E85: 31 | F85: 9 | G85: 28 | H85: 11 | I85: 0.206
A86: Brandon Drury | B86: Tor - 1B,2B,3B,OF | C86: 1776 | D86: 91/418 | E86: 43 | F86: 15 | G86: 41 | H86: 0 | I86: 0.218
A87: Christin Stewart | B87: Det - OF | C87: 1780 | D87: 86/369 | E87: 32 | F87: 10 | G87: 40 | H87: 0 | I87: 0.233
A88: Carlos González | B88: Sea - OF | C88: 1783 | D88: 29/145 | E88: 21 | F88: 3 | G88: 10 | H88: 0 | I88: 0.2
A89: Myles Straw | B89: Hou - SS,OF | C89: 1800 | D89: 29/108 | E89: 27 | F89: 0 | G89: 7 | H89: 8 | I89: 0.269
A90: Shed Long | B90: Sea - 2B,OF | C90: 1818 | D90: 40/152 | E90: 21 | F90: 5 | G90: 15 | H90: 3 | I90: 0.263
A91: Mike Brosseau | B91: TB - 2B,3B,OF | C91: 1823 | D91: 36/132 | E91: 17 | F91: 6 | G91: 16 | H91: 1 | I91: 0.273
A92: Tyler Wade | B92: NYY - 2B,OF | C92: 1828 | D92: 23/94 | E92: 16 | F92: 2 | G92: 11 | H92: 7 | I92: 0.245
A93: Denard Span | B93: Sea - OF | C93: 1834 | D93: -/- | E93: - | F93: - | G93: - | H93: - | I93: -
A94: DJ Stewart | B94: Bal - OF | C94: 1844 | D94: 30/126 | E94: 15 | F94: 4 | G94: 15 | H94: 1 | I94: 0.238
A95: Tim Lopes | B95: Sea - OF | C95: 1845 | D95: 30/111 | E95: 11 | F95: 1 | G95: 12 | H95: 6 | I95: 0.27
A96: Sam Travis | B96: Tex - 1B,OF | C96: 1854 | D96: 31/144 | E96: 17 | F96: 6 | G96: 16 | H96: 2 | I96: 0.215
A97: Kyle Lewis | B97: Sea - OF | C97: 1858 | D97: 19/71 | E97: 10 | F97: 6 | G97: 13 | H97: 0 | I97: 0.268
A98: César Puello | B98: Bos - OF | C98: 1859 | D98: 31/125 | E98: 14 | F98: 4 | G98: 18 | H98: 0 | I98: 0.248
A99: Travis Demeritte | B99: Det - OF | C99: 1867 | D99: 38/169 | E99: 24 | F99: 3 | G99: 10 | H99: 3 | I99: 0.225
A100: Bubba Starling | B100: KC - OF | C100: 1872 | D100: 40/186 | E100: 26 | F100: 4 | G100: 12 | H100: 2 | I100: 0.215
A101: Seth Brown | B101: Oak - OF | C101: 1874 | D101: 22/75 | E101: 11 | F101: 0 | G101: 13 | H101: 1 | I101: 0.293
A102: Rosell Herrera | B102: NYY - OF | C102: 1875 | D102: 21/105 | E102: 10 | F102: 2 | G102: 11 | H102: 4 | I102: 0.2
A103: Blake Swihart | B103: Tex - C,OF | C103: 1879 | D103: 15/92 | E103: 13 | F103: 4 | G103: 13 | H103: 0 | I103: 0.163
A104: Daniel Palka | B104: CWS - OF | C104: 1880 | D104: 9/84 | E104: 4 | F104: 2 | G104: 4 | H104: 0 | I104: 0.107
A105: Gorkys Hernández | B105: CWS - OF | C105: 1881 | D105: 7/49 | E105: 5 | F105: 0 | G105: 2 | H105: 1 | I105: 0.143
A106: Ryan LaMarre | B106: TB - OF | C106: 1895 | D106: 5/23 | E106: 3 | F106: 2 | G106: 3 | H106: 1 | I106: 0.217
A107: Jorge Bonifacio | B107: Det - OF | C107: 1898 | D107: 7/20 | E107: 3 | F107: 0 | G107: 3 | H107: 0 | I107: 0.35
A108: Nicky Delmonico | B108: CWS - OF | C108: 1907 | D108: 13/63 | E108: 6 | F108: 1 | G108: 6 | H108: 0 | I108: 0.206
A109: Ryan McBroom | B109: KC - 1B,OF | C109: 1915 | D109: 22/75 | E109: 8 | F109: 0 | G109: 6 | H109: 0 | I109: 0.293
A110: Mason Williams | B110: Bal - OF | C110: 1920 | D110: 8/30 | E110: 4 | F110: 0 | G110: 2 | H110: 1 | I110: 0.267
A111: Randy Arozarena | B111: TB - OF | C111: 1924 | D111: 6/20 | E111: 4 | F111: 1 | G111: 2 | H111: 2 | I111: 0.3
A112: Dustin Fowler | B112: Oak - OF | C112: 1925 | D112: -/- | E112: - | F112: - | G112: - | H112: - | I112: -
A113: Scott Heineman | B113: Tex - OF | C113: 1934 | D113: 16/75 | E113: 8 | F113: 2 | G113: 7 | H113: 1 | I113: 0.213
A114: Jonathan Davis | B114: Tor - OF | C114: 1935 | D114: 15/83 | E114: 8 | F114: 2 | G114: 6 | H114: 3 | I114: 0.181
A115: LaMonte Wade Jr. | B115: Min - OF | C115: 1942 | D115: 11/56 | E115: 10 | F115: 2 | G115: 5 | H115: 0 | I115: 0.196
A116: Brett Phillips | B116: KC - OF | C116: 1946 | D116: 9/65 | E116: 7 | F116: 2 | G116: 6 | H116: 3 | I116: 0.138
A117: Ryan Rua | B117: Tex - 1B,OF | C117: 1963 | D117: -/- | E117: - | F117: - | G117: - | H117: - | I117: -
A118: Taylor Ward | B118: LAA - OF | C118: 1967 | D118: 8/42 | E118: 4 | F118: 1 | G118: 2 | H118: 0 | I118: 0.19
A119: Chris Young | B119: LAA - OF | C119: 1968 | D119: -/- | E119: - | F119: - | G119: - | H119: - | I119: -
A120: Dustin Peterson | B120: Det - OF | C120: 1971 | D120: 10/44 | E120: 3 | F120: 0 | G120: 6 | H120: 1 | I120: 0.227
A121: Michael Hermosillo | B121: LAA - OF | C121: 1973 | D121: 5/36 | E121: 7 | F121: 0 | G121: 3 | H121: 2 | I121: 0.139
A122: Anthony Alford | B122: Tor - OF | C122: 1975 | D122: 5/28 | E122: 3 | F122: 1 | G122: 1 | H122: 2 | I122: 0.179
A123: Johnny Davis | B123: TB - OF | C123: 1984 | D123: 1/4 | E123: 5 | F123: 0 | G123: 0 | H123: 0 | I123: 0.25
A124: Erick Mejia | B124: KC - OF | C124: 1987 | D124: 5/22 | E124: 3 | F124: 0 | G124: 4 | H124: 0 | I124: 0.227
A125: Brian O'Grady | B125: TB - OF | C125: 1999 | D125: 8/42 | E125: 4 | F125: 2 | G125: 3 | H125: 0 | I125: 0.19
A126: John Andreoli | B126: Bos - OF | C126: 2012 | D126: -/- | E126: - | F126: - | G126: - | H126: - | I126: -
A127: Andrew Romine | B127: CWS - 2B,OF | C127: 2015 | D127: -/- | E127: - | F127: - | G127: - | H127: - | I127: -
A128: Carlos Tocci | B128: Tex - OF | C128: 2018 | D128: -/- | E128: - | F128: - | G128: - | H128: - | I128: -
A129: Bradley Zimmer | B129: Cle - OF | C129: 2023 | D129: 0/13 | E129: 1 | F129: 0 | G129: 0 | H129: 0 | I129: 0
A130: Rob Refsnyder | B130: Tex - 2B,OF | C130: 2028 | D130: -/- | E130: - | F130: - | G130: - | H130: - | I130: -
A131: Nate Orf | B131: Oak - 2B,OF | C131: 2033 | D131: -/- | E131: - | F131: - | G131: - | H131: - | I131: -
A132: Patrick Kivlehan | B132: Tor - 1B,OF | C132: 2037 | D132: -/- | E132: - | F132: - | G132: - | H132: - | I132: -
A133: Cedric Mullins | B133: Bal - OF | C133: 2046 | D133: 6/64 | E133: 7 | F133: 0 | G133: 4 | H133: 1 | I133: 0.094
A134: Gabriel Guerrero | B134: Tor - OF | C134: 2048 | D134: -/- | E134: - | F134: - | G134: - | H134: - | I134: -
A135: Brewer Hicklen | B135: KC - OF | C135: 2055 | D135: -/- | E135: - | F135: - | G135: - | H135: - | I135: -
A136: Gilberto Celestino | B136: Min - OF | C136: 2058 | D136: -/- | E136: - | F136: - | G136: - | H136: - | I136: -
A137: Griffin Conine | B137: Tor - OF | C137: 2071 | D137: -/- | E137: - | F137: - | G137: - | H137: - | I137: -
A138: Lazaro Armenteros | B138: Oak - OF | C138: 2072 | D138: -/- | E138: - | F138: - | G138: - | H138: - | I138: -
A139: Tony Renda | B139: Bos - 2B,OF | C139: 2091 | D139: -/- | E139: - | F139: - | G139: - | H139: - | I139: -
A140: Collin Cowgill | B140: Sea - OF | C140: 2099 | D140: -/- | E140: - | F140: - | G140: - | H140: - | I140: -
A141: Rusney Castillo | B141: Bos - OF | C141: 2110 | D141: -/- | E141: - | F141: - | G141: - | H141: - | I141: -
A142: Kyle Isbel | B142: KC - OF | C142: 2111 | D142: -/- | E142: - | F142: - | G142: - | H142: - | I142: -
A143: Marcus Wilson | B143: Bos - OF | C143: 2112 | D143: -/- | E143: - | F143: - | G143: - | H143: - | I143: -
A144: George Valera | B144: Cle - OF | C144: 2125 | D144: -/- | E144: - | F144: - | G144: - | H144: - | I144: -
A145: Pedro Gonzalez | B145: Tex - OF | C145: 2127 | D145: -/- | E145: - | F145: - | G145: - | H145: - | I145: -
A146: Akil Baddoo | B146: Min - OF | C146: 2128 | D146: -/- | E146: - | F146: - | G146: - | H146: - | I146: -
A147: Kevin Alcantara | B147: NYY - OF | C147: 2134 | D147: -/- | E147: - | F147: - | G147: - | H147: - | I147: -
A148: Trent Deveaux | B148: LAA - OF | C148: 2136 | D148: -/- | E148: - | F148: - | G148: - | H148: - | I148: -
A149: Riley Greene | B149: Det - OF | C149: 2139 | D149: -/- | E149: - | F149: - | G149: - | H149: - | I149: -
A150: Buddy Reed | B150: Oak - OF | C150: 2143 | D150: -/- | E150: - | F150: - | G150: - | H150: - | I150: -
A151: Jahmai Jones | B151: LAA - OF | C151: 2148 | D151: -/- | E151: - | F151: - | G151: - | H151: - | I151: -
A152: Chris Coghlan | B152: Tor - 3B,OF | C152: 2152 | D152: -/- | E152: - | F152: - | G152: - | H152: - | I152: -
A153: Will Benson | B153: Cle - OF | C153: 2163 | D153: -/- | E153: - | F153: - | G153: - | H153: - | I153: -
A154: Leody Taveras | B154: Tex - OF | C154: 2172 | D154: -/- | E154: - | F154: - | G154: - | H154: - | I154: -
A155: Jarred Kelenic | B155: Sea - OF | C155: 2186 | D155: -/- | E155: - | F155: - | G155: - | H155: - | I155: -
A156: Antonio Cabello | B156: NYY - OF | C156: 2187 | D156: -/- | E156: - | F156: - | G156: - | H156: - | I156: -
A157: Jarren Duran | B157: Bos - OF | C157: 2197 | D157: -/- | E157: - | F157: - | G157: - | H157: - | I157: -
A158: Steele Walker | B158: Tex - OF | C158: 2199 | D158: -/- | E158: - | F158: - | G158: - | H158: - | I158: -
A159: Garin Cecchini | B159: KC - 1B,OF | C159: 2201 | D159: -/- | E159: - | F159: - | G159: - | H159: - | I159: -
A160: Ronnie Dawson | B160: Hou - OF | C160: 2202 | D160: -/- | E160: - | F160: - | G160: - | H160: - | I160: -
A161: Nick Decker | B161: Bos - OF | C161: 2207 | D161: -/- | E161: - | F161: - | G161: - | H161: - | I161: -
A162: Moises Gomez | B162: TB - OF | C162: 2210 | D162: -/- | E162: - | F162: - | G162: - | H162: - | I162: -
A163: Khalil Lee | B163: KC - OF | C163: 2219 | D163: -/- | E163: - | F163: - | G163: - | H163: - | I163: -
A164: Dustin Ackley | B164: Sea - OF | C164: 2234 | D164: -/- | E164: - | F164: - | G164: - | H164: - | I164: -
A165: Luis Basabe | B165: CWS - OF | C165: 2235 | D165: -/- | E165: - | F165: - | G165: - | H165: - | I165: -
A166: Garrett Whitley | B166: TB - OF | C166: 2236 | D166: -/- | E166: - | F166: - | G166: - | H166: - | I166: -
A167: Drew Ferguson | B167: Hou - OF | C167: 2247 | D167: -/- | E167: - | F167: - | G167: - | H167: - | I167: -
A168: Brennon Lund | B168: LAA - OF | C168: 2253 | D168: -/- | E168: - | F168: - | G168: - | H168: - | I168: -
A169: Ramon Flores | B169: Min - OF | C169: 2261 | D169: -/- | E169: - | F169: - | G169: - | H169: - | I169: -
A170: Derek Hill | B170: Det - OF | C170: 2262 | D170: -/- | E170: - | F170: - | G170: - | H170: - | I170: -
A171: Estevan Florial | B171: NYY - OF | C171: 2275 | D171: -/- | E171: - | F171: - | G171: - | H171: - | I171: -
A172: Tyler Collins | B172: KC - OF | C172: 2277 | D172: -/- | E172: - | F172: - | G172: - | H172: - | I172: -
A173: Everson Pereira | B173: NYY - OF | C173: 2287 | D173: -/- | E173: - | F173: - | G173: - | H173: - | I173: -
A174: Ben Revere | B174: Tex - OF | C174: 2289 | D174: -/- | E174: - | F174: - | G174: - | H174: - | I174: -
A175: Luis González | B175: CWS - OF | C175: 2290 | D175: -/- | E175: - | F175: - | G175: - | H175: - | I175: -
A176: Julio Pablo Martinez | B176: Tex - OF | C176: 2293 | D176: -/- | E176: - | F176: - | G176: - | H176: - | I176: -
A177: Jacoby Ellsbury | B177: NYY - OF | C177: 2299 | D177: -/- | E177: - | F177: - | G177: - | H177: - | I177: -
A178: Seuly Matias | B178: KC - OF | C178: 2300 | D178: -/- | E178: - | F178: - | G178: - | H178: - | I178: -
A179: Parker Meadows | B179: Det - OF | C179: 2303 | D179: -/- | E179: - | F179: - | G179: - | H179: - | I179: -
A180: Kingston Liniak | B180: Det - OF | C180: 2304 | D180: -/- | E180: - | F180: - | G180: - | H180: - | I180: -
A181: Blake Perkins | B181: KC - OF | C181: 2307 | D181: -/- | E181: - | F181: - | G181: - | H181: - | I181: -
A182: Jose Tabata | B182: Tor - OF | C182: 2310 | D182: -/- | E182: - | F182: - | G182: - | H182: - | I182: -
A183: Ryder Green | B183: NYY - OF | C183: 2311 | D183: -/- | E183: - | F183: - | G183: - | H183: - | I183: -
A184: Michael Gigliotti | B184: KC - OF | C184: 2316 | D184: -/- | E184: - | F184: - | G184: - | H184: - | I184: -
A185: Luis Barrera | B185: Oak - OF | C185: 2317 | D185: -/- | E185: - | F185: - | G185: - | H185: - | I185: -
A186: Jacob Robson | B186: Det - OF | C186: 2320 | D186: -/- | E186: - | F186: - | G186: - | H186: - | I186: -
A187: Jose Azocar | B187: Det - OF | C187: 2322 | D187: -/- | E187: - | F187: - | G187: - | H187: - | I187: -
A188: Kyle Stowers | B188: Bal - OF | C188: 2325 | D188: -/- | E188: - | F188: - | G188: - | H188: - | I188: -
A189: Jordyn Adams | B189: LAA - OF | C189: 2338 | D189: -/- | E189: - | F189: - | G189: - | H189: - | I189: -
A190: Josh Stowers | B190: NYY - OF | C190: 2343 | D190: -/- | E190: - | F190: - | G190: - | H190: - | I190: -
A191: Jordany Valdespin | B191: Min - 2B,OF | C191: 2346 | D191: -/- | E191: - | F191: - | G191: - | H191: - | I191: -
A192: Joe Benson | B192: Min - OF | C192: 2348 | D192: -/- | E192: - | F192: - | G192: - | H192: - | I192: -
A193: Bubba Thompson | B193: Tex - OF | C193: 2351 | D193: -/- | E193: - | F193: - | G193: - | H193: - | I193: -
A194: Stefen Romero | B194: Sea - OF | C194: 2365 | D194: -/- | E194: - | F194: - | G194: - | H194: - | I194: -
A195: Daniel Johnson | B195: Cle - OF | C195: 2380 | D195: -/- | E195: - | F195: - | G195: - | H195: - | I195: -
A196: Cody Asche | B196: Min - 3B,OF | C196: 2381 | D196: -/- | E196: - | F196: - | G196: - | H196: - | I196: -
A197: Yusniel Diaz | B197: Bal - OF | C197: 2385 | D197: -/- | E197: - | F197: - | G197: - | H197: - | I197: -
A198: Nick Schnell | B198: TB - OF | C198: 2391 | D198: -/- | E198: - | F198: - | G198: - | H198: - | I198: -
A199: Dom Thompson-Williams | B199: Sea - OF | C199: 2393 | D199: -/- | E199: - | F199: - | G199: - | H199: - | I199: -
A200: Blake Rutherford | B200: CWS - OF | C200: 2397 | D200: -/- | E200: - | F200: - | G200: - | H200: - | I200: -
... 51 more rows

Sheet DH
A1: Player | B1: Team | C1: Rank | D1: H/AB | E1: R | F1: HR | G1: RBI | H1: SB | I1: Avg.
A2: Nelson Cruz | B2: Min - Util | C2: 22 | D2: 141/454 | E2: 81 | F2: 41 | G2: 108 | H2: 0 | I2: 0.311
A3: Shohei Ohtani (Batter) | B3: LAA - Util | C3: 100 | D3: 110/384 | E3: 51 | F3: 18 | G3: 62 | H3: 12 | I3: 0.286
A4: Khris Davis | B4: Oak - Util | C4: 231 | D4: 106/481 | E4: 61 | F4: 23 | G4: 73 | H4: 0 | I4: 0.22
A5: Kendrys Morales | B5: NYY - 1B | C5: 612 | D5: 33/170 | E5: 16 | F5: 2 | G5: 12 | H5: 0 | I5: 0.194

Sheet Pitchers
A1: Player | B1: Team | C1: Rank | D1: IP | E1: W | F1: S | G1: K | H1: ERA | I1: WHIP
A2: Gerrit Cole | B2: NYY - SP | C2: 7 | D2: 212.1 | E2: 20 | F2: 0 | G2: 326 | H2: 2.5 | I2: 0.89
A3: Justin Verlander | B3: Hou - SP | C3: 12 | D3: 223 | E3: 21 | F3: 0 | G3: 300 | H3: 2.58 | I3: 0.8
A4: Blake Snell | B4: TB - SP | C4: 25 | D4: 107 | E4: 6 | F4: 0 | G4: 147 | H4: 4.29 | I4: 1.27
A5: Shane Bieber | B5: Cle - SP | C5: 32 | D5: 214.1 | E5: 15 | F5: 0 | G5: 259 | H5: 3.28 | I5: 1.05
A6: Chris Sale | B6: Bos - SP | C6: 34 | D6: 147.1 | E6: 6 | F6: 0 | G6: 218 | H6: 4.4 | I6: 1.09
A7: Lucas Giolito | B7: CWS - SP | C7: 56 | D7: 176.2 | E7: 14 | F7: 0 | G7: 228 | H7: 3.41 | I7: 1.06
A8: Charlie Morton | B8: TB - SP | C8: 58 | D8: 194.2 | E8: 16 | F8: 0 | G8: 240 | H8: 3.05 | I8: 1.08
A9: Mike Clevinger | B9: Cle - SP | C9: 70 | D9: 126 | E9: 13 | F9: 0 | G9: 169 | H9: 2.71 | I9: 1.06
A10: Tyler Glasnow | B10: TB - SP | C10: 75 | D10: 60.2 | E10: 6 | F10: 0 | G10: 76 | H10: 1.78 | I10: 0.89
A11: Zack Greinke | B11: Hou - SP | C11: 77 | D11: 208.2 | E11: 18 | F11: 0 | G11: 187 | H11: 2.93 | I11: 0.98
A12: José Berríos | B12: Min - SP | C12: 81 | D12: 200.1 | E12: 14 | F12: 0 | G12: 195 | H12: 3.68 | I12: 1.22
A13: Corey Kluber | B13: Tex - SP | C13: 98 | D13: 35.2 | E13: 2 | F13: 0 | G13: 38 | H13: 5.8 | I13: 1.65
A14: Carlos Carrasco | B14: Cle - SP,RP | C14: 100 | D14: 80 | E14: 6 | F14: 1 | G14: 96 | H14: 5.29 | I14: 1.35
A15: Frankie Montas | B15: Oak - SP | C15: 116 | D15: 96 | E15: 9 | F15: 0 | G15: 103 | H15: 2.63 | I15: 1.11
A16: Eduardo Rodriguez | B16: Bos - SP | C16: 123 | D16: 203.1 | E16: 19 | F16: 0 | G16: 213 | H16: 3.81 | I16: 1.33
A17: Hyun-Jin Ryu | B17: Tor - SP | C17: 128 | D17: 182.2 | E17: 14 | F17: 0 | G17: 163 | H17: 2.32 | I17: 1.01
A18: Lance Lynn | B18: Tex - SP | C18: 129 | D18: 208.1 | E18: 16 | F18: 0 | G18: 246 | H18: 3.67 | I18: 1.22
A19: Matthew Boyd | B19: Det - SP | C19: 136 | D19: 185.1 | E19: 9 | F19: 0 | G19: 238 | H19: 4.56 | I19: 1.23
A20: Shohei Ohtani (Pitcher) | B20: LAA - SP | C20: 145 | D20: - | E20: - | F20: - | G20: - | H20: - | I20: -
A21: Mike Minor | B21: Tex - SP | C21: 151 | D21: 208.1 | E21: 14 | F21: 0 | G21: 200 | H21: 3.59 | I21: 1.24
A22: Sean Manaea | B22: Oak - SP | C22: 157 | D22: 29.2 | E22: 4 | F22: 0 | G22: 30 | H22: 1.21 | I22: 0.78
A23: Andrew Heaney | B23: LAA - SP | C23: 160 | D23: 95.1 | E23: 4 | F23: 0 | G23: 118 | H23: 4.91 | I23: 1.29
A24: Kenta Maeda | B24: Min - SP,RP | C24: 166 | D24: 153.2 | E24: 10 | F24: 3 | G24: 169 | H24: 4.04 | I24: 1.07
A25: Lance McCullers Jr. | B25: Hou - SP | C25: 169 | D25: - | E25: - | F25: - | G25: - | H25: - | I25: -
A26: Masahiro Tanaka | B26: NYY - SP | C26: 174 | D26: 182 | E26: 11 | F26: 0 | G26: 149 | H26: 4.45 | I26: 1.24
A27: José Leclerc | B27: Tex - SP,RP | C27: 179 | D27: 68.2 | E27: 2 | F27: 14 | G27: 100 | H27: 4.33 | I27: 1.33
A28: Griffin Canning | B28: LAA - SP | C28: 183 | D28: 90.1 | E28: 5 | F28: 0 | G28: 96 | H28: 4.58 | I28: 1.22
A29: Jose Urquidy | B29: Hou - SP | C29: 196 | D29: 41 | E29: 2 | F29: 0 | G29: 40 | H29: 3.95 | I29: 1.1
A30: Jake Odorizzi | B30: Min - SP | C30: 200 | D30: 159 | E30: 15 | F30: 0 | G30: 178 | H30: 3.51 | I30: 1.21
A31: Brendan McKay (Pitcher) | B31: TB - SP | C31: 207 | D31: 49 | E31: 2 | F31: 0 | G31: 56 | H31: 5.14 | I31: 1.41
A32: Yonny Chirinos | B32: TB - SP,RP | C32: 222 | D32: 133.1 | E32: 9 | F32: 0 | G32: 114 | H32: 3.85 | I32: 1.05
A33: James Paxton | B33: NYY - SP | C33: 224 | D33: 150.2 | E33: 15 | F33: 0 | G33: 186 | H33: 3.82 | I33: 1.28
A34: Dallas Keuchel | B34: CWS - SP | C34: 229 | D34: 112.2 | E34: 8 | F34: 0 | G34: 91 | H34: 3.75 | I34: 1.37
A35: Ryan Yarbrough | B35: TB - SP,RP | C35: 241 | D35: 141.2 | E35: 11 | F35: 0 | G35: 117 | H35: 4.13 | I35: 1
A36: Michael Kopech | B36: CWS - SP | C36: 245 | D36: - | E36: - | F36: - | G36: - | H36: - | I36: -
A37: Dylan Bundy | B37: LAA - SP | C37: 263 | D37: 161.2 | E37: 7 | F37: 0 | G37: 162 | H37: 4.79 | I37: 1.35
A38: Domingo Germán | B38: NYY - SP | C38: 277 | D38: 143 | E38: 18 | F38: 0 | G38: 153 | H38: 4.03 | I38: 1.15
A39: Chris Bassitt | B39: Oak - SP | C39: 279 | D39: 144 | E39: 10 | F39: 0 | G39: 141 | H39: 3.81 | I39: 1.19
A40: Reynaldo López | B40: CWS - SP | C40: 280 | D40: 184 | E40: 10 | F40: 0 | G40: 169 | H40: 5.38 | I40: 1.46
A41: Dylan Cease | B41: CWS - SP | C41: 282 | D41: 73 | E41: 4 | F41: 0 | G41: 81 | H41: 5.79 | I41: 1.55
A42: Aaron Civale | B42: Cle - SP | C42: 288 | D42: 57.2 | E42: 3 | F42: 0 | G42: 46 | H42: 2.34 | I42: 1.04
A43: Rich Hill | B43: Min - SP | C43: 289 | D43: 58.2 | E43: 4 | F43: 0 | G43: 72 | H43: 2.45 | I43: 1.13
A44: Michael Pineda | B44: Min - SP | C44: 292 | D44: 146 | E44: 11 | F44: 0 | G44: 140 | H44: 4.01 | I44: 1.16
A45: Marco Gonzales | B45: Sea - SP | C45: 296 | D45: 203 | E45: 16 | F45: 0 | G45: 147 | H45: 3.99 | I45: 1.31
A46: John Means | B46: Bal - SP | C46: 308 | D46: 155 | E46: 12 | F46: 0 | G46: 121 | H46: 3.6 | I46: 1.14
A47: Forrest Whitley | B47: Hou - SP | C47: 312 | D47: - | E47: - | F47: - | G47: - | H47: - | I47: -
A48: Chad Green | B48: NYY - SP,RP | C48: 319 | D48: 69 | E48: 4 | F48: 2 | G48: 98 | H48: 4.17 | I48: 1.23
A49: Nathan Eovaldi | B49: Bos - SP,RP | C49: 322 | D49: 67.2 | E49: 2 | F49: 0 | G49: 70 | H49: 5.99 | I49: 1.58
A50: Spencer Turnbull | B50: Det - SP | C50: 323 | D50: 148.1 | E50: 3 | F50: 0 | G50: 146 | H50: 4.61 | I50: 1.44
A51: Casey Mize | B51: Det - SP | C51: 324 | D51: - | E51: - | F51: - | G51: - | H51: - | I51: -
A52: J.A. Happ | B52: NYY - SP | C52: 346 | D52: 161.1 | E52: 12 | F52: 0 | G52: 140 | H52: 4.91 | I52: 1.3
A53: Julio Teheran | B53: LAA - SP | C53: 352 | D53: 174.2 | E53: 10 | F53: 0 | G53: 162 | H53: 3.81 | I53: 1.32
A54: Mike Fiers | B54: Oak - SP | C54: 363 | D54: 184.2 | E54: 15 | F54: 0 | G54: 126 | H54: 3.9 | I54: 1.19
A55: Diego Castillo | B55: TB - SP,RP | C55: 376 | D55: 68.2 | E55: 5 | F55: 8 | G55: 81 | H55: 3.41 | I55: 1.24
A56: Justus Sheffield | B56: Sea - SP | C56: 383 | D56: 36 | E56: 0 | F56: 0 | G56: 37 | H56: 5.5 | I56: 1.72
A57: Jordan Lyles | B57: Tex - SP | C57: 387 | D57: 141 | E57: 12 | F57: 0 | G57: 146 | H57: 4.15 | I57: 1.32
A58: Tyler Clippard | B58: Min - SP,RP | C58: 404 | D58: 62 | E58: 1 | F58: 0 | G58: 64 | H58: 2.9 | I58: 0.85
A59: Brad Peacock | B59: Hou - SP,RP | C59: 418 | D59: 91.2 | E59: 7 | F59: 0 | G59: 96 | H59: 4.12 | I59: 1.19
A60: Zach Plesac | B60: Cle - SP | C60: 434 | D60: 115.2 | E60: 8 | F60: 0 | G60: 88 | H60: 3.81 | I60: 1.23
A61: Noé Ramírez | B61: LAA - SP,RP | C61: 436 | D61: 67.2 | E61: 5 | F61: 0 | G61: 79 | H61: 3.99 | I61: 1.17
A62: Matt Shoemaker | B62: Tor - SP | C62: 438 | D62: 28.2 | E62: 3 | F62: 0 | G62: 24 | H62: 1.57 | I62: 0.87
A63: Chase Anderson | B63: Tor - SP,RP | C63: 439 | D63: 139 | E63: 8 | F63: 0 | G63: 124 | H63: 4.21 | I63: 1.27
A64: Cam Bedrosian | B64: LAA - SP,RP | C64: 441 | D64: 61.1 | E64: 3 | F64: 1 | G64: 64 | H64: 3.23 | I64: 1.14
A65: Felix Peña | B65: LAA - SP,RP | C65: 445 | D65: 96.1 | E65: 8 | F65: 0 | G65: 101 | H65: 4.58 | I65: 1.18
A66: Collin McHugh | B66: Hou - SP,RP | C66: 447 | D66: 74.2 | E66: 4 | F66: 0 | G66: 82 | H66: 4.7 | I66: 1.23
A67: Randy Dobnak | B67: Min - SP | C67: 471 | D67: 28.1 | E67: 2 | F67: 1 | G67: 23 | H67: 1.59 | I67: 1.13
A68: Gio González | B68: CWS - SP | C68: 518 | D68: 87.1 | E68: 3 | F68: 0 | G68: 78 | H68: 3.5 | I68: 1.29
A69: Jesse Chávez | B69: Tex - SP,RP | C69: 521 | D69: 78 | E69: 3 | F69: 1 | G69: 72 | H69: 4.85 | I69: 1.33
A70: Brad Keller | B70: KC - SP | C70: 537 | D70: 165.1 | E70: 7 | F70: 0 | G70: 122 | H70: 4.19 | I70: 1.35
A71: Tommy Milone | B71: Bal - SP,RP | C71: 539 | D71: 111.2 | E71: 4 | F71: 0 | G71: 94 | H71: 4.76 | I71: 1.12
A72: Tanner Roark | B72: Tor - SP | C72: 540 | D72: 165.1 | E72: 10 | F72: 0 | G72: 158 | H72: 4.35 | I72: 1.4
A73: Kyle Gibson | B73: Tex - SP,RP | C73: 541 | D73: 160 | E73: 13 | F73: 0 | G73: 160 | H73: 4.84 | I73: 1.44
A74: Trevor Richards | B74: TB - SP,RP | C74: 546 | D74: 135.1 | E74: 6 | F74: 0 | G74: 127 | H74: 4.06 | I74: 1.35
A75: Luke Bard | B75: LAA - SP,RP | C75: 547 | D75: 49 | E75: 3 | F75: 0 | G75: 40 | H75: 4.78 | I75: 1.1
A76: Devin Smeltzer | B76: Min - SP,RP | C76: 559 | D76: 49 | E76: 2 | F76: 1 | G76: 38 | H76: 3.86 | I76: 1.27
A77: Wilmer Font | B77: Tor - SP,RP | C77: 565 | D77: 84.1 | E77: 4 | F77: 0 | G77: 95 | H77: 4.48 | I77: 1.27
A78: Jacob Waguespack | B78: Tor - SP | C78: 578 | D78: 78 | E78: 5 | F78: 0 | G78: 63 | H78: 4.38 | I78: 1.33
A79: Daniel Mengden | B79: Oak - SP | C79: 598 | D79: 59.2 | E79: 5 | F79: 1 | G79: 42 | H79: 4.83 | I79: 1.44
A80: Carlos Rodón | B80: CWS - SP | C80: 615 | D80: 34.2 | E80: 3 | F80: 0 | G80: 46 | H80: 5.19 | I80: 1.44
A81: Danny Duffy | B81: KC - SP | C81: 618 | D81: 130.2 | E81: 7 | F81: 0 | G81: 115 | H81: 4.34 | I81: 1.31
A82: Homer Bailey | B82: Min - SP | C82: 639 | D82: 163.1 | E82: 13 | F82: 0 | G82: 149 | H82: 4.57 | I82: 1.32
A83: Asher Wojciechowski | B83: Bal - SP | C83: 670 | D83: 82.1 | E83: 4 | F83: 0 | G83: 80 | H83: 4.92 | I83: 1.31
A84: Alec Asher | B84: Min - SP,RP | C84: 671 | D84: - | E84: - | F84: - | G84: - | H84: - | I84: -
A85: Taijuan Walker | B85: Sea - SP | C85: 687 | D85: 1 | E85: 0 | F85: 0 | G85: 1 | H85: 0 | I85: 1
A86: Randall Delgado | B86: CWS - SP,RP | C86: 690 | D86: - | E86: - | F86: - | G86: - | H86: - | I86: -
A87: Blaine Knight | B87: Bal - SP | C87: 692 | D87: - | E87: - | F87: - | G87: - | H87: - | I87: -
A88: Brenan Hanifee | B88: Bal - SP | C88: 696 | D88: - | E88: - | F88: - | G88: - | H88: - | I88: -
A89: Tarik Skubal | B89: Det - SP | C89: 705 | D89: - | E89: - | F89: - | G89: - | H89: - | I89: -
A90: Conner Greene | B90: KC - SP | C90: 706 | D90: - | E90: - | F90: - | G90: - | H90: - | I90: -
A91: A.J. Alexy | B91: Tex - SP | C91: 707 | D91: - | E91: - | F91: - | G91: - | H91: - | I91: -
A92: Nolan Watson | B92: KC - SP | C92: 708 | D92: - | E92: - | F92: - | G92: - | H92: - | I92: -
A93: Matthias Dietz | B93: Bal - SP | C93: 712 | D93: - | E93: - | F93: - | G93: - | H93: - | I93: -
A94: Jackson Kowar | B94: KC - SP | C94: 722 | D94: - | E94: - | F94: - | G94: - | H94: - | I94: -
A95: Cole Winn | B95: Tex - SP | C95: 724 | D95: - | E95: - | F95: - | G95: - | H95: - | I95: -
A96: Scott Moss | B96: Cle - SP | C96: 725 | D96: - | E96: - | F96: - | G96: - | H96: - | I96: -
A97: Daulton Jefferies | B97: Oak - SP | C97: 736 | D97: - | E97: - | F97: - | G97: - | H97: - | I97: -
A98: Yoendrys Gomez | B98: NYY - SP | C98: 738 | D98: - | E98: - | F98: - | G98: - | H98: - | I98: -
A99: Konnor Pilkington | B99: CWS - SP | C99: 741 | D99: - | E99: - | F99: - | G99: - | H99: - | I99: -
A100: Austin Franklin | B100: TB - SP | C100: 745 | D100: - | E100: - | F100: - | G100: - | H100: - | I100: -
A101: Juan Then | B101: Sea - SP | C101: 748 | D101: - | E101: - | F101: - | G101: - | H101: - | I101: -
A102: Brady Aiken | B102: Cle - SP | C102: 752 | D102: - | E102: - | F102: - | G102: - | H102: - | I102: -
A103: Jake Thompson | B103: Bos - SP | C103: 753 | D103: - | E103: - | F103: - | G103: - | H103: - | I103: -
A104: Jenrry Mejia | B104: Bos - SP,RP | C104: 759 | D104: - | E104: - | F104: - | G104: - | H104: - | I104: -
A105: Cristian Javier | B105: Hou - SP | C105: 767 | D105: - | E105: - | F105: - | G105: - | H105: - | I105: -
A106: Christian Friedrich | B106: CWS - SP,RP | C106: 770 | D106: - | E106: - | F106: - | G106: - | H106: - | I106: -
A107: Alex Wells | B107: Bal - SP | C107: 775 | D107: - | E107: - | F107: - | G107: - | H107: - | I107: -
A108: Jonathon Niese | B108: Sea - SP | C108: 776 | D108: - | E108: - | F108: - | G108: - | H108: - | I108: -
A109: Travis Wood | B109: Det - SP,RP | C109: 777 | D109: - | E109: - | F109: - | G109: - | H109: - | I109: -
A110: Kyle Davies | B110: NYY - SP,RP | C110: 779 | D110: - | E110: - | F110: - | G110: - | H110: - | I110: -
A111: Sean O'Sullivan | B111: Bos - SP | C111: 786 | D111: - | E111: - | F111: - | G111: - | H111: - | I111: -
A112: Kendall Williams | B112: Tor - SP | C112: 794 | D112: - | E112: - | F112: - | G112: - | H112: - | I112: -
A113: Dane Dunning | B113: CWS - SP | C113: 795 | D113: - | E113: - | F113: - | G113: - | H113: - | I113: -
A114: Michael Mercado | B114: TB - SP | C114: 796 | D114: - | E114: - | F114: - | G114: - | H114: - | I114: -
A115: Cody Sedlock | B115: Bal - SP | C115: 797 | D115: - | E115: - | F115: - | G115: - | H115: - | I115: -
A116: Eli Morgan | B116: Cle - SP | C116: 798 | D116: - | E116: - | F116: - | G116: - | H116: - | I116: -
A117: Andrew Dalquist | B117: CWS - SP | C117: 799 | D117: - | E117: - | F117: - | G117: - | H117: - | I117: -
A118: Stephen Fife | B118: Cle - SP | C118: 801 | D118: - | E118: - | F118: - | G118: - | H118: - | I118: -
A119: Matt Canterino | B119: Min - SP | C119: 802 | D119: - | E119: - | F119: - | G119: - | H119: - | I119: -
A120: Felipe Paulino | B120: Cle - SP,RP | C120: 804 | D120: - | E120: - | F120: - | G120: - | H120: - | I120: -
A121: Tanner Scheppers | B121: Tex - SP,RP | C121: 808 | D121: - | E121: - | F121: - | G121: - | H121: - | I121: -
A122: Shun Yamaguchi | B122: Tor - SP | C122: 810 | D122: - | E122: - | F122: - | G122: - | H122: - | I122: -
A123: Chris Rodríguez | B123: LAA - SP | C123: 812 | D123: - | E123: - | F123: - | G123: - | H123: - | I123: -
A124: Jason Groome | B124: Bos - SP | C124: 813 | D124: - | E124: - | F124: - | G124: - | H124: - | I124: -
A125: Kyle Cody | B125: Tex - SP | C125: 816 | D125: - | E125: - | F125: - | G125: - | H125: - | I125: -
A126: Yefri Del Rosario | B126: KC - SP | C126: 817 | D126: - | E126: - | F126: - | G126: - | H126: - | I126: -
A127: Ashe Russell | B127: KC - SP | C127: 820 | D127: - | E127: - | F127: - | G127: - | H127: - | I127: -
A128: Nick Nelson | B128: NYY - SP | C128: 821 | D128: - | E128: - | F128: - | G128: - | H128: - | I128: -
A129: Tyler Phillips | B129: Tex - SP | C129: 827 | D129: - | E129: - | F129: - | G129: - | H129: - | I129: -
A130: Patrick Murphy | B130: Tor - SP | C130: 832 | D130: - | E130: - | F130: - | G130: - | H130: - | I130: -
A131: Tanner Houck | B131: Bos - SP | C131: 833 | D131: - | E131: - | F131: - | G131: - | H131: - | I131: -
A132: Norge Ruiz | B132: Oak - SP | C132: 834 | D132: - | E132: - | F132: - | G132: - | H132: - | I132: -
A133: Luis Oviedo | B133: Cle - SP | C133: 838 | D133: - | E133: - | F133: - | G133: - | H133: - | I133: -
A134: Casey Crosby | B134: Min - SP | C134: 840 | D134: - | E134: - | F134: - | G134: - | H134: - | I134: -
A135: Hans Crouse | B135: Tex - SP | C135: 842 | D135: - | E135: - | F135: - | G135: - | H135: - | I135: -
A136: Stephen Woods Jr. | B136: KC - SP | C136: 845 | D136: - | E136: - | F136: - | G136: - | H136: - | I136: -
A137: Shane Baz | B137: TB - SP | C137: 847 | D137: - | E137: - | F137: - | G137: - | H137: - | I137: -
A138: Jon Harris | B138: Tor - SP | C138: 850 | D138: - | E138: - | F138: - | G138: - | H138: - | I138: -
A139: Deivi García | B139: NYY - SP | C139: 855 | D139: - | E139: - | F139: - | G139: - | H139: - | I139: -
A140: Dean Kremer | B140: Bal - SP | C140: 857 | D140: - | E140: - | F140: - | G140: - | H140: - | I140: -
A141: Grayson Rodriguez | B141: Bal - SP | C141: 863 | D141: - | E141: - | F141: - | G141: - | H141: - | I141: -
A142: Felix Jorge | B142: Min - SP | C142: 865 | D142: - | E142: - | F142: - | G142: - | H142: - | I142: -
A143: Daniel Espino | B143: Cle - SP | C143: 866 | D143: - | E143: - | F143: - | G143: - | H143: - | I143: -
A144: Logan Shore | B144: Det - SP | C144: 870 | D144: - | E144: - | F144: - | G144: - | H144: - | I144: -
A145: Garrett Whitlock | B145: NYY - SP | C145: 874 | D145: - | E145: - | F145: - | G145: - | H145: - | I145: -
A146: Marcos Diplan | B146: Bal - SP | C146: 875 | D146: - | E146: - | F146: - | G146: - | H146: - | I146: -
A147: JJ Goss | B147: TB - SP | C147: 878 | D147: - | E147: - | F147: - | G147: - | H147: - | I147: -
A148: Jairo Solis | B148: Hou - SP | C148: 879 | D148: - | E148: - | F148: - | G148: - | H148: - | I148: -
A149: Kyle Hart | B149: Bos - SP | C149: 881 | D149: - | E149: - | F149: - | G149: - | H149: - | I149: -
A150: Esmil Rogers | B150: NYY - SP,RP | C150: 882 | D150: - | E150: - | F150: - | G150: - | H150: - | I150: -
A151: Jose Soriano | B151: LAA - SP | C151: 886 | D151: - | E151: - | F151: - | G151: - | H151: - | I151: -
A152: Mat Latos | B152: Tor - SP | C152: 888 | D152: - | E152: - | F152: - | G152: - | H152: - | I152: -
A153: Jayson Schroeder | B153: Hou - SP | C153: 892 | D153: - | E153: - | F153: - | G153: - | H153: - | I153: -
A154: Anthony Castro | B154: Det - SP | C154: 893 | D154: - | E154: - | F154: - | G154: - | H154: - | I154: -
A155: George Kirby | B155: Sea - SP | C155: 900 | D155: - | E155: - | F155: - | G155: - | H155: - | I155: -
A156: Sam McWilliams | B156: TB - SP | C156: 902 | D156: - | E156: - | F156: - | G156: - | H156: - | I156: -
A157: Jonathan Bowlan | B157: KC - SP | C157: 906 | D157: - | E157: - | F157: - | G157: - | H157: - | I157: -
A158: James Naile | B158: Oak - SP | C158: 908 | D158: - | E158: - | F158: - | G158: - | H158: - | I158: -
A159: Justin Nicolino | B159: Min - SP | C159: 911 | D159: - | E159: - | F159: - | G159: - | H159: - | I159: -
A160: Alex Speas | B160: Tex - SP | C160: 915 | D160: - | E160: - | F160: - | G160: - | H160: - | I160: -
A161: Blayne Enlow | B161: Min - SP | C161: 921 | D161: - | E161: - | F161: - | G161: - | H161: - | I161: -
A162: Joey Wentz | B162: Det - SP | C162: 922 | D162: - | E162: - | F162: - | G162: - | H162: - | I162: -
A163: Seth Johnson | B163: TB - SP | C163: 923 | D163: - | E163: - | F163: - | G163: - | H163: - | I163: -
A164: Owen White | B164: Tex - SP | C164: 925 | D164: - | E164: - | F164: - | G164: - | H164: - | I164: -
A165: Lincoln Henzman | B165: CWS - SP | C165: 926 | D165: - | E165: - | F165: - | G165: - | H165: - | I165: -
A166: Aaron Hernandez | B166: LAA - SP | C166: 927 | D166: - | E166: - | F166: - | G166: - | H166: - | I166: -
A167: Jhonathan Diaz | B167: Bos - SP | C167: 930 | D167: - | E167: - | F167: - | G167: - | H167: - | I167: -
A168: Nick Tepesch | B168: Tor - SP | C168: 934 | D168: - | E168: - | F168: - | G168: - | H168: - | I168: -
A169: James Kaprielian | B169: Oak - SP | C169: 936 | D169: - | E169: - | F169: - | G169: - | H169: - | I169: -
A170: Kodi Medeiros | B170: CWS - SP | C170: 941 | D170: - | E170: - | F170: - | G170: - | H170: - | I170: -
A171: Brandon Bielak | B171: Hou - SP | C171: 944 | D171: - | E171: - | F171: - | G171: - | H171: - | I171: -
A172: Resly Linares | B172: TB - SP | C172: 947 | D172: - | E172: - | F172: - | G172: - | H172: - | I172: -
A173: Joe Ryan | B173: TB - SP | C173: 948 | D173: - | E173: - | F173: - | G173: - | H173: - | I173: -
A174: Adam Kloffenstein | B174: Tor - SP | C174: 951 | D174: - | E174: - | F174: - | G174: - | H174: - | I174: -
A175: Roniel Raudes | B175: Bos - SP | C175: 953 | D175: - | E175: - | F175: - | G175: - | H175: - | I175: -
A176: Franklin Perez | B176: Det - SP | C176: 958 | D176: - | E176: - | F176: - | G176: - | H176: - | I176: -
A177: Sam Hentges | B177: Cle - SP | C177: 965 | D177: - | E177: - | F177: - | G177: - | H177: - | I177: -
A178: Kris Bubic | B178: KC - SP | C178: 969 | D178: - | E178: - | F178: - | G178: - | H178: - | I178: -
A179: Nate Pearson | B179: Tor - SP | C179: 975 | D179: - | E179: - | F179: - | G179: - | H179: - | I179: -
A180: Bryan Mata | B180: Bos - SP | C180: 978 | D180: - | E180: - | F180: - | G180: - | H180: - | I180: -
A181: Nate Smith | B181: LAA - SP | C181: 984 | D181: - | E181: - | F181: - | G181: - | H181: - | I181: -
A182: Jhoan Duran | B182: Min - SP | C182: 988 | D182: - | E182: - | F182: - | G182: - | H182: - | I182: -
A183: Luis Medina | B183: NYY - SP | C183: 990 | D183: - | E183: - | F183: - | G183: - | H183: - | I183: -
A184: Michael Baumann | B184: Bal - SP | C184: 996 | D184: - | E184: - | F184: - | G184: - | H184: - | I184: -
A185: Spencer Adams | B185: CWS - SP | C185: 997 | D185: - | E185: - | F185: - | G185: - | H185: - | I185: -
A186: Noah Song | B186: Bos - SP | C186: 1002 | D186: - | E186: - | F186: - | G186: - | H186: - | I186: -
A187: Tim Adleman | B187: Det - SP | C187: 1007 | D187: - | E187: - | F187: - | G187: - | H187: - | I187: -
A188: Kutter Crawford | B188: Bos - SP | C188: 1008 | D188: - | E188: - | F188: - | G188: - | H188: - | I188: -
A189: Tobias Myers | B189: TB - SP | C189: 1013 | D189: - | E189: - | F189: - | G189: - | H189: - | I189: -
A190: A.J. Puckett | B190: KC - SP | C190: 1015 | D190: - | E190: - | F190: - | G190: - | H190: - | I190: -
A191: Bernardo Flores Jr. | B191: CWS - SP | C191: 1016 | D191: - | E191: - | F191: - | G191: - | H191: - | I191: -
A192: Alek Manoah | B192: Tor - SP | C192: 1018 | D192: - | E192: - | F192: - | G192: - | H192: - | I192: -
A193: Logan Gilbert | B193: Sea - SP | C193: 1020 | D193: - | E193: - | F193: - | G193: - | H193: - | I193: -
A194: Matthew Thompson | B194: CWS - SP | C194: 1023 | D194: - | E194: - | F194: - | G194: - | H194: - | I194: -
A195: Mason Englert | B195: Tex - SP | C195: 1026 | D195: - | E195: - | F195: - | G195: - | H195: - | I195: -
A196: Kyle Funkhouser | B196: Det - SP | C196: 1028 | D196: - | E196: - | F196: - | G196: - | H196: - | I196: -
A197: Isaiah Campbell | B197: Sea - SP | C197: 1030 | D197: - | E197: - | F197: - | G197: - | H197: - | I197: -
A198: Blake Taylor | B198: Hou - SP | C198: 1036 | D198: - | E198: - | F198: - | G198: - | H198: - | I198: -
A199: Scott Blewett | B199: KC - SP | C199: 1038 | D199: - | E199: - | F199: - | G199: - | H199: - | I199: -
A200: Arnaldo Hernandez | B200: KC - SP | C200: 1043 | D200: - | E200: - | F200: - | G200: - | H200: - | I200: -
... 145 more rows

Sheet Relief Pitchers
A1: Player | B1: Team | C1: Rank | D1: IP | E1: W | F1: S | G1: K | H1: ERA | I1: WHIP
A2: Aroldis Chapman | B2: NYY - RP | C2: 92 | D2: 57 | E2: 3 | F2: 37 | G2: 85 | H2: 2.21 | I2: 1.11
A3: Carlos Carrasco | B3: Cle - SP,RP | C3: 100 | D3: 80 | E3: 6 | F3: 1 | G3: 96 | H3: 5.29 | I3: 1.35
A4: Roberto Osuna | B4: Hou - RP | C4: 101 | D4: 65 | E4: 4 | F4: 38 | G4: 73 | H4: 2.63 | I4: 0.88
A5: Brad Hand | B5: Cle - RP | C5: 110 | D5: 57.1 | E5: 6 | F5: 34 | G5: 84 | H5: 3.3 | I5: 1.24
A6: Liam Hendriks | B6: Oak - RP | C6: 114 | D6: 85 | E6: 4 | F6: 25 | G6: 124 | H6: 1.8 | I6: 0.96
A7: Jesús Luzardo | B7: Oak - RP | C7: 122 | D7: 12 | E7: 0 | F7: 2 | G7: 16 | H7: 1.5 | I7: 0.67
A8: Ken Giles | B8: Tor - RP | C8: 124 | D8: 53 | E8: 2 | F8: 23 | G8: 83 | H8: 1.87 | I8: 1
A9: Taylor Rogers | B9: Min - RP | C9: 127 | D9: 69 | E9: 2 | F9: 30 | G9: 90 | H9: 2.61 | I9: 1
A10: Nick Anderson | B10: TB - RP | C10: 162 | D10: 65 | E10: 5 | F10: 1 | G10: 110 | H10: 3.32 | I10: 1.08
A11: Kenta Maeda | B11: Min - SP,RP | C11: 166 | D11: 153.2 | E11: 10 | F11: 3 | G11: 169 | H11: 4.04 | I11: 1.07
A12: Alex Colomé | B12: CWS - RP | C12: 167 | D12: 61 | E12: 4 | F12: 30 | G12: 55 | H12: 2.8 | I12: 1.07
A13: Brandon Workman | B13: Bos - RP | C13: 170 | D13: 71.2 | E13: 10 | F13: 16 | G13: 104 | H13: 1.88 | I13: 1.03
A14: Hansel Robles | B14: LAA - RP | C14: 173 | D14: 72.2 | E14: 5 | F14: 23 | G14: 75 | H14: 2.48 | I14: 1.02
A15: Joe Jiménez | B15: Det - RP | C15: 177 | D15: 59.2 | E15: 4 | F15: 9 | G15: 82 | H15: 4.37 | I15: 1.32
A16: José Leclerc | B16: Tex - SP,RP | C16: 179 | D16: 68.2 | E16: 2 | F16: 14 | G16: 100 | H16: 4.33 | I16: 1.33
A17: Ian Kennedy | B17: KC - RP | C17: 191 | D17: 63.1 | E17: 3 | F17: 30 | G17: 73 | H17: 3.41 | I17: 1.28
A18: A.J. Puk | B18: Oak - RP | C18: 204 | D18: 11.1 | E18: 2 | F18: 0 | G18: 13 | H18: 3.18 | I18: 1.32
A19: Yonny Chirinos | B19: TB - SP,RP | C19: 222 | D19: 133.1 | E19: 9 | F19: 0 | G19: 114 | H19: 3.85 | I19: 1.05
A20: Mychal Givens | B20: Bal - RP | C20: 233 | D20: 63 | E20: 2 | F20: 11 | G20: 86 | H20: 4.57 | I20: 1.19
A21: Ryan Yarbrough | B21: TB - SP,RP | C21: 241 | D21: 141.2 | E21: 11 | F21: 0 | G21: 117 | H21: 4.13 | I21: 1
A22: Josh James | B22: Hou - RP | C22: 283 | D22: 61.1 | E22: 5 | F22: 1 | G22: 100 | H22: 4.7 | I22: 1.32
A23: Adam Ottavino | B23: NYY - RP | C23: 302 | D23: 66.1 | E23: 6 | F23: 2 | G23: 88 | H23: 1.9 | I23: 1.31
A24: Ryan Pressly | B24: Hou - RP | C24: 303 | D24: 54.1 | E24: 2 | F24: 3 | G24: 72 | H24: 2.32 | I24: 0.9
A25: Chad Green | B25: NYY - SP,RP | C25: 319 | D25: 69 | E25: 4 | F25: 2 | G25: 98 | H25: 4.17 | I25: 1.23
A26: Nathan Eovaldi | B26: Bos - SP,RP | C26: 322 | D26: 67.2 | E26: 2 | F26: 0 | G26: 70 | H26: 5.99 | I26: 1.58
A27: Matt Barnes | B27: Bos - RP | C27: 337 | D27: 64.1 | E27: 5 | F27: 4 | G27: 110 | H27: 3.78 | I27: 1.38
A28: Yoshihisa Hirano | B28: Sea - RP | C28: 354 | D28: 53 | E28: 5 | F28: 1 | G28: 61 | H28: 4.75 | I28: 1.38
A29: Aaron Bummer | B29: CWS - RP | C29: 362 | D29: 67.2 | E29: 0 | F29: 1 | G29: 60 | H29: 2.13 | I29: 0.99
A30: Diego Castillo | B30: TB - SP,RP | C30: 376 | D30: 68.2 | E30: 5 | F30: 8 | G30: 81 | H30: 3.41 | I30: 1.24
A31: José Alvarado | B31: TB - RP | C31: 377 | D31: 30 | E31: 1 | F31: 7 | G31: 39 | H31: 4.8 | I31: 1.87
A32: Yusmeiro Petit | B32: Oak - RP | C32: 392 | D32: 83 | E32: 5 | F32: 0 | G32: 71 | H32: 2.71 | I32: 0.81
A33: Sergio Romo | B33: Min - RP | C33: 397 | D33: 60.1 | E33: 2 | F33: 20 | G33: 60 | H33: 3.43 | I33: 1.11
A34: Trevor May | B34: Min - RP | C34: 400 | D34: 64.1 | E34: 5 | F34: 2 | G34: 79 | H34: 2.94 | I34: 1.07
A35: Steve Cishek | B35: CWS - RP | C35: 401 | D35: 64 | E35: 4 | F35: 7 | G35: 57 | H35: 2.95 | I35: 1.2
A36: Tyler Duffey | B36: Min - RP | C36: 403 | D36: 57.2 | E36: 5 | F36: 0 | G36: 82 | H36: 2.5 | I36: 1.01
A37: Tyler Clippard | B37: Min - SP,RP | C37: 404 | D37: 62 | E37: 1 | F37: 0 | G37: 64 | H37: 2.9 | I37: 0.85
A38: Sam Dyson | B38: Min - RP | C38: 406 | D38: 62.1 | E38: 5 | F38: 2 | G38: 55 | H38: 3.32 | I38: 1.06
A39: Zack Britton | B39: NYY - RP | C39: 407 | D39: 61.1 | E39: 3 | F39: 3 | G39: 53 | H39: 1.91 | I39: 1.14
A40: Nick Wittgren | B40: Cle - RP | C40: 408 | D40: 57.2 | E40: 5 | F40: 4 | G40: 60 | H40: 2.81 | I40: 1.08
A41: Marcus Walden | B41: Bos - RP | C41: 411 | D41: 78 | E41: 9 | F41: 2 | G41: 76 | H41: 3.81 | I41: 1.19
A42: Oliver Drake | B42: TB - RP | C42: 415 | D42: 56 | E42: 5 | F42: 2 | G42: 70 | H42: 3.21 | I42: 0.98
A43: Brad Peacock | B43: Hou - SP,RP | C43: 418 | D43: 91.2 | E43: 7 | F43: 0 | G43: 96 | H43: 4.12 | I43: 1.19
A44: Jared Hughes | B44: Hou - RP | C44: 422 | D44: 71.1 | E44: 5 | F44: 1 | G44: 54 | H44: 4.04 | I44: 1.18
A45: Joakim Soria | B45: Oak - RP | C45: 423 | D45: 69 | E45: 2 | F45: 1 | G45: 79 | H45: 4.3 | I45: 1.03
A46: Noé Ramírez | B46: LAA - SP,RP | C46: 436 | D46: 67.2 | E46: 5 | F46: 0 | G46: 79 | H46: 3.99 | I46: 1.17
A47: Chase Anderson | B47: Tor - SP,RP | C47: 439 | D47: 139 | E47: 8 | F47: 0 | G47: 124 | H47: 4.21 | I47: 1.27
A48: Colin Poche | B48: TB - RP | C48: 440 | D48: 51.2 | E48: 5 | F48: 2 | G48: 72 | H48: 4.7 | I48: 1.01
A49: Cam Bedrosian | B49: LAA - SP,RP | C49: 441 | D49: 61.1 | E49: 3 | F49: 1 | G49: 64 | H49: 3.23 | I49: 1.14
A50: Tommy Kahnle | B50: NYY - RP | C50: 443 | D50: 61.1 | E50: 3 | F50: 0 | G50: 88 | H50: 3.67 | I50: 1.06
A51: Ty Buttrey | B51: LAA - RP | C51: 444 | D51: 72.1 | E51: 6 | F51: 2 | G51: 84 | H51: 3.98 | I51: 1.27
A52: Felix Peña | B52: LAA - SP,RP | C52: 445 | D52: 96.1 | E52: 8 | F52: 0 | G52: 101 | H52: 4.58 | I52: 1.18
A53: Collin McHugh | B53: Hou - SP,RP | C53: 447 | D53: 74.2 | E53: 4 | F53: 0 | G53: 82 | H53: 4.7 | I53: 1.23
A54: Anthony Bass | B54: Tor - RP | C54: 450 | D54: 48 | E54: 2 | F54: 5 | G54: 43 | H54: 3.56 | I54: 0.98
A55: J.B. Wendelken | B55: Oak - RP | C55: 454 | D55: 32.2 | E55: 3 | F55: 0 | G55: 34 | H55: 3.58 | I55: 0.92
A56: Shawn Kelley | B56: Tex - RP | C56: 455 | D56: 47.1 | E56: 5 | F56: 11 | G56: 43 | H56: 4.94 | I56: 1.39
A57: Joe Smith | B57: Hou - RP | C57: 457 | D57: 25 | E57: 1 | F57: 0 | G57: 22 | H57: 1.8 | I57: 0.96
A58: Zack Littell | B58: Min - RP | C58: 458 | D58: 37 | E58: 6 | F58: 0 | G58: 32 | H58: 2.68 | I58: 1.16
A59: Rafael Montero | B59: Tex - RP | C59: 468 | D59: 29 | E59: 2 | F59: 0 | G59: 34 | H59: 2.48 | I59: 0.97
A60: Josh Taylor | B60: Bos - RP | C60: 469 | D60: 47.1 | E60: 2 | F60: 0 | G60: 62 | H60: 3.04 | I60: 1.18
A61: Buck Farmer | B61: Det - RP | C61: 474 | D61: 67.2 | E61: 6 | F61: 0 | G61: 73 | H61: 3.72 | I61: 1.27
A62: Oliver Pérez | B62: Cle - RP | C62: 478 | D62: 40.2 | E62: 2 | F62: 1 | G62: 48 | H62: 3.98 | I62: 1.23
A63: Matt Magill | B63: Sea - RP | C63: 479 | D63: 50.2 | E63: 5 | F63: 5 | G63: 64 | H63: 4.09 | I63: 1.4
A64: Evan Marshall | B64: CWS - RP | C64: 482 | D64: 50.2 | E64: 4 | F64: 0 | G64: 41 | H64: 2.49 | I64: 1.3
A65: Greg Holland | B65: KC - RP | C65: 495 | D65: 35.2 | E65: 1 | F65: 17 | G65: 41 | H65: 4.54 | I65: 1.37
A66: Ryan Brasier | B66: Bos - RP | C66: 497 | D66: 55.2 | E66: 2 | F66: 7 | G66: 61 | H66: 4.85 | I66: 1.29
A67: Emmanuel Clase | B67: Cle - RP | C67: 499 | D67: 23.1 | E67: 2 | F67: 1 | G67: 21 | H67: 2.31 | I67: 1.11
A68: Sam Tuivailala | B68: Sea - RP | C68: 500 | D68: 23 | E68: 1 | F68: 0 | G68: 27 | H68: 2.35 | I68: 1.04
A69: Tim Hill | B69: KC - RP | C69: 503 | D69: 39.2 | E69: 2 | F69: 1 | G69: 39 | H69: 3.63 | I69: 1.11
A70: Austin Adams | B70: Sea - RP | C70: 504 | D70: 32 | E70: 2 | F70: 0 | G70: 53 | H70: 3.94 | I70: 1.13
A71: Arodys Vizcaíno | B71: Sea - RP | C71: 505 | D71: 4 | E71: 1 | F71: 1 | G71: 6 | H71: 2.25 | I71: 1.5
A72: Adam Cimber | B72: Cle - RP | C72: 506 | D72: 56.2 | E72: 6 | F72: 1 | G72: 41 | H72: 4.45 | I72: 1.32
A73: David Hale | B73: NYY - RP | C73: 507 | D73: 37.2 | E73: 3 | F73: 2 | G73: 23 | H73: 3.11 | I73: 1.22
A74: Jimmy Cordero | B74: CWS - RP | C74: 510 | D74: 37.1 | E74: 1 | F74: 0 | G74: 31 | H74: 2.89 | I74: 0.99
A75: Ryan Buchter | B75: LAA - RP | C75: 511 | D75: 45.1 | E75: 1 | F75: 0 | G75: 50 | H75: 2.98 | I75: 1.43
A76: Jesse Chávez | B76: Tex - SP,RP | C76: 521 | D76: 78 | E76: 3 | F76: 1 | G76: 72 | H76: 4.85 | I76: 1.33
A77: Nick Goody | B77: Tex - RP | C77: 522 | D77: 40.2 | E77: 3 | F77: 0 | G77: 50 | H77: 3.54 | I77: 1.28
A78: Luke Farrell | B78: Tex - RP | C78: 528 | D78: 13.1 | E78: 1 | F78: 0 | G78: 12 | H78: 2.7 | I78: 0.68
A79: Hunter Wood | B79: Cle - RP | C79: 532 | D79: 45.1 | E79: 1 | F79: 1 | G79: 39 | H79: 2.98 | I79: 1.28
A80: Justin Miller | B80: Tor - RP | C80: 535 | D80: 15.2 | E80: 1 | F80: 0 | G80: 11 | H80: 4.02 | I80: 1.28
A81: Heath Hembree | B81: Bos - RP | C81: 538 | D81: 39.2 | E81: 1 | F81: 2 | G81: 46 | H81: 3.86 | I81: 1.31
A82: Tommy Milone | B82: Bal - SP,RP | C82: 539 | D82: 111.2 | E82: 4 | F82: 0 | G82: 94 | H82: 4.76 | I82: 1.12
A83: Kyle Gibson | B83: Tex - SP,RP | C83: 541 | D83: 160 | E83: 13 | F83: 0 | G83: 160 | H83: 4.84 | I83: 1.44
A84: Trevor Richards | B84: TB - SP,RP | C84: 546 | D84: 135.1 | E84: 6 | F84: 0 | G84: 127 | H84: 4.06 | I84: 1.35
A85: Luke Bard | B85: LAA - SP,RP | C85: 547 | D85: 49 | E85: 3 | F85: 0 | G85: 40 | H85: 4.78 | I85: 1.1
A86: Nick Ramirez | B86: Det - RP | C86: 550 | D86: 79.2 | E86: 5 | F86: 0 | G86: 74 | H86: 4.07 | I86: 1.39
A87: Art Warren | B87: Sea - RP | C87: 551 | D87: 5.1 | E87: 1 | F87: 0 | G87: 5 | H87: 0 | I87: 0.75
A88: Bryan Abreu | B88: Hou - RP | C88: 553 | D88: 8.2 | E88: 0 | F88: 0 | G88: 13 | H88: 1.04 | I88: 0.81
A89: Josh Osich | B89: Bos - RP | C89: 554 | D89: 67.2 | E89: 4 | F89: 0 | G89: 61 | H89: 4.66 | I89: 1.14
A90: Brandon Brennan | B90: Sea - RP | C90: 558 | D90: 47.1 | E90: 3 | F90: 0 | G90: 47 | H90: 4.56 | I90: 1.23
A91: Devin Smeltzer | B91: Min - SP,RP | C91: 559 | D91: 49 | E91: 2 | F91: 1 | G91: 38 | H91: 3.86 | I91: 1.27
A92: Austin Brice | B92: Bos - RP | C92: 560 | D92: 44.2 | E92: 1 | F92: 0 | G92: 46 | H92: 3.43 | I92: 1.23
A93: Jon Edwards | B93: Cle - RP | C93: 562 | D93: 8 | E93: 2 | F93: 0 | G93: 5 | H93: 2.25 | I93: 1.38
A94: Hunter Harvey | B94: Bal - RP | C94: 564 | D94: 6.1 | E94: 1 | F94: 0 | G94: 11 | H94: 1.42 | I94: 1.11
A95: Wilmer Font | B95: Tor - SP,RP | C95: 565 | D95: 84.1 | E95: 4 | F95: 0 | G95: 95 | H95: 4.48 | I95: 1.27
A96: Blaine Hardy | B96: Min - RP | C96: 566 | D96: 44.1 | E96: 1 | F96: 0 | G96: 29 | H96: 4.47 | I96: 1.15
A97: Scott Barlow | B97: KC - RP | C97: 572 | D97: 70.1 | E97: 3 | F97: 1 | G97: 92 | H97: 4.22 | I97: 1.44
A98: Jonathan Holder | B98: NYY - RP | C98: 582 | D98: 41.1 | E98: 5 | F98: 0 | G98: 46 | H98: 6.31 | I98: 1.31
A99: Cole Sulser | B99: Bal - RP | C99: 583 | D99: 7.1 | E99: 0 | F99: 0 | G99: 9 | H99: 0 | I99: 1.09
A100: Adam Warren | B100: NYY - RP | C100: 584 | D100: 28.2 | E100: 4 | F100: 0 | G100: 25 | H100: 5.34 | I100: 1.4
A101: Sam Gaviglio | B101: Tor - RP | C101: 587 | D101: 95.2 | E101: 4 | F101: 0 | G101: 88 | H101: 4.61 | I101: 1.12
A102: Connor Sadzeck | B102: Sea - RP | C102: 589 | D102: 23.2 | E102: 0 | F102: 1 | G102: 27 | H102: 2.66 | I102: 1.39
A103: Austin Pruitt | B103: Hou - RP | C103: 591 | D103: 47 | E103: 3 | F103: 0 | G103: 39 | H103: 4.4 | I103: 1.26
A104: Cody Stashak | B104: Min - RP | C104: 592 | D104: 25 | E104: 0 | F104: 0 | G104: 25 | H104: 3.24 | I104: 1.2
A105: Dan Altavilla | B105: Sea - RP | C105: 593 | D105: 14.2 | E105: 2 | F105: 0 | G105: 18 | H105: 5.52 | I105: 1.43
A106: Keynan Middleton | B106: LAA - RP | C106: 594 | D106: 7.2 | E106: 0 | F106: 0 | G106: 6 | H106: 1.17 | I106: 1.43
A107: James Karinchak | B107: Cle - RP | C107: 595 | D107: 5.1 | E107: 0 | F107: 0 | G107: 8 | H107: 1.69 | I107: 0.75
A108: James Hoyt | B108: Cle - RP | C108: 596 | D108: 8.1 | E108: 0 | F108: 0 | G108: 10 | H108: 2.16 | I108: 0.96
A109: Ben Heller | B109: NYY - RP | C109: 600 | D109: 7.1 | E109: 0 | F109: 0 | G109: 9 | H109: 1.23 | I109: 1.23
A110: Randy Rosario | B110: KC - RP | C110: 601 | D110: 14.1 | E110: 2 | F110: 0 | G110: 13 | H110: 4.4 | I110: 1.4
A111: Luis Avilán | B111: NYY - RP | C111: 604 | D111: 32 | E111: 4 | F111: 0 | G111: 30 | H111: 5.06 | I111: 1.47
A112: Brian Moran | B112: Tor - RP | C112: 605 | D112: 6.1 | E112: 1 | F112: 0 | G112: 10 | H112: 4.26 | I112: 1.26
A113: A.J. Cole | B113: Tor - RP | C113: 606 | D113: 26 | E113: 3 | F113: 1 | G113: 30 | H113: 3.81 | I113: 1.5
A114: Zac Grotz | B114: Sea - RP | C114: 609 | D114: 17.1 | E114: 1 | F114: 0 | G114: 18 | H114: 4.15 | I114: 1.27
A115: Luis Cessa | B115: NYY - RP | C115: 623 | D115: 81 | E115: 2 | F115: 1 | G115: 75 | H115: 4.11 | I115: 1.31
A116: Louis Coleman | B116: Det - RP | C116: 624 | D116: - | E116: - | F116: - | G116: - | H116: - | I116: -
A117: Taylor Guilbeau | B117: Sea - RP | C117: 629 | D117: 12.1 | E117: 0 | F117: 0 | G117: 7 | H117: 3.65 | I117: 1.05
A118: Lou Trivino | B118: Oak - RP | C118: 630 | D118: 60 | E118: 4 | F118: 0 | G118: 57 | H118: 5.25 | I118: 1.53
A119: Chris Devenski | B119: Hou - RP | C119: 631 | D119: 69 | E119: 2 | F119: 0 | G119: 72 | H119: 4.83 | I119: 1.3
A120: Kyle Keller | B120: LAA - RP | C120: 632 | D120: 10.2 | E120: 0 | F120: 0 | G120: 11 | H120: 3.38 | I120: 1.22
A121: Chaz Roe | B121: TB - RP | C121: 634 | D121: 51 | E121: 1 | F121: 1 | G121: 65 | H121: 4.06 | I121: 1.57
A122: Jim Johnson | B122: LAA - RP | C122: 640 | D122: - | E122: - | F122: - | G122: - | H122: - | I122: -
A123: Jonathan Hernández | B123: Tex - RP | C123: 641 | D123: 16.2 | E123: 2 | F123: 0 | G123: 19 | H123: 4.32 | I123: 1.62
A124: Michael King | B124: NYY - RP | C124: 645 | D124: 2 | E124: 0 | F124: 0 | G124: 1 | H124: 0 | I124: 1
A125: David Paulino | B125: Tor - RP | C125: 646 | D125: - | E125: - | F125: - | G125: - | H125: - | I125: -
A126: Matt Andriese | B126: LAA - RP | C126: 647 | D126: 70.2 | E126: 5 | F126: 1 | G126: 79 | H126: 4.71 | I126: 1.4
A127: Chasen Bradford | B127: Sea - RP | C127: 648 | D127: 16.2 | E127: 0 | F127: 1 | G127: 11 | H127: 4.86 | I127: 1.26
A128: Blake Wood | B128: LAA - RP | C128: 650 | D128: - | E128: - | F128: - | G128: - | H128: - | I128: -
A129: Adonis Rosa | B129: NYY - RP | C129: 653 | D129: 2 | E129: 0 | F129: 0 | G129: 2 | H129: 4.5 | I129: 0.5
A130: Jorge Alcala | B130: Min - RP | C130: 657 | D130: 1.2 | E130: 0 | F130: 0 | G130: 1 | H130: 0 | I130: 1.2
A131: Ryan Eades | B131: Bal - RP | C131: 658 | D131: 11.1 | E131: 0 | F131: 0 | G131: 10 | H131: 2.38 | I131: 1.5
A132: José Rodríguez | B132: LAA - RP | C132: 660 | D132: 19.2 | E132: 0 | F132: 0 | G132: 13 | H132: 2.75 | I132: 1.42
A133: Aaron Slegers | B133: TB - RP | C133: 662 | D133: 3 | E133: 0 | F133: 1 | G133: 0 | H133: 3 | I133: 1
A134: Ian Hamilton | B134: CWS - RP | C134: 665 | D134: - | E134: - | F134: - | G134: - | H134: - | I134: -
A135: Richard Bleier | B135: Bal - RP | C135: 666 | D135: 55.1 | E135: 3 | F135: 4 | G135: 30 | H135: 5.37 | I135: 1.32
A136: Ryan Cook | B136: Sea - RP | C136: 669 | D136: - | E136: - | F136: - | G136: - | H136: - | I136: -
A137: Alec Asher | B137: Min - SP,RP | C137: 671 | D137: - | E137: - | F137: - | G137: - | H137: - | I137: -
A138: Carson Smith | B138: Bos - RP | C138: 672 | D138: - | E138: - | F138: - | G138: - | H138: - | I138: -
A139: John Schreiber | B139: Det - RP | C139: 673 | D139: 13 | E139: 2 | F139: 0 | G139: 19 | H139: 6.23 | I139: 1.54
A140: Joey Krehbiel | B140: Min - RP | C140: 674 | D140: - | E140: - | F140: - | G140: - | H140: - | I140: -
A141: Kevin McCarthy | B141: KC - RP | C141: 676 | D141: 60.1 | E141: 4 | F141: 1 | G141: 38 | H141: 4.48 | I141: 1.48
A142: Andrew Vasquez | B142: Min - RP | C142: 680 | D142: 0 | E142: 0 | F142: 0 | G142: 0 | H142: - | I142: -
A143: Jake Newberry | B143: KC - RP | C143: 681 | D143: 31 | E143: 1 | F143: 0 | G143: 29 | H143: 3.77 | I143: 1.45
A144: Travis Bergen | B144: Tor - RP | C144: 682 | D144: 19.2 | E144: 2 | F144: 0 | G144: 18 | H144: 5.49 | I144: 1.37
A145: Aaron Loup | B145: TB - RP | C145: 685 | D145: 3.1 | E145: 0 | F145: 0 | G145: 5 | H145: 0 | I145: 0.9
A146: Gabriel Moya | B146: Min - RP | C146: 686 | D146: - | E146: - | F146: - | G146: - | H146: - | I146: -
A147: Rhiner Cruz | B147: Tor - RP | C147: 689 | D147: - | E147: - | F147: - | G147: - | H147: - | I147: -
A148: Randall Delgado | B148: CWS - SP,RP | C148: 690 | D148: - | E148: - | F148: - | G148: - | H148: - | I148: -
A149: Riley Ferrell | B149: Hou - RP | C149: 709 | D149: - | E149: - | F149: - | G149: - | H149: - | I149: -
A150: Wyatt Mills | B150: Sea - RP | C150: 713 | D150: - | E150: - | F150: - | G150: - | H150: - | I150: -
A151: Dayan Díaz | B151: LAA - RP | C151: 714 | D151: - | E151: - | F151: - | G151: - | H151: - | I151: -
A152: Brooks Kriske | B152: NYY - RP | C152: 716 | D152: - | E152: - | F152: - | G152: - | H152: - | I152: -
A153: Tim Dillard | B153: Tex - RP | C153: 720 | D153: - | E153: - | F153: - | G153: - | H153: - | I153: -
A154: Evan Scribner | B154: TB - RP | C154: 723 | D154: - | E154: - | F154: - | G154: - | H154: - | I154: -
A155: Zack Burdi | B155: CWS - RP | C155: 728 | D155: - | E155: - | F155: - | G155: - | H155: - | I155: -
A156: Jorge Rondón | B156: CWS - RP | C156: 730 | D156: - | E156: - | F156: - | G156: - | H156: - | I156: -
A157: Shawn Morimando | B157: Tor - RP | C157: 742 | D157: - | E157: - | F157: - | G157: - | H157: - | I157: -
A158: J.R. Graham | B158: NYY - RP | C158: 750 | D158: - | E158: - | F158: - | G158: - | H158: - | I158: -
A159: Lucas Luetge | B159: Oak - RP | C159: 754 | D159: - | E159: - | F159: - | G159: - | H159: - | I159: -
A160: Jake Reed | B160: Min - RP | C160: 756 | D160: - | E160: - | F160: - | G160: - | H160: - | I160: -
A161: Simon Castro | B161: Oak - RP | C161: 757 | D161: - | E161: - | F161: - | G161: - | H161: - | I161: -
A162: Austin Maddox | B162: Bos - RP | C162: 758 | D162: - | E162: - | F162: - | G162: - | H162: - | I162: -
A163: Jenrry Mejia | B163: Bos - SP,RP | C163: 759 | D163: - | E163: - | F163: - | G163: - | H163: - | I163: -
A164: Joey Gerber | B164: Sea - RP | C164: 764 | D164: - | E164: - | F164: - | G164: - | H164: - | I164: -
A165: Christian Friedrich | B165: CWS - SP,RP | C165: 770 | D165: - | E165: - | F165: - | G165: - | H165: - | I165: -
A166: Travis Wood | B166: Det - SP,RP | C166: 777 | D166: - | E166: - | F166: - | G166: - | H166: - | I166: -
A167: Ryan Merritt | B167: TB - RP | C167: 778 | D167: - | E167: - | F167: - | G167: - | H167: - | I167: -
A168: Kyle Davies | B168: NYY - SP,RP | C168: 779 | D168: - | E168: - | F168: - | G168: - | H168: - | I168: -
A169: Rafael Dolis | B169: Tor - RP | C169: 787 | D169: - | E169: - | F169: - | G169: - | H169: - | I169: -
A170: Denyi Reyes | B170: Bos - RP | C170: 788 | D170: - | E170: - | F170: - | G170: - | H170: - | I170: -
A171: Yoan Aybar | B171: Bos - RP | C171: 791 | D171: - | E171: - | F171: - | G171: - | H171: - | I171: -
A172: Felipe Paulino | B172: Cle - SP,RP | C172: 804 | D172: - | E172: - | F172: - | G172: - | H172: - | I172: -
A173: Rony Garcia | B173: Det - RP | C173: 806 | D173: - | E173: - | F173: - | G173: - | H173: - | I173: -
A174: Tanner Scheppers | B174: Tex - SP,RP | C174: 808 | D174: - | E174: - | F174: - | G174: - | H174: - | I174: -
A175: Jean Carlos Mejía | B175: Cle - RP | C175: 814 | D175: - | E175: - | F175: - | G175: - | H175: - | I175: -
A176: Matt Foster | B176: CWS - RP | C176: 815 | D176: - | E176: - | F176: - | G176: - | H176: - | I176: -
A177: Lendy Castillo | B177: Det - RP | C177: 822 | D177: - | E177: - | F177: - | G177: - | H177: - | I177: -
A178: Logan Kensing | B178: Det - RP | C178: 835 | D178: - | E178: - | F178: - | G178: - | H178: - | I178: -
A179: Waldis Joaquin | B179: Det - RP | C179: 841 | D179: - | E179: - | F179: - | G179: - | H179: - | I179: -
A180: Abel De los Santos | B180: LAA - RP | C180: 867 | D180: - | E180: - | F180: - | G180: - | H180: - | I180: -
A181: Zach Putnam | B181: CWS - RP | C181: 872 | D181: - | E181: - | F181: - | G181: - | H181: - | I181: -
A182: Esmil Rogers | B182: NYY - SP,RP | C182: 882 | D182: - | E182: - | F182: - | G182: - | H182: - | I182: -
A183: Max Povse | B183: Sea - RP | C183: 885 | D183: - | E183: - | F183: - | G183: - | H183: - | I183: -
A184: Andres Machado | B184: KC - RP | C184: 897 | D184: - | E184: - | F184: - | G184: - | H184: - | I184: -
A185: Brayan Perez | B185: Sea - RP | C185: 898 | D185: - | E185: - | F185: - | G185: - | H185: - | I185: -
A186: Tyler Jay | B186: Min - RP | C186: 904 | D186: - | E186: - | F186: - | G186: - | H186: - | I186: -
A187: Jarrett Grube | B187: Tor - RP | C187: 912 | D187: - | E187: - | F187: - | G187: - | H187: - | I187: -
A188: Tony Zych | B188: Sea - RP | C188: 914 | D188: - | E188: - | F188: - | G188: - | H188: - | I188: -
A189: Jake Buchanan | B189: Oak - RP | C189: 931 | D189: - | E189: - | F189: - | G189: - | H189: - | I189: -
A190: Hector Yan | B190: LAA - RP | C190: 932 | D190: - | E190: - | F190: - | G190: - | H190: - | I190: -
A191: Brandon Bailey | B191: Bal - RP | C191: 933 | D191: - | E191: - | F191: - | G191: - | H191: - | I191: -
A192: Daniel Schlereth | B192: Bos - RP | C192: 940 | D192: - | E192: - | F192: - | G192: - | H192: - | I192: -
A193: Mike Kickham | B193: Bos - RP | C193: 942 | D193: - | E193: - | F193: - | G193: - | H193: - | I193: -
A194: Seth Maness | B194: KC - RP | C194: 949 | D194: - | E194: - | F194: - | G194: - | H194: - | I194: -
A195: Josh Judy | B195: Sea - RP | C195: 956 | D195: - | E195: - | F195: - | G195: - | H195: - | I195: -
A196: Michael Ynoa | B196: KC - RP | C196: 986 | D196: - | E196: - | F196: - | G196: - | H196: - | I196: -
A197: César Cabral | B197: Bal - RP | C197: 987 | D197: - | E197: - | F197: - | G197: - | H197: - | I197: -
A198: Hunter Cervenka | B198: Bal - RP | C198: 994 | D198: - | E198: - | F198: - | G198: - | H198: - | I198: -
A199: Jaye Chapman | B199: Tex - RP | C199: 995 | D199: - | E199: - | F199: - | G199: - | H199: - | I199: -
A200: Collin Balester | B200: Det - RP | C200: 998 | D200: - | E200: - | F200: - | G200: - | H200: - | I200: -
... 241 more rows

Sheet Data
A1: Owners | B1: Position
A2: Lightning (Mike Goodman) | B2: Catcher
A3: Evolution (Bruce) | B3: 1st Base
A4: The Mad Batters (Colin) | B4: 2nd Base
A5: Woap (Mike) | B5: 3rd Base
A6: The Dominant Brand (Brandon) | B6: Short Stop
A7: Guzzlers (Rhonda) | B7: Outfield #1
A8: Moneyballers (Rob) | B8: Outfield #2
A9: Booya's (Cathy) | B9: Outfield #3
A10: Freebirds (Todd) | B10: DH
A11: Numbats (Tom) | B11: Starting Pitcher #1
A12: Josh Gone-aldson (Dave) | B12: Starting Pitcher #2
B13: Starting Pitcher #3
B14: Starting Pitcher #4
B15: Starting Pitcher #5
B16: Relief Pitcher #1
B17: Relief Pitcher #2
B18: Relief Pitcher #3
B19: Relief Pitcher #4
B20: Reserve Roster #1
B21: Reserve Roster #2
B22: Reserve Roster #3
B23: Reserve Roster #4
B24: Reserve Roster #5
B25: Reserve Roster #6
B26: Reserve Roster #7
A28: Make sure every year to select all the players for each position and recreate the bookmark name (delete name first, then recreate name) to ensure all players get listed. | C28: catchers | D28: first | E28: second | F28: third | G28: ss | H28: outfield | I28: dh | J28: pitchers | K28: relief
A29: Ensure that all players are listed when clicking on the button.
B31: Change Draft Order Yearly
A33: Freebirds (Todd) | B33: 1
A34: The Dominant Brand (Brandon) | B34: 2
A35: Moneyballers (Rob) | B35: 3
A36: Booya's (Cathy) | B36: 4
A37: Josh Gone-aldson (Dave) | B37: 5
A38: Woap (Mike) | B38: 6
A39: Numbats (Tom) | B39: 7
A40: Evolution (Bruce) | B40: 8
A41: The Mad Batters (Colin) | B41: 9
A42: Lightning (Mike Goodman) | B42: 10
A43: Guzzlers (Rhonda) | B43: 11
A47: Formulas to Retreive Name and Position
A48: =RIGHT(A1,LEN(A1)+ 5-FIND("-",A1)) | B48: Position
A49: =LEFT(A1,FIND("-",A1) -5) | B49: Name
A50: =Trim(cell) | B50: Trim the positions for extra space
